Ref No,Fund Type,Dept,Cost Centre Description    ,Description    ,Creditor Name    ,GL Code Net Amount,Payment date        
2,Revenue,CCHD,Bed Purchasing - Elderly - South,Permanent Nursing,.,3804.75, 13-May-2014
3,Revenue,CCHD,Bed purchasing - Elderly S117 - South,Permanent Nursing,.,2395.80, 13-May-2014
4,Revenue,CCHD,Bed Purchasing - Elderly - South,Permanent Nursing,.,2227.80, 13-May-2014
5,Revenue,CCHD,Breakthrough and Inclusion Work,Other Supplies & Services,121Turnaround Limited,4764.77, 13-May-2014
6,Revenue,CCHD,Supporting People Programme,Grants to Voluntary Bodies,1625 Independent People,16692.50, 01-May-2014
7,Revenue,CCHD,Supporting People Programme,Grants to Voluntary Bodies,1625 Independent People,16692.50, 30-May-2014
8,Revenue,CCHD,Home Care - Elderly - South,Other Small Contracts,3 Trees Community Support Ltd,196.68, 02-May-2014
9,Revenue,CCHD,Home Care - Elderly - North,Other Small Contracts,3 Trees Community Support Ltd,2619.42, 02-May-2014
10,Revenue,CCHD,Day Care - North,Private & Voluntary Day Care,3 Trees Community Support Ltd,53.64, 02-May-2014
11,Revenue,CCHD,Home Care - Elderly - South,Other Small Contracts,3 Trees Community Support Ltd,89.40, 27-May-2014
12,Revenue,CCHD,Home Care - Elderly - North,Other Small Contracts,3 Trees Community Support Ltd,2395.92, 27-May-2014
13,Revenue,CCHD,Day Care - North,Private & Voluntary Day Care,3 Trees Community Support Ltd,53.64, 27-May-2014
14,Revenue,CCHD,Home Care - Elderly - North,Other Small Contracts,3 Trees Community Support Ltd,2391.45, 29-May-2014
15,Revenue,CCHD,Day Care - North,Private & Voluntary Day Care,3 Trees Community Support Ltd,53.64, 29-May-2014
16,Revenue,CCHD,Home Care - Elderly - South,Other Small Contracts,3 Trees Community Support Ltd,196.68, 29-May-2014
17,Revenue,CCHD,Home Care - Elderly - North,Other Small Contracts,3 Trees Community Support Ltd,2842.92, 29-May-2014
18,Revenue,CCHD,Day Care - North,Private & Voluntary Day Care,3 Trees Community Support Ltd,53.64, 29-May-2014
19,Revenue,CCHD,Purchase of Non-Res Care - South,Private & Voluntary Day Care,3 Trees Community Support Ltd,3154.20, 21-May-2014
20,Revenue,CCHD,Supported Living - North,Private & Voluntary Home Care,3 Trees Community Support Ltd,9862.65, 01-May-2014
21,Revenue,CCHD,Supported Living - South,Private & Voluntary Home Care,3 Trees Community Support Ltd,567.34, 21-May-2014
22,Revenue,CCHD,Supported Living - South,Private & Voluntary Home Care,3 Trees Community Support Ltd,1612.30, 27-May-2014
23,Revenue,CCHD,Purchase of Non-Res Care - North,Private & Voluntary Day Care,3 Trees Community Support Ltd,3806.94, 27-May-2014
24,Revenue,CCHD,Purchase of Non-Res Care - North,Private & Voluntary Day Care,3 Trees Community Support Ltd,1570.77, 27-May-2014
25,Revenue,CCHD,Purchase of Non-Res Care - North,Private & Voluntary Day Care,3 Trees Community Support Ltd,1152.81, 27-May-2014
26,Revenue,CCHD,Purchase of Non-Res Care - North,Private & Voluntary Day Care,3 Trees Community Support Ltd,6497.53, 27-May-2014
27,Revenue,CCHD,Purchase of Non-Res Care - South,Private & Voluntary Day Care,3 Trees Community Support Ltd,2999.99, 28-May-2014
28,Revenue,CCHD,Supported Living - South,Private & Voluntary Home Care,3 Trees Community Support Ltd,7598.48, 14-May-2014
29,Revenue,CCHD,Supported Living - North,Private & Voluntary Home Care,3 Trees Community Support Ltd,7711.72, 22-May-2014
30,Revenue,CCHD,Supported Living - North,Private & Voluntary Home Care,3 Trees Community Support Ltd,7632.80, 14-May-2014
31,Revenue,CCHD,Purchase of Non-Res Care - North,Private & Voluntary Day Care,3 Trees Community Support Ltd,1503.60, 22-May-2014
32,Revenue,CCHD,Bed Purchasing - Under 65s PWLD - South,Permanent Residential,5Th Floor Harlech Court,16062.20, 13-May-2014
33,Revenue,CCHD,Bed purchasing - Under 65s PWLD - North,Permanent Residential,5Th Floor Harlech Court,13647.88, 13-May-2014
34,Revenue,CCHD,Bed purchasing - Under 65s PWLD - North,Permanent Residential,5Th Floor Harlech Court,13962.28, 13-May-2014
35,Revenue,CCHD,Bed purchasing - Under 65s PWLD - North,Permanent Residential,5Th Floor Harlech Court,16589.72, 13-May-2014
36,Revenue,CCHD,Bed purchasing - Under 65s PWLD - North,Permanent Residential,5Th Floor Harlech Court,15754.12, 13-May-2014
37,Revenue,CCHD,Bed Purchasing - Under 65s PWLD - South,Permanent Nursing,5Th Floor Harlech Court,7424.16, 16-May-2014
38,Revenue,CCHD,Bed Purchasing - Under 65s PWLD - South,Permanent Nursing,5Th Floor Harlech Court,1045.08, 16-May-2014
39,Revenue,CCHD,Bed Purchasing - Under 65s PWLD - South,Permanent Nursing,5Th Floor Harlech Court,9898.88, 20-May-2014
40,Revenue,CCHD,Bed purchasing - S28A Under 65 - South,Permanent Residential,5Th Floor Harlech Court,7915.62, 16-May-2014
41,Revenue,CCHD,Bed purchasing - S28A Under 65 - South,Permanent Residential,5Th Floor Harlech Court,1114.57, 16-May-2014
42,Revenue,CCHD,Bed purchasing - S28A Under 65 - South,Permanent Residential,5Th Floor Harlech Court,10554.16, 20-May-2014
43,Revenue,CCHD,Bed purchasing - S28A Under 65 - South,Permanent Residential,5Th Floor Harlech Court,9266.43, 16-May-2014
44,Revenue,CCHD,Bed purchasing - S28A Under 65 - South,Permanent Residential,5Th Floor Harlech Court,1304.42, 16-May-2014
45,Revenue,CCHD,Bed purchasing - S28A Under 65 - South,Permanent Residential,5Th Floor Harlech Court,12355.24, 20-May-2014
46,Revenue,CCHD,Bed Purchasing - Under 65s PWLD - South,Permanent Nursing,5Th Floor Harlech Court,7680.66, 16-May-2014
47,Revenue,CCHD,Bed Purchasing - Under 65s PWLD - South,Permanent Nursing,5Th Floor Harlech Court,1081.19, 16-May-2014
48,Revenue,CCHD,Bed Purchasing - Under 65s PWLD - South,Permanent Nursing,5Th Floor Harlech Court,10240.88, 20-May-2014
49,Revenue,CCHD,Woodleaze,Premises Maintenance by Contractor,A E Horder (Contracting) Limited,2093.85, 22-May-2014
50,Revenue,CCHD,Direct Payments - Phys Dis - North,Grants to Voluntary Bodies,A4E Management Limited,23434.92, 29-May-2014
51,Revenue,CCHD,Bed Purchasing - Frenchay Hospital,Permanent Nursing,Aabletone Nursing Home,814.88, 13-May-2014
52,Revenue,CCHD,Bed Purchasing - Frenchay Hospital,Permanent Residential,Abbey Grange,3693.50, 13-May-2014
53,Revenue,CCHD,Bed purchasing - Phys Dis - North,Permanent Nursing,ABI Development Limited,6970.24, 13-May-2014
54,Revenue,CCHD,Day Care - South,Private & Voluntary Day Care,About Me Care and Support Limited,1027.52, 02-May-2014
55,Revenue,CCHD,Day Care - North,Private & Voluntary Day Care,About Me Care and Support Limited,546.00, 28-May-2014
56,Revenue,CCHD,Day Care - North,Private & Voluntary Day Care,About Me Care and Support Limited,1408.36, 28-May-2014
57,Revenue,CCHD,Day Care - South,Private & Voluntary Day Care,About Me Care and Support Limited,780.16, 02-May-2014
58,Revenue,CCHD,Bed purchasing - Under 65s PWLD - North,Permanent Residential,Acorn Care Providers,5829.60, 13-May-2014
59,Revenue,CCHD,Home Care - Elderly - South,Other Small Contracts,Agincare Chippenham,1280.60, 06-May-2014
60,Revenue,CCHD,Home Care - Elderly - South,Other Small Contracts,Agincare Chippenham,1288.20, 06-May-2014
61,Revenue,CCHD,Home Care - Elderly - South,Other Small Contracts,Agincare Chippenham,1269.20, 06-May-2014
62,Revenue,CCHD,Home Care - Elderly - South,Other Small Contracts,Agincare UK Limited,592.80, 06-May-2014
63,Revenue,CCHD,Home Care - Elderly - North,Other Small Contracts,Agincare UK Limited,83.60, 06-May-2014
64,Revenue,CCHD,Elderly MH Day Care North,Private & Voluntary Day Care,Agincare UK Limited,45.60, 06-May-2014
65,Revenue,CCHD,Home Care - Elderly - South,Other Small Contracts,Agincare UK Limited,547.20, 06-May-2014
66,Revenue,CCHD,Home Care - Elderly - North,Other Small Contracts,Agincare UK Limited,79.80, 06-May-2014
67,Revenue,CCHD,Elderly MH Day Care North,Private & Voluntary Day Care,Agincare UK Limited,49.40, 06-May-2014
68,Revenue,CCHD,Home Care - Elderly - South,Other Small Contracts,Agincare UK Limited,554.80, 06-May-2014
69,Revenue,CCHD,Home Care - Elderly - North,Other Small Contracts,Agincare UK Limited,79.80, 06-May-2014
70,Revenue,CCHD,Elderly MH Day Care North,Private & Voluntary Day Care,Agincare UK Limited,53.20, 06-May-2014
71,Revenue,CCHD,Home Care - Elderly - South,Other Small Contracts,Agincare UK Limited,627.00, 06-May-2014
72,Revenue,CCHD,Home Care - Elderly - North,Other Small Contracts,Agincare UK Limited,76.00, 06-May-2014
73,Revenue,CCHD,Elderly MH Day Care North,Private & Voluntary Day Care,Agincare UK Limited,57.00, 06-May-2014
74,Revenue,CCHD,Home Care - Elderly - North,Other Small Contracts,Agincare UK Nutfield,843.60, 06-May-2014
75,Revenue,CCHD,Home Care - Elderly - North,Other Small Contracts,Agincare UK Nutfield,984.20, 06-May-2014
76,Revenue,CCHD,Home Care - Elderly - North,Other Small Contracts,Agincare UK Nutfield,1094.40, 06-May-2014
77,Revenue,CCHD,Minor Adaptations Service,Operational Equipment,Aidapt Bathrooms Limited,460.00, 01-May-2014
78,Revenue,CCHD,Minor Adaptations Service,Operational Equipment,Aidapt Bathrooms Limited,6440.00, 01-May-2014
79,Revenue,CCHD,S117 Placements PCT,Permanent Residential,Alexandra House,6977.40, 13-May-2014
80,Revenue,CCHD,S117 Placements PCT,Permanent Residential,Alexandra House,5233.05, 13-May-2014
81,Revenue,CCHD,S117 Placements PCT,Permanent Residential,Alexandra House,1718.91, 13-May-2014
82,Revenue,CCHD,Bed Purchasing - Under 65s PWLD - South,Permanent Residential,Alexandra House,12294.45, 13-May-2014
83,Revenue,CCHD,Section 117 Placements MH Younger,Permanent Residential,Alexandra House,6495.60, 13-May-2014
84,Revenue,CCHD,Section 117 Placements MH Younger,Permanent Residential,Alexandra House,4871.70, 13-May-2014
85,Revenue,CCHD,Section 117 Placements MH Younger,Permanent Residential,Alexandra House,1600.22, 13-May-2014
86,Revenue,CCHD,Home Care - Elderly - South,Other Small Contracts,AliMo Care Ltd,479.09, 07-May-2014
87,Revenue,CCHD,Home Care - Elderly - North,Other Small Contracts,AliMo Care Ltd,1623.01, 07-May-2014
88,Revenue,CCHD,Home Care - Elderly - South,Other Small Contracts,AliMo Care Ltd,396.49, 16-May-2014
89,Revenue,CCHD,Home Care - Elderly - North,Other Small Contracts,AliMo Care Ltd,1627.14, 16-May-2014
90,Revenue,CCHD,Home Care - Elderly - South,Other Small Contracts,AliMo Care Ltd,553.43, 29-May-2014
91,Revenue,CCHD,Home Care - Elderly - North,Other Small Contracts,AliMo Care Ltd,1643.66, 29-May-2014
92,Revenue,CCHD,Home Care - Elderly - South,Other Small Contracts,AliMo Care Ltd,557.56, 29-May-2014
93,Revenue,CCHD,Home Care - Elderly - North,Other Small Contracts,AliMo Care Ltd,1614.75, 29-May-2014
94,Revenue,CCHD,Bed Purchasing - Southmead Hospital,Permanent Nursing,Ambleside Nusing Ho!,1443.84, 13-May-2014
95,Revenue,CCHD,Cambrian Green Day Service,Equipment Maintenance,Apre Surfacing Limited,1350.00, 23-May-2014
96,Revenue,CCHD,Bed purchasing - Under 65s PWLD - North,Permanent Residential,Ark Care Homes Ltd,10314.64, 13-May-2014
97,Revenue,CCHD,Bed Purchasing - Elderly - South,Permanent Residential,Ashbourne House Care Home Limited,2241.26, 13-May-2014
98,Revenue,CCHD,Home Care - Elderly - South,Other Small Contracts,Ashley Commercial Finance Ltd,1063.35, 13-May-2014
99,Revenue,CCHD,Home Care - Elderly - North,Other Small Contracts,Ashley Commercial Finance Ltd,2893.98, 13-May-2014
100,Revenue,CCHD,Home Care - Elderly - South,Other Small Contracts,Ashley Commercial Finance Ltd,1038.33, 06-May-2014
101,Revenue,CCHD,Home Care - Elderly - North,Other Small Contracts,Ashley Commercial Finance Ltd,3411.06, 06-May-2014
102,Revenue,CCHD,Home Care - Elderly - South,Other Small Contracts,Ashley Commercial Finance Ltd,1046.67, 13-May-2014
103,Revenue,CCHD,Home Care - Elderly - North,Other Small Contracts,Ashley Commercial Finance Ltd,3356.85, 13-May-2014
104,Revenue,CCHD,Home Care - Elderly - South,Other Small Contracts,Ashley Commercial Finance Ltd,1125.90, 23-May-2014
105,Revenue,CCHD,Home Care - Elderly - North,Other Small Contracts,Ashley Commercial Finance Ltd,3119.16, 23-May-2014
106,Revenue,CCHD,Home Care - Elderly - South,Other Small Contracts,Ashley Commercial Finance Ltd,1155.09, 27-May-2014
107,Revenue,CCHD,Home Care - Elderly - North,Other Small Contracts,Ashley Commercial Finance Ltd,3219.24, 27-May-2014
108,Revenue,CCHD,Bed and Breakfast,Bed & Breakfast,Ashley Guest Houses Limited,750.00, 01-May-2014
109,Revenue,CCHD,Bed and Breakfast,Bed & Breakfast,Ashley Guest Houses Limited,750.00, 14-May-2014
110,Revenue,CCHD,Bed and Breakfast,Bed & Breakfast,Ashley Guest Houses Limited,630.00, 21-May-2014
111,Revenue,CCHD,Bed and Breakfast,Bed & Breakfast,Ashley Guest Houses Limited,630.00, 28-May-2014
112,Revenue,CCHD,Bed purchasing - Under 65s PWLD - North,Permanent Residential,Aspects 2 Limited,6358.44, 13-May-2014
113,Revenue,CCHD,Supporting People Programme,Grants to Voluntary Bodies,Aspects and Milestones Trust,3219.58, 01-May-2014
114,Revenue,CCHD,Supporting People Programme,Grants to Voluntary Bodies,Aspects and Milestones Trust,1614.17, 01-May-2014
115,Revenue,CCHD,Supporting People Programme,Grants to Voluntary Bodies,Aspects and Milestones Trust,2450.08, 01-May-2014
116,Revenue,CCHD,Supporting People Programme,Grants to Voluntary Bodies,Aspects and Milestones Trust,1966.08, 01-May-2014
117,Revenue,CCHD,Supporting People Programme,Grants to Voluntary Bodies,Aspects and Milestones Trust,3219.58, 30-May-2014
118,Revenue,CCHD,Supporting People Programme,Grants to Voluntary Bodies,Aspects and Milestones Trust,1614.17, 30-May-2014
119,Revenue,CCHD,Supporting People Programme,Grants to Voluntary Bodies,Aspects and Milestones Trust,2450.08, 30-May-2014
120,Revenue,CCHD,Purchase of Non-Res Care - South,Private & Voluntary Day Care,Aspirations Support Bristol Limited,2499.48, 23-May-2014
121,Revenue,CCHD,Supported Living - South,Private & Voluntary Home Care,Aspirations Support Bristol Limited,596.44, 23-May-2014
122,Revenue,CCHD,Bed Purchasing - Under 65s PWLD - South,Permanent Residential,Autism Specialised Care Homes,5611.16, 13-May-2014
123,Revenue,CCHD,SLA Grants - Support Serv,Grants to Voluntary Bodies,Avon & Wiltshire Mental Health,680.00, 23-May-2014
124,Revenue,CCHD,Younger Adult Mental Health,Health Services (Third Party Payments),Avon & Wiltshire Mental Health,1606.00, 23-May-2014
125,Revenue,CCHD,Purchase of Non-Res Care - North,Private & Voluntary Day Care,Avon Autistic Foundation Limited,2301.60, 27-May-2014
126,Revenue,CCHD,Purchase of Non-Res Care - North,Private & Voluntary Day Care,Avon Autistic Foundation Limited,3378.04, 27-May-2014
127,Revenue,CCHD,Learning Difficulties Development Fund,Other Supplies & Services,Avon Valley Railway Company Limited,1000.00, 16-May-2014
128,Revenue,CCHD,Learning Difficulties Development Fund,Other Supplies & Services,Avon Valley Railway Company Limited,3000.00, 29-May-2014
129,Revenue,CCHD,Purchase of RAC places,Other L.A.'s - General,Bath & North East Somerset Dist Council,1902.40, 01-May-2014
130,Revenue,CCHD,Purchase of RAC places,Other L.A.'s - General,Bath & North East Somerset Dist Council,6959.14, 01-May-2014
131,Revenue,CCHD,Bed Purchasing - Frenchay Hospital,Permanent Nursing,Bayview Nursing & Residential Home,1482.40, 13-May-2014
132,Revenue,CCHD,Bed purchasing - Elderly MH - North,Respite Planned - Nursing,Beaufort Grange Care Home,10982.20, 13-May-2014
133,Revenue,CCHD,South Glos Users in South Glos Homes,Permanent Nursing,Beaufort Grange Care Home,1835.06, 13-May-2014
134,Revenue,CCHD,South Glos Users in South Glos Homes,Permanent Nursing,Beaufort Grange Care Home,1207.69, 13-May-2014
135,Revenue,CCHD,South Glos Users in South Glos Homes,Permanent Nursing,Beaufort Grange Care Home,517.58, 13-May-2014
136,Revenue,CCHD,South Glos Users in South Glos Homes,Permanent Nursing,Beaufort Grange Care Home,1552.74, 13-May-2014
137,Revenue,CCHD,South Glos Users in South Glos Homes,Permanent Nursing,Beaufort Grange Care Home,956.74, 13-May-2014
138,Revenue,CCHD,South Glos Users in South Glos Homes,Permanent Nursing,Beaufort Grange Care Home,1380.22, 13-May-2014
139,Revenue,CCHD,South Glos Users in South Glos Homes,Permanent Nursing,Beaufort Grange Care Home,1380.22, 13-May-2014
140,Revenue,CCHD,South Glos Users in South Glos Homes,Permanent Nursing,Beaufort Grange Care Home,2195.80, 13-May-2014
141,Revenue,CCHD,South Glos Users in South Glos Homes,Permanent Nursing,Beaufort Grange Care Home,1835.06, 13-May-2014
142,Revenue,CCHD,South Glos Users in South Glos Homes,Permanent Nursing,Beaufort Grange Care Home,1662.53, 13-May-2014
143,Revenue,CCHD,South Glos Users in South Glos Homes,Permanent Nursing,Beaufort Grange Care Home,1599.80, 13-May-2014
144,Revenue,CCHD,South Glos Users in South Glos Homes,Permanent Nursing,Beaufort Grange Care Home,1207.69, 13-May-2014
145,Revenue,CCHD,Bed Purchasing - Elderly - North,Permanent Nursing,Beaufort Grange Care Home,924.04, 13-May-2014
146,Revenue,CCHD,South Glos Users in South Glos Homes,Permanent Nursing,Beaufort Grange Care Home,678.19, 13-May-2014
147,Revenue,CCHD,Bed Purchasing - Elderly - North,Permanent Nursing,Beaufort Grange Care Home,1528.20, 13-May-2014
148,Revenue,CCHD,Bed Purchasing - Elderly - North,Permanent Residential,Beaufort House,1900.32, 13-May-2014
149,Revenue,CCHD,Bed purchasing - Elderly MH - North,Permanent Residential,Beaufort House,1537.92, 13-May-2014
150,Revenue,CCHD,Bed purchasing - Elderly MH - North,Permanent Residential,Beaufort House,1396.12, 13-May-2014
151,Revenue,CCHD,Bed Purchasing - Elderly - North,Permanent Residential,Beaufort House,1860.64, 13-May-2014
152,Revenue,CCHD,Bed Purchasing - Elderly - North,Permanent Residential,Beaufort House,1755.08, 13-May-2014
153,Revenue,CCHD,Swift Dump Code,Permanent Residential,Beaufort House,2052.52, 13-May-2014
154,Revenue,CCHD,Bed purchasing - Elderly MH - North,Permanent Residential,Beaufort House,1706.44, 13-May-2014
155,Revenue,CCHD,Bed Purchasing - Elderly - North,Permanent Residential,Beaufort House,1534.80, 13-May-2014
156,Revenue,CCHD,Bed purchasing - Elderly PWLD - South,Permanent Residential,Bedrock Lodge,2949.44, 13-May-2014
157,Revenue,CCHD,Section 117 Placements MH Younger,Permanent Residential,Bedrock Lodge,1864.88, 13-May-2014
158,Revenue,CCHD,Bed Purchasing - Elderly - North,Permanent Nursing,Beech House,2378.48, 13-May-2014
159,Revenue,CCHD,Bed purchasing - Elderly MH - North,Permanent Nursing,Beech House,2444.00, 13-May-2014
160,Revenue,CCHD,South Glos Users in South Glos Homes,Permanent Nursing,Beech House,1662.53, 13-May-2014
161,Revenue,CCHD,Bed Purchasing - Elderly - North,Permanent Nursing,Beech House,2540.84, 13-May-2014
162,Revenue,CCHD,Bed Purchasing - Elderly - North,Permanent Residential,Beech House,1900.00, 13-May-2014
163,Revenue,CCHD,Bed Purchasing - Elderly - North,Permanent Nursing,Beech House,2127.20, 13-May-2014
164,Revenue,CCHD,Bed Purchasing - Elderly - North,Permanent Nursing,Beech House,720.44, 13-May-2014
165,Revenue,CCHD,Bed Purchasing - Elderly - North,Permanent Residential,Beech House,1394.08, 13-May-2014
166,Revenue,CCHD,Bed Purchasing - Elderly - North,Permanent Nursing,Beech House,1699.12, 13-May-2014
167,Revenue,CCHD,South Glos Users in South Glos Homes,Permanent Nursing,Beech House,752.85, 13-May-2014
168,Revenue,CCHD,Tenancy Start Up Scheme,Other Supplies & Services,Besley Hill Lettings,1490.00, 27-May-2014
169,Revenue,CCHD,Bed Purchasing - Elderly - North,Permanent Nursing,Blossom Field,1859.76, 13-May-2014
170,Revenue,CCHD,Bed Purchasing - Elderly S117- North,Permanent Nursing,Blossom Field,1992.00, 13-May-2014
171,Revenue,CCHD,Bed Purchasing - Elderly S117- North,Permanent Nursing,Blossom Field,1494.00, 13-May-2014
172,Revenue,CCHD,South Glos Users in South Glos Homes,Permanent Nursing,Blossom Field,658.74, 13-May-2014
173,Revenue,CCHD,Bed Purchasing - Elderly - North,Permanent Nursing,Blossom Field,1935.64, 13-May-2014
174,Revenue,CCHD,Bed Purchasing - Elderly - North,Permanent Nursing,Blossom Field,2337.00, 13-May-2014
175,Revenue,CCHD,Bed purchasing - Elderly MH - North,Permanent Nursing,Blossom Field,1420.72, 13-May-2014
176,Revenue,CCHD,Bed Purchasing - Elderly - South,Permanent Nursing,Blossom Field,1909.84, 13-May-2014
177,Revenue,CCHD,Bed Purchasing - Elderly - North,Permanent Nursing,Blossom Fields,2578.58, 16-May-2014
178,Revenue,CCHD,Bed Purchasing - Elderly - North,Permanent Nursing,Blossom Fields,1673.36, 16-May-2014
179,Revenue,CCHD,Bed Purchasing - Southmead Hospital,Permanent Nursing,Blossom Fields,3021.98, 16-May-2014
180,Revenue,CCHD,South Glos Users in South Glos Homes,Permanent Nursing,Blossom Fields,443.40, 16-May-2014
181,Revenue,CCHD,South Glos Users in South Glos Homes,Permanent Nursing,Blossom Fields,855.28, 16-May-2014
182,Revenue,CCHD,Training - Adult Services,Training Expenses,Bob Dawson,1525.00, 13-May-2014
183,Revenue,CCHD,Training - Adult Services,Training Expenses,Bob Dawson,775.00, 01-May-2014
184,Revenue,CCHD,Sexual Health,Other Supplies & Services,Boots UK Ltd,2438.00, 30-May-2014
185,Revenue,CCHD,Bed purchasing - Under 65s PWLD - North,Permanent Residential,Bradbury House,8760.16, 13-May-2014
186,Revenue,CCHD,Bed Purchasing - Elderly - North,Permanent Residential,Bradley House,5333.65, 13-May-2014
187,Revenue,CCHD,Home Care - Elderly - North,Other Small Contracts,Bradley House Home Care Services,1349.32, 02-May-2014
188,Revenue,CCHD,Day Care - North,Private & Voluntary Day Care,Bradley House Home Care Services,132.37, 02-May-2014
189,Revenue,CCHD,Home Care - Elderly - North,Other Small Contracts,Bradley House Home Care Services,1306.62, 02-May-2014
190,Revenue,CCHD,Day Care - North,Private & Voluntary Day Care,Bradley House Home Care Services,102.48, 02-May-2014
191,Revenue,CCHD,Home Care - Elderly - North,Other Small Contracts,Bradley House Home Care Services,1259.65, 02-May-2014
192,Revenue,CCHD,Day Care - North,Private & Voluntary Day Care,Bradley House Home Care Services,102.48, 02-May-2014
193,Revenue,CCHD,Home Care - Elderly - North,Other Small Contracts,Bradley House Home Care Services,1302.35, 16-May-2014
194,Revenue,CCHD,Day Care - North,Private & Voluntary Day Care,Bradley House Home Care Services,102.48, 16-May-2014
195,Revenue,CCHD,Home Care - Elderly - North,Other Small Contracts,Bradley House Home Care Services,1281.00, 29-May-2014
196,Revenue,CCHD,Day Care - North,Private & Voluntary Day Care,Bradley House Home Care Services,93.94, 29-May-2014
197,Revenue,CCHD,Home Care - Elderly - North,Other Small Contracts,Bradley House Home Care Services,1315.16, 29-May-2014
198,Revenue,CCHD,Day Care - North,Private & Voluntary Day Care,Bradley House Home Care Services,102.48, 29-May-2014
199,Revenue,CCHD,DAT Treatment,Other Supplies & Services,Bradley Stoke Surgery,508.00, 13-May-2014
200,Revenue,CCHD,Woodleaze,"Provisions (Food, etc)",Brake Bros,902.68, 20-May-2014
201,Revenue,CCHD,Woodleaze,"Provisions (Food, etc)",Brake Bros,926.24, 30-May-2014
202,Revenue,CCHD,Bed Purchasing - S28A - Over 65- North,Permanent Residential,Brandon Trust,3097.08, 13-May-2014
203,Revenue,CCHD,Bed Purchasing - Under 65s PWLD - South,Permanent Residential,Brandon Trust,10268.44, 13-May-2014
204,Revenue,CCHD,Bed Purchasing - Under 65s PWLD - South,Permanent Residential,Brandon Trust,4036.12, 13-May-2014
205,Revenue,CCHD,Bed purchasing - Elderly PWLD - South,Permanent Residential,Brandon Trust,3459.92, 13-May-2014
206,Revenue,CCHD,Bed Purchasing - LD S28A- Over 65- South,Permanent Nursing,Brandon Trust,4860.44, 13-May-2014
207,Revenue,CCHD,Bed Purchasing - Under 65s PWLD - South,Permanent Nursing,Brandon Trust,5036.84, 13-May-2014
208,Revenue,CCHD,Bed purchasing - S28A Under 65 - South,Permanent Nursing,Brandon Trust,5359.12, 13-May-2014
209,Revenue,CCHD,Bed purchasing - S28A Under 65 - South,Permanent Residential,Brandon Trust,4901.16, 13-May-2014
210,Revenue,CCHD,Bed purchasing - S28A Under 65 - South,Permanent Nursing,Brandon Trust,5359.12, 13-May-2014
211,Revenue,CCHD,Bed Purchasing - LD S28A- Over 65- South,Permanent Nursing,Brandon Trust,5182.72, 13-May-2014
212,Revenue,CCHD,Bed Purchasing - LD S28A- Over 65- South,Permanent Nursing,Brandon Trust,8487.08, 13-May-2014
213,Revenue,CCHD,Bed Purchasing - Under 65s PWLD - South,Permanent Residential,Brandon Trust,3273.48, 13-May-2014
214,Revenue,CCHD,Bed Purchasing - S28A - Over 65- North,Permanent Nursing,Brandon Trust,4810.28, 13-May-2014
215,Revenue,CCHD,Bed purchasing - S28A Under 65 - South,Permanent Residential,Brandon Trust,5202.76, 13-May-2014
216,Revenue,CCHD,Bed purchasing - S28A Under 65 - South,Permanent Residential,Brandon Trust,5258.44, 13-May-2014
217,Revenue,CCHD,Bed Purchasing - S28A - Over 65- North,Permanent Residential,Brandon Trust,10996.28, 13-May-2014
218,Revenue,CCHD,Bed purchasing - S28A Under 65 - South,Permanent Nursing,Brandon Trust,5399.12, 13-May-2014
219,Revenue,CCHD,Bed purchasing - S28A Under 65 - South,Permanent Nursing,Brandon Trust,5359.12, 13-May-2014
220,Revenue,CCHD,Bed purchasing -S28A  Under 65 - North,Permanent Nursing,Brandon Trust,4783.16, 13-May-2014
221,Revenue,CCHD,Bed purchasing - S28A Under 65 - South,Permanent Residential,Brandon Trust,5258.44, 13-May-2014
222,Revenue,CCHD,Bed Purchasing - LD S28A- Over 65- South,Permanent Residential,Brandon Trust,4748.20, 13-May-2014
223,Revenue,CCHD,Bed Purchasing - Under 65s PWLD - South,Permanent Residential,Brandon Trust,28865.87, 13-May-2014
224,Revenue,CCHD,Bed Purchasing - Elderly - North,Permanent Residential,Bridge House Care Home,1003.08, 13-May-2014
225,Revenue,CCHD,Bed Purchasing - Elderly - North,Permanent Residential,Bridge House Care Home,1167.32, 13-May-2014
226,Revenue,CCHD,Bed Purchasing - Elderly MH - South,Permanent Residential,Brightbow,2095.28, 13-May-2014
227,Revenue,CCHD,MH Purchasing - Younger,Permanent Residential,Brightbow,1504.25, 13-May-2014
228,Revenue,CCHD,Supported Living - North,Private & Voluntary Home Care,Bristol Houses UK Limited,1056.60, 01-May-2014
229,Revenue,CCHD,Day Care - North,Private & Voluntary Day Care,Bristol Houses UK Limited,1549.68, 28-May-2014
230,Revenue,CCHD,Day Care - North,Private & Voluntary Day Care,Bristol Houses UK Limited,1549.68, 28-May-2014
231,Revenue,CCHD,Day Care - North,Private & Voluntary Day Care,Bristol Houses UK Limited,2368.55, 28-May-2014
232,Revenue,CCHD,Day Care - North,Private & Voluntary Day Care,Bristol Houses UK Limited,2333.33, 28-May-2014
233,Revenue,CCHD,Supported Living - North,Private & Voluntary Home Care,Bristol Houses UK Limited,605.60, 23-May-2014
234,Revenue,CCHD,Supported Living - North,Private & Voluntary Home Care,Bristol Houses UK Limited,878.12, 23-May-2014
235,Revenue,CCHD,Supported Living - North,Private & Voluntary Home Care,Bristol Houses UK Limited,690.90, 23-May-2014
236,Revenue,CCHD,Bed and Breakfast,Bed & Breakfast,Bristol Housing & Support Limited,920.00, 07-May-2014
237,Revenue,CCHD,Bed and Breakfast,Bed & Breakfast,Bristol Housing & Support Limited,420.00, 12-May-2014
238,Revenue,CCHD,Bed and Breakfast,Bed & Breakfast,Bristol Housing & Support Limited,770.00, 19-May-2014
239,Revenue,CCHD,Bed and Breakfast,Bed & Breakfast,Bristol Housing & Support Limited,770.00, 27-May-2014
240,Revenue,CCHD,Day Care - South,Private & Voluntary Day Care,Britannia House,914.88, 13-May-2014
241,Revenue,CCHD,Day Care - South,Private & Voluntary Day Care,Britannia House,686.16, 13-May-2014
242,Revenue,CCHD,Day Care - North,Private & Voluntary Day Care,Britannia House,914.88, 13-May-2014
243,Revenue,CCHD,Day Care - South,Private & Voluntary Day Care,Britannia House,686.16, 13-May-2014
244,Revenue,CCHD,Day Care - North,Private & Voluntary Day Care,Britannia House,914.88, 13-May-2014
245,Revenue,CCHD,Day Care - South,Private & Voluntary Day Care,Britannia House,571.80, 13-May-2014
246,Revenue,CCHD,Day Care - South,Private & Voluntary Day Care,Britannia House,1143.60, 13-May-2014
247,Revenue,CCHD,Home Care - Elderly - South,Other Small Contracts,Britannia House,686.16, 13-May-2014
248,Revenue,CCHD,Day Care - South,Private & Voluntary Day Care,Britannia House,686.16, 13-May-2014
249,Revenue,CCHD,Day Care - South,Private & Voluntary Day Care,Britannia House,686.16, 13-May-2014
250,Revenue,CCHD,Supporting People Programme,Grants to Voluntary Bodies,Bromford Housing Group,14050.25, 01-May-2014
251,Revenue,CCHD,Supporting People Programme,Grants to Voluntary Bodies,Bromford Housing Group,14050.25, 30-May-2014
252,Revenue,CCHD,Home Care - Elderly - North,Private & Voluntary Home Care,Brunelcare,23160.00, 06-May-2014
253,Revenue,CCHD,Home Care - Elderly - North,Private & Voluntary Home Care,Brunelcare,23160.00, 12-May-2014
254,Revenue,CCHD,Home Care - Elderly - North,Private & Voluntary Home Care,Brunelcare,23160.00, 19-May-2014
255,Revenue,CCHD,Home Care - Elderly - North,Private & Voluntary Home Care,Brunelcare,23160.00, 23-May-2014
256,Revenue,CCHD,Bed Purchasing - Elderly MH - South,Permanent Nursing,Brunelcare,1725.68, 29-May-2014
257,Revenue,CCHD,Bed Purchasing - Elderly - South,Permanent Nursing,Brunelcare,1772.27, 29-May-2014
258,Revenue,CCHD,Bed Purchasing - Elderly - South,Permanent Nursing,Brunelcare,1422.06, 29-May-2014
259,Revenue,CCHD,Bed Purchasing - Elderly MH - South,Permanent Nursing,Brunelcare,1767.49, 29-May-2014
260,Revenue,CCHD,Bed Purchasing - Elderly - South,Permanent Nursing,Brunelcare,1825.72, 29-May-2014
261,Revenue,CCHD,Bed Purchasing - Frenchay Hospital,Permanent Nursing,Brunelcare,1595.92, 29-May-2014
262,Revenue,CCHD,Bed Purchasing - Elderly MH - South,Permanent Nursing,Brunelcare,1806.46, 29-May-2014
263,Revenue,CCHD,Bed Purchasing - Elderly - South,Permanent Nursing,Brunelcare,1825.59, 29-May-2014
264,Revenue,CCHD,Bed Purchasing - Elderly - South,Permanent Nursing,Brunelcare,1780.64, 29-May-2014
265,Revenue,CCHD,Bed Purchasing - Elderly S117- North,Permanent Nursing,Brunelcare,1825.72, 29-May-2014
266,Revenue,CCHD,Bed purchasing - Elderly S117 - South,Permanent Nursing,Brunelcare,2363.79, 29-May-2014
267,Revenue,CCHD,Bed Purchasing - Frenchay Hospital,Permanent Nursing,Brunelcare,1307.21, 29-May-2014
268,Revenue,CCHD,Bed Purchasing - Southmead Hospital,Permanent Nursing,Brunelcare,1485.21, 29-May-2014
269,Revenue,CCHD,Bed Purchasing - Elderly - South,Permanent Nursing,Brunelcare,1599.56, 29-May-2014
270,Revenue,CCHD,Bed Purchasing - Elderly - South,Permanent Nursing,Brunelcare,1272.28, 29-May-2014
271,Revenue,CCHD,Bed Purchasing - Frenchay Hospital,Permanent Nursing,Brunelcare,1399.78, 29-May-2014
272,Revenue,CCHD,Bed Purchasing - Elderly - South,Permanent Nursing,Brunelcare,1252.31, 29-May-2014
273,Revenue,CCHD,Bed Purchasing - Frenchay Hospital,Permanent Nursing,Brunelcare,1437.69, 29-May-2014
274,Revenue,CCHD,Bed Purchasing - Elderly - South,Permanent Nursing,Brunelcare,1825.72, 29-May-2014
275,Revenue,CCHD,Bed Purchasing - Southmead Hospital,Permanent Nursing,Brunelcare,1599.56, 29-May-2014
276,Revenue,CCHD,Bed Purchasing - Elderly - South,Permanent Nursing,Brunelcare,1599.56, 29-May-2014
277,Revenue,CCHD,Bed Purchasing - Elderly - North,Permanent Nursing,Brunelcare,1599.56, 29-May-2014
278,Revenue,CCHD,Bed Purchasing - Southmead Hospital,Permanent Nursing,Brunelcare,1599.56, 29-May-2014
279,Revenue,CCHD,South Glos Users in South Glos Homes,Permanent Nursing,Brunelcare,1490.57, 29-May-2014
280,Revenue,CCHD,Bed Purchasing - Southmead Hospital,Permanent Nursing,Brunelcare,2363.79, 29-May-2014
281,Revenue,CCHD,South Glos Users in South Glos Homes,Permanent Nursing,Brunelcare,1280.83, 29-May-2014
282,Revenue,CCHD,Bed Purchasing - Elderly - South,Permanent Nursing,Brunelcare,1849.41, 29-May-2014
283,Revenue,CCHD,Bed Purchasing - Elderly - South,Permanent Nursing,Brunelcare,2271.25, 29-May-2014
284,Revenue,CCHD,Home Care - Elderly - South,Other Small Contracts,Brunelcare,2798.88, 06-May-2014
285,Revenue,CCHD,Home Care - Elderly - North,Other Small Contracts,Brunelcare,4589.23, 06-May-2014
286,Revenue,CCHD,Day Care - South,Private & Voluntary Day Care,Brunelcare,24.48, 06-May-2014
287,Revenue,CCHD,Day Care - North,Private & Voluntary Day Care,Brunelcare,48.96, 06-May-2014
288,Revenue,CCHD,Home Care - Elderly - South,Other Small Contracts,Brunelcare,2751.09, 06-May-2014
289,Revenue,CCHD,Home Care - Elderly - North,Other Small Contracts,Brunelcare,4337.04, 06-May-2014
290,Revenue,CCHD,Day Care - South,Private & Voluntary Day Care,Brunelcare,24.48, 06-May-2014
291,Revenue,CCHD,Day Care - North,Private & Voluntary Day Care,Brunelcare,53.04, 06-May-2014
292,Revenue,CCHD,Home Care - Elderly - South,Other Small Contracts,Brunelcare,2688.72, 27-May-2014
293,Revenue,CCHD,Home Care - Elderly - North,One-off Planned Direct Payment,Brunelcare,8.16, 27-May-2014
294,Revenue,CCHD,Home Care - Elderly - North,Other Small Contracts,Brunelcare,4308.48, 27-May-2014
295,Revenue,CCHD,Day Care - South,Private & Voluntary Day Care,Brunelcare,28.56, 27-May-2014
296,Revenue,CCHD,Day Care - North,Private & Voluntary Day Care,Brunelcare,48.96, 27-May-2014
297,Revenue,CCHD,Home Care - Elderly - South,Other Small Contracts,Brunelcare,2827.44, 27-May-2014
298,Revenue,CCHD,Home Care - Elderly - North,Other Small Contracts,Brunelcare,4255.44, 27-May-2014
299,Revenue,CCHD,Day Care - South,Private & Voluntary Day Care,Brunelcare,24.48, 27-May-2014
300,Revenue,CCHD,Day Care - North,Private & Voluntary Day Care,Brunelcare,53.04, 27-May-2014
301,Revenue,CCHD,Home Care - Elderly - South,Other Small Contracts,Brunelcare,2990.64, 29-May-2014
302,Revenue,CCHD,Home Care - Elderly - North,Other Small Contracts,Brunelcare,4303.54, 29-May-2014
303,Revenue,CCHD,Day Care - South,Private & Voluntary Day Care,Brunelcare,28.56, 29-May-2014
304,Revenue,CCHD,Day Care - North,Private & Voluntary Day Care,Brunelcare,48.96, 29-May-2014
305,Revenue,CCHD,Home Care - Elderly - South,Other Small Contracts,Brunelcare,2970.24, 29-May-2014
306,Revenue,CCHD,Home Care - Elderly - North,Other Small Contracts,Brunelcare,4206.48, 29-May-2014
307,Revenue,CCHD,Day Care - South,Private & Voluntary Day Care,Brunelcare,28.56, 29-May-2014
308,Revenue,CCHD,Day Care - North,Private & Voluntary Day Care,Brunelcare,48.96, 29-May-2014
309,Revenue,CCHD,Information Systems - Software,Computer Equipment - Purchase,BT Global Services Solutions,983.59, 16-May-2014
310,Revenue,CCHD,Bed Purchasing - Southmead Hospital,Permanent Nursing,Bupa Care Services  Bridge House,2375.36, 13-May-2014
311,Revenue,CCHD,Bed Purchasing - Southmead Hospital,Permanent Nursing,Bupa Care Services  Bridge House,1902.40, 13-May-2014
312,Revenue,CCHD,Bed Purchasing - Southmead Hospital,Permanent Nursing,Bupa Care Services  Bridge House,1614.32, 13-May-2014
313,Revenue,CCHD,Bed purchasing - Phys Dis - North,Permanent Nursing,Bupa Care Services  Bridge House,5938.28, 13-May-2014
314,Revenue,CCHD,South Glos Users in South Glos Homes,Permanent Nursing,Bupa Care Services  Bridge House,1199.08, 13-May-2014
315,Revenue,CCHD,Bed purchasing - Elderly MH - North,Permanent Residential,Bupa Care Services  Bridge House,1987.24, 13-May-2014
316,Revenue,CCHD,Supported Living - North,Private & Voluntary Home Care,Camphill Communities Thornbury Limited,1822.24, 02-May-2014
317,Revenue,CCHD,Supported Living - North,Private & Voluntary Home Care,Camphill Communities Thornbury Limited,2290.92, 07-May-2014
318,Revenue,CCHD,Supported Living - North,Private & Voluntary Home Care,Camphill Communities Thornbury Limited,2049.76, 07-May-2014
319,Revenue,CCHD,Supported Living - North,Private & Voluntary Home Care,Camphill Communities Thornbury Limited,2016.48, 07-May-2014
320,Revenue,CCHD,Supported Living - North,Private & Voluntary Home Care,Camphill Communities Thornbury Limited,2563.76, 12-May-2014
321,Revenue,CCHD,Supported Living - South,Private & Voluntary Home Care,Camphill Communities Thornbury Limited,813.93, 13-May-2014
322,Revenue,CCHD,Supported Living - North,Private & Voluntary Home Care,Camphill Communities Thornbury Limited,2132.92, 14-May-2014
323,Revenue,CCHD,Supported Living - North,Private & Voluntary Home Care,Camphill Communities Thornbury Limited,2450.96, 14-May-2014
324,Revenue,CCHD,Supported Living - North,Private & Voluntary Home Care,Camphill Communities Thornbury Limited,2479.40, 15-May-2014
325,Revenue,CCHD,Supported Living - North,Private & Voluntary Home Care,Camphill Communities Thornbury Limited,2237.32, 15-May-2014
326,Revenue,CCHD,Supported Living - North,Private & Voluntary Home Care,Camphill Communities Thornbury Limited,1792.96, 15-May-2014
327,Revenue,CCHD,Supported Living - North,Private & Voluntary Home Care,Camphill Communities Thornbury Limited,2303.08, 15-May-2014
328,Revenue,CCHD,Supported Living - North,Private & Voluntary Home Care,Camphill Communities Thornbury Limited,2203.08, 15-May-2014
329,Revenue,CCHD,Supported Living - North,Private & Voluntary Home Care,Camphill Communities Thornbury Limited,2793.80, 22-May-2014
330,Revenue,CCHD,Supported Living - North,Private & Voluntary Home Care,Camphill Communities Thornbury Limited,2498.76, 28-May-2014
331,Revenue,CCHD,Supported Living - North,Private & Voluntary Home Care,Camphill Communities Thornbury Limited,2597.48, 28-May-2014
332,Revenue,CCHD,Supported Living - North,Private & Voluntary Home Care,Camphill Communities Thornbury Limited,1822.24, 30-May-2014
333,Revenue,CCHD,Bed Purchasing - Elderly S117- North,Permanent Residential,Canjayor,2334.04, 13-May-2014
334,Revenue,CCHD,Home Care - Elderly - South,Other Small Contracts,Care 1st Homecare,4405.80, 23-May-2014
335,Revenue,CCHD,Home Care - Elderly - North,Other Small Contracts,Care 1st Homecare,2931.60, 23-May-2014
336,Revenue,CCHD,Home care - Elderly MH - North,Other Small Contracts,Care 1st Homecare,67.20, 23-May-2014
337,Revenue,CCHD,Home Care - Elderly - South,Other Small Contracts,Care 1st Homecare,4754.40, 23-May-2014
338,Revenue,CCHD,Home Care - Elderly - North,Other Small Contracts,Care 1st Homecare,2776.20, 23-May-2014
339,Revenue,CCHD,Home care - Elderly MH - North,Other Small Contracts,Care 1st Homecare,71.40, 23-May-2014
340,Revenue,CCHD,Home Care - Elderly - South,Other Small Contracts,Care 1st Homecare,4977.00, 22-May-2014
341,Revenue,CCHD,Home Care - Elderly - North,Other Small Contracts,Care 1st Homecare,2767.80, 22-May-2014
342,Revenue,CCHD,Home care - Elderly MH - North,Other Small Contracts,Care 1st Homecare,58.80, 22-May-2014
343,Revenue,CCHD,Home Care - Elderly - South,Other Small Contracts,Care 1st Homecare,5245.80, 22-May-2014
344,Revenue,CCHD,Home Care - Elderly - North,Other Small Contracts,Care 1st Homecare,2667.00, 22-May-2014
345,Revenue,CCHD,Home care - Elderly MH - North,Other Small Contracts,Care 1st Homecare,67.20, 22-May-2014
346,Revenue,CCHD,Bed Purchasing - PWLD S 117 Placements,Permanent Residential,Care Community Ltd,7647.92, 13-May-2014
347,Revenue,CCHD,Home Care - Elderly - North,Other Small Contracts,Care Horizons Limited,2148.57, 27-May-2014
348,Revenue,CCHD,Day Care - South,Private & Voluntary Day Care,Care Horizons Limited,244.75, 27-May-2014
349,Revenue,CCHD,Home Care - Elderly - North,Other Small Contracts,Care Horizons Limited,2148.54, 27-May-2014
350,Revenue,CCHD,Day Care - South,Private & Voluntary Day Care,Care Horizons Limited,249.20, 27-May-2014
351,Revenue,CCHD,Supported Living - North,Private & Voluntary Home Care,Care Horizons Limited,5859.38, 01-May-2014
352,Revenue,CCHD,Supported Living - North,Private & Voluntary Day Care,Care Horizons Limited,5416.20, 01-May-2014
353,Revenue,CCHD,Purchase of Non-Res Care - North,Private & Voluntary Day Care,Care Horizons Limited,1265.05, 23-May-2014
354,Revenue,CCHD,Purchase of Non-Res Care - North,Private & Voluntary Day Care,Care Horizons Limited,1590.52, 23-May-2014
355,Revenue,CCHD,Purchase of Non-Res Care - North,Private & Voluntary Day Care,Care Horizons Limited,1506.65, 23-May-2014
356,Revenue,CCHD,Supported Living - North,Private & Voluntary Home Care,Care Horizons Limited,5573.19, 23-May-2014
357,Revenue,CCHD,Purchase of Non-Res Care - North,Private & Voluntary Day Care,Care Horizons Limited,632.60, 27-May-2014
358,Revenue,CCHD,Supported Living - South,Private & Voluntary Home Care,Care Horizons Limited,1721.24, 21-May-2014
359,Revenue,CCHD,Electronic Home Care Monitoring,Other Supplies & Services,Care Monitoring 2000 Limited,2635.00, 13-May-2014
360,Revenue,CCHD,Electronic Home Care Monitoring,Other Supplies & Services,Care Monitoring 2000 Limited,620.00, 13-May-2014
361,Revenue,CCHD,Home Care - Elderly - South,Other Small Contracts,Care UK,5166.56, 06-May-2014
362,Revenue,CCHD,Home Care - Elderly - North,Other Small Contracts,Care UK,2007.04, 06-May-2014
363,Revenue,CCHD,Day Care - South,Private & Voluntary Day Care,Care UK,196.00, 06-May-2014
364,Revenue,CCHD,Day Care - North,Private & Voluntary Day Care,Care UK,486.08, 06-May-2014
365,Revenue,CCHD,Home care - Elderly MH - North,Other Small Contracts,Care UK,603.68, 06-May-2014
366,Revenue,CCHD,Elderly MH Day Care North,Private & Voluntary Day Care,Care UK,141.12, 06-May-2014
367,Revenue,CCHD,Home Care - Elderly - South,Other Small Contracts,Care UK,5080.32, 06-May-2014
368,Revenue,CCHD,Home Care - Elderly - North,Other Small Contracts,Care UK,2026.64, 06-May-2014
369,Revenue,CCHD,Day Care - South,Private & Voluntary Day Care,Care UK,196.00, 06-May-2014
370,Revenue,CCHD,Day Care - North,Private & Voluntary Day Care,Care UK,513.52, 06-May-2014
371,Revenue,CCHD,Home care - Elderly MH - North,Other Small Contracts,Care UK,619.36, 06-May-2014
372,Revenue,CCHD,Elderly MH Day Care North,Private & Voluntary Day Care,Care UK,141.12, 06-May-2014
373,Revenue,CCHD,Home Care - Elderly - South,Other Small Contracts,Care UK,4876.48, 06-May-2014
374,Revenue,CCHD,Home Care - Elderly - North,Private & Voluntary Day Care,Care UK,62.72, 06-May-2014
375,Revenue,CCHD,Home Care - Elderly - North,Other Small Contracts,Care UK,2124.64, 06-May-2014
376,Revenue,CCHD,Day Care - South,Private & Voluntary Day Care,Care UK,196.00, 06-May-2014
377,Revenue,CCHD,Day Care - North,Private & Voluntary Day Care,Care UK,403.76, 06-May-2014
378,Revenue,CCHD,Home care - Elderly MH - North,Other Small Contracts,Care UK,576.24, 06-May-2014
379,Revenue,CCHD,Elderly MH Day Care North,Private & Voluntary Day Care,Care UK,141.12, 06-May-2014
380,Revenue,CCHD,Home Care - Elderly - South,Other Small Contracts,Care UK,4950.96, 21-May-2014
381,Revenue,CCHD,Home Care - Elderly - North,Other Small Contracts,Care UK,2077.60, 21-May-2014
382,Revenue,CCHD,Day Care - South,Private & Voluntary Day Care,Care UK,196.00, 21-May-2014
383,Revenue,CCHD,Day Care - North,Private & Voluntary Day Care,Care UK,484.72, 21-May-2014
384,Revenue,CCHD,Home care - Elderly MH - North,Other Small Contracts,Care UK,599.76, 21-May-2014
385,Revenue,CCHD,Elderly MH Day Care North,Private & Voluntary Day Care,Care UK,141.12, 21-May-2014
386,Revenue,CCHD,Home Care - Elderly - South,Other Small Contracts,Care UK,5005.84, 21-May-2014
387,Revenue,CCHD,Home Care - Elderly - North,Other Small Contracts,Care UK,2116.80, 21-May-2014
388,Revenue,CCHD,Day Care - South,Private & Voluntary Day Care,Care UK,196.00, 21-May-2014
389,Revenue,CCHD,Day Care - North,Private & Voluntary Day Care,Care UK,486.08, 21-May-2014
390,Revenue,CCHD,Home care - Elderly MH - North,Other Small Contracts,Care UK,603.68, 21-May-2014
391,Revenue,CCHD,Elderly MH Day Care North,Private & Voluntary Day Care,Care UK,145.04, 21-May-2014
392,Revenue,CCHD,Home Care - Elderly - South,Private & Voluntary Day Care,Care UK,15.68, 27-May-2014
393,Revenue,CCHD,Home Care - Elderly - South,Other Small Contracts,Care UK,5045.04, 27-May-2014
394,Revenue,CCHD,Home Care - Elderly - North,Other Small Contracts,Care UK,2085.44, 27-May-2014
395,Revenue,CCHD,Day Care - South,Private & Voluntary Day Care,Care UK,196.00, 27-May-2014
396,Revenue,CCHD,Day Care - North,Private & Voluntary Day Care,Care UK,411.60, 27-May-2014
397,Revenue,CCHD,Home care - Elderly MH - North,Other Small Contracts,Care UK,607.60, 27-May-2014
398,Revenue,CCHD,Elderly MH Day Care North,Private & Voluntary Day Care,Care UK,137.20, 27-May-2014
399,Revenue,CCHD,Home Care - Elderly - South,Other Small Contracts,Carers R Us (Bristol) Limited,115.71, 27-May-2014
400,Revenue,CCHD,Home Care - Elderly - North,Other Small Contracts,Carers R Us (Bristol) Limited,686.28, 27-May-2014
401,Revenue,CCHD,Home Care - Elderly - South,Other Small Contracts,Carers R Us (Bristol) Limited,111.72, 27-May-2014
402,Revenue,CCHD,Home Care - Elderly - North,Other Small Contracts,Carers R Us (Bristol) Limited,726.18, 27-May-2014
403,Revenue,CCHD,Home Care - Elderly - South,Other Small Contracts,Carers R Us (Bristol) Limited,115.71, 27-May-2014
404,Revenue,CCHD,Home Care - Elderly - North,Other Small Contracts,Carers R Us (Bristol) Limited,678.30, 27-May-2014
405,Revenue,CCHD,Learning Difficulties Development Fund,Other Supplies & Services,Carers Support Centre,5393.00, 16-May-2014
406,Revenue,CCHD,Home Care - Elderly - South,Other Small Contracts,Carewatch (Bristol),1126.25, 06-May-2014
407,Revenue,CCHD,Home Care - Elderly - North,Other Small Contracts,Carewatch (Bristol),1959.25, 06-May-2014
408,Revenue,CCHD,Home Care - Elderly - South,Other Small Contracts,Carewatch (Bristol),1122.00, 06-May-2014
409,Revenue,CCHD,Home Care - Elderly - North,Other Small Contracts,Carewatch (Bristol),1972.00, 06-May-2014
410,Revenue,CCHD,Home Care - Elderly - South,Other Small Contracts,Carewatch (Bristol),1037.00, 06-May-2014
411,Revenue,CCHD,Home Care - Elderly - North,Other Small Contracts,Carewatch (Bristol),1802.00, 06-May-2014
412,Revenue,CCHD,Home Care - Elderly - South,Other Small Contracts,Carewatch (Bristol),1147.50, 29-May-2014
413,Revenue,CCHD,Home Care - Elderly - North,Other Small Contracts,Carewatch (Bristol),1389.75, 29-May-2014
414,Revenue,CCHD,Home Care - Elderly - South,Other Small Contracts,Carewatch (Bristol),1093.44, 29-May-2014
415,Revenue,CCHD,Home Care - Elderly - North,Other Small Contracts,Carewatch (Bristol),1457.75, 29-May-2014
416,Revenue,CCHD,Home Care - Elderly - South,Other Small Contracts,Carewatch (Bristol),1032.75, 29-May-2014
417,Revenue,CCHD,Home Care - Elderly - North,Other Small Contracts,Carewatch (Bristol),1517.25, 29-May-2014
418,Revenue,CCHD,Home Care - Elderly - South,Other Small Contracts,Carewatch (Bristol),1037.00, 29-May-2014
419,Revenue,CCHD,Home Care - Elderly - North,Other Small Contracts,Carewatch (Bristol),1275.00, 29-May-2014
420,Revenue,CCHD,Home Care - Elderly - South,Other Small Contracts,Cash Friday at Lloyds TSB,104.00, 06-May-2014
421,Revenue,CCHD,Home Care - Elderly - North,Other Small Contracts,Cash Friday at Lloyds TSB,636.00, 06-May-2014
422,Revenue,CCHD,Social Lettings Agency,Fees - General,Cath Clemence,10.10, 01-May-2014
423,Revenue,CCHD,Social Lettings Agency,Fees & Charges Income - General,Cath Clemence,570.66, 01-May-2014
424,Revenue,CCHD,Social Lettings Agency,Fees - General,Cath Clemence,10.10, 30-May-2014
425,Revenue,CCHD,Social Lettings Agency,Fees & Charges Income - General,Cath Clemence,570.66, 30-May-2014
426,Revenue,CCHD,Bed Purchasing - Southmead Hospital,Permanent Residential,Caton House Care Home,1741.76, 13-May-2014
427,Revenue,CCHD,Bed Purchasing - Elderly - South,Permanent Residential,Cepen Lodge Care Home,2208.48, 13-May-2014
428,Revenue,CCHD,Home Care - Elderly - South,Other Small Contracts,Cherish Able Care Limited,5908.89, 01-May-2014
429,Revenue,CCHD,Home Care - Elderly - North,One-off Planned Direct Payment,Cherish Able Care Limited,79.23, 01-May-2014
430,Revenue,CCHD,Home Care - Elderly - South,Other Small Contracts,Cherish Able Care Limited,6300.87, 09-May-2014
431,Revenue,CCHD,Home Care - Elderly - North,One-off Planned Direct Payment,Cherish Able Care Limited,70.89, 09-May-2014
432,Revenue,CCHD,Home Care - Elderly - South,Other Small Contracts,Cherish Able Care Limited,6509.37, 16-May-2014
433,Revenue,CCHD,Home Care - Elderly - North,One-off Planned Direct Payment,Cherish Able Care Limited,29.19, 16-May-2014
434,Revenue,CCHD,Home Care - Elderly - North,Other Small Contracts,Cherish Able Care Limited,50.04, 16-May-2014
435,Revenue,CCHD,Home Care - Elderly - South,Other Small Contracts,Cherish Able Care Limited,6542.73, 23-May-2014
436,Revenue,CCHD,Home Care - Elderly - North,Other Small Contracts,Cherish Able Care Limited,133.44, 23-May-2014
437,Revenue,CCHD,Home Care - Elderly - South,Other Small Contracts,Cherish Able Care Limited,6342.57, 29-May-2014
438,Revenue,CCHD,Home Care - Elderly - North,Other Small Contracts,Cherish Able Care Limited,141.78, 29-May-2014
439,Revenue,CCHD,Bed purchasing -S28A  Under 65 - North,Permanent Residential,Chescombe Lodge,8697.00, 13-May-2014
440,Revenue,CCHD,Bed Purchasing - Under 65s PWLD - South,Permanent Residential,Chosen Court,7012.00, 13-May-2014
441,Revenue,CCHD,Bed Purchasing - PWLD S 117 Placements,Permanent Residential,Chosen Court,8932.12, 13-May-2014
442,Revenue,CCHD,Bed Purchasing - Under 65s PWLD - South,Permanent Residential,Chosen Court,5454.64, 13-May-2014
443,Revenue,CCHD,Training - Adult Services,Training Expenses,Chris Garnier,750.00, 28-May-2014
444,Revenue,CCHD,DAT Treatment,Other Supplies & Services,Christchurch Family Medical  Centre,2436.00, 13-May-2014
445,Revenue,CCHD,Bed purchasing - Under 65s PWLD - North,Permanent Residential,Church House,10507.68, 13-May-2014
446,Revenue,CCHD,Bed purchasing - Under 65s PWLD - North,Permanent Residential,Church House,5863.56, 13-May-2014
447,Revenue,CCHD,Section 117 Placements MH Younger,Permanent Residential,Church House,7307.08, 13-May-2014
448,Revenue,CCHD,Learning Difficulties,Premises Hire,Circadian Trust,526.50, 28-May-2014
449,Revenue,CCHD,Breakthrough and Inclusion Work,Project Funding,Circadian Trust,660.00, 13-May-2014
450,Revenue,CCHD,Home Care - Elderly - South,Other Small Contracts,Cleeve Care Group,434.00, 02-May-2014
451,Revenue,CCHD,Home Care - Elderly - North,Other Small Contracts,Cleeve Care Group,217.00, 02-May-2014
452,Revenue,CCHD,Home Care - Elderly - South,Other Small Contracts,Cleeve Care Group,675.50, 09-May-2014
453,Revenue,CCHD,Home Care - Elderly - North,Other Small Contracts,Cleeve Care Group,343.00, 09-May-2014
454,Revenue,CCHD,Home Care - Elderly - South,Other Small Contracts,Cleeve Care Group,696.50, 20-May-2014
455,Revenue,CCHD,Home Care - Elderly - North,Other Small Contracts,Cleeve Care Group,679.00, 20-May-2014
456,Revenue,CCHD,Home Care - Elderly - South,Other Small Contracts,Cleeve Care Group,689.50, 23-May-2014
457,Revenue,CCHD,Home Care - Elderly - North,Other Small Contracts,Cleeve Care Group,605.50, 23-May-2014
458,Revenue,CCHD,Home Care - Elderly - South,Other Small Contracts,Cleeve Care Group,637.00, 30-May-2014
459,Revenue,CCHD,Home Care - Elderly - North,Other Small Contracts,Cleeve Care Group,780.50, 30-May-2014
460,Revenue,CCHD,Bed Purchasing - Southmead Hospital,Permanent Residential,Cleeve Lodge,1457.16, 13-May-2014
461,Revenue,CCHD,Bed Purchasing - Elderly - South,Respite Planned - Residential,Cleeve Lodge,702.86, 13-May-2014
462,Revenue,CCHD,Bed Purchasing - Elderly - North,Permanent Nursing,Cleeve Lodge,1874.24, 13-May-2014
463,Revenue,CCHD,Bed Purchasing - Elderly - South,Permanent Residential,Cleeve Lodge,1792.60, 13-May-2014
464,Revenue,CCHD,Bed Purchasing - Elderly - South,Permanent Residential,Cleeve Lodge,2291.88, 13-May-2014
465,Revenue,CCHD,Bed Purchasing - Elderly - North,Permanent Residential,Cleeve Lodge,1393.60, 13-May-2014
466,Revenue,CCHD,Bed Purchasing - Elderly - South,Permanent Residential,Cleeve Lodge,1806.32, 13-May-2014
467,Revenue,CCHD,DAT Treatment,Other Supplies & Services,Close Farm Surgery,914.00, 13-May-2014
468,Revenue,CCHD,Bed Purchasing - Elderly - South,Permanent Residential,Collingwood Residential Home,1309.24, 13-May-2014
469,Revenue,CCHD,Bed Purchasing - Elderly - South,Permanent Residential,Collingwood Residential Home,1427.48, 13-May-2014
470,Revenue,CCHD,Bed Purchasing - Elderly - South,Permanent Residential,Collingwood Residential Home,1448.60, 13-May-2014
471,Revenue,CCHD,Bed Purchasing - Elderly MH - South,Permanent Residential,Collingwood Residential Home,1323.04, 13-May-2014
472,Revenue,CCHD,Bed Purchasing - Elderly - South,Permanent Residential,Collingwood Residential Home,1199.84, 13-May-2014
473,Revenue,CCHD,Bed Purchasing - Elderly - South,Permanent Residential,Collingwood Residential Home,1280.20, 13-May-2014
474,Revenue,CCHD,Bed Purchasing - Elderly - South,Permanent Residential,Collingwood Residential Home,1423.20, 13-May-2014
475,Revenue,CCHD,DAT Treatment,Other Supplies & Services,Coniston Medical Practice,914.00, 13-May-2014
476,Revenue,CCHD,Bed and Breakfast,Bed & Breakfast,Connolly & Callaghan Limited,648.90, 02-May-2014
477,Revenue,CCHD,Bed and Breakfast,Bed & Breakfast,Connolly & Callaghan Limited,648.90, 02-May-2014
478,Revenue,CCHD,Bed and Breakfast,Bed & Breakfast,Connolly & Callaghan Limited,428.40, 02-May-2014
479,Revenue,CCHD,Bed and Breakfast,Bed & Breakfast,Connolly & Callaghan Limited,428.40, 02-May-2014
480,Revenue,CCHD,Bed and Breakfast,Bed & Breakfast,Connolly & Callaghan Limited,459.90, 06-May-2014
481,Revenue,CCHD,Bed and Breakfast,Bed & Breakfast,Connolly & Callaghan Limited,648.90, 06-May-2014
482,Revenue,CCHD,Bed and Breakfast,Bed & Breakfast,Connolly & Callaghan Limited,648.90, 06-May-2014
483,Revenue,CCHD,Bed and Breakfast,Bed & Breakfast,Connolly & Callaghan Limited,428.40, 06-May-2014
484,Revenue,CCHD,Bed and Breakfast,Bed & Breakfast,Connolly & Callaghan Limited,428.40, 07-May-2014
485,Revenue,CCHD,Bed and Breakfast,Bed & Breakfast,Connolly & Callaghan Limited,459.90, 16-May-2014
486,Revenue,CCHD,Bed and Breakfast,Bed & Breakfast,Connolly & Callaghan Limited,648.90, 13-May-2014
487,Revenue,CCHD,Bed and Breakfast,Bed & Breakfast,Connolly & Callaghan Limited,459.90, 16-May-2014
488,Revenue,CCHD,Bed and Breakfast,Bed & Breakfast,Connolly & Callaghan Limited,648.90, 13-May-2014
489,Revenue,CCHD,Bed and Breakfast,Bed & Breakfast,Connolly & Callaghan Limited,428.40, 13-May-2014
490,Revenue,CCHD,Bed and Breakfast,Bed & Breakfast,Connolly & Callaghan Limited,428.40, 13-May-2014
491,Revenue,CCHD,Bed and Breakfast,Bed & Breakfast,Connolly & Callaghan Limited,459.90, 21-May-2014
492,Revenue,CCHD,Bed and Breakfast,Bed & Breakfast,Connolly & Callaghan Limited,648.90, 13-May-2014
493,Revenue,CCHD,Bed and Breakfast,Bed & Breakfast,Connolly & Callaghan Limited,459.90, 21-May-2014
494,Revenue,CCHD,Bed and Breakfast,Bed & Breakfast,Connolly & Callaghan Limited,428.40, 13-May-2014
495,Revenue,CCHD,Bed and Breakfast,Bed & Breakfast,Connolly & Callaghan Limited,428.40, 13-May-2014
496,Revenue,CCHD,Bed Purchasing - Frenchay Hospital,Permanent Residential,Coombs Wood House,965.00, 13-May-2014
497,Revenue,CCHD,DAT Treatment,Other Supplies & Services,Courtside Surgery,1624.00, 13-May-2014
498,Revenue,CCHD,Bed Purchasing - S28A - Over 65- North,Permanent Residential,Cream Ii Ltd  Longrun House,8039.76, 13-May-2014
499,Revenue,CCHD,Bed Purchasing - Under 65s PWLD - South,Permanent Residential,Cream Ii Ltd  Longrun House,5628.52, 13-May-2014
500,Revenue,CCHD,Bed purchasing -S28A  Under 65 - North,Permanent Residential,Creedy Court,9290.24, 13-May-2014
501,Revenue,CCHD,Bed Purchasing - S28A - Over 65- North,Permanent Residential,Creedy Court,7726.88, 13-May-2014
502,Revenue,CCHD,Bed Purchasing - Under 65s PWLD - South,Permanent Residential,Daneswood,11009.48, 13-May-2014
503,Revenue,CCHD,Bed purchasing - Under 65s PWLD - North,Permanent Residential,Daneswood,9114.88, 13-May-2014
504,Revenue,CCHD,Bed Purchasing - PWLD S 117 Placements,Permanent Nursing,Danshell Healthcare Group,11529.00, 13-May-2014
505,Revenue,CCHD,Learning Difficulties PSL,Other Supplies & Services,Darren Bush,2016.44, 22-May-2014
506,Revenue,CCHD,Training - Adult Services,Training Expenses,Denise Hope,750.00, 01-May-2014
507,Revenue,CCHD,Bed Purchasing - Under 65s PWLD - South,Permanent Residential,Devon & Cornwall Autistic Community Trus,8796.92, 13-May-2014
508,Revenue,CCHD,Home Care - Elderly - South,Other Small Contracts,Dhek Bhal,406.56, 01-May-2014
509,Revenue,CCHD,Home Care - Elderly - North,Other Small Contracts,Dhek Bhal,154.88, 01-May-2014
510,Revenue,CCHD,Home Care - Elderly - South,Other Small Contracts,Dhek Bhal,532.40, 01-May-2014
511,Revenue,CCHD,Home Care - Elderly - North,Other Small Contracts,Dhek Bhal,72.60, 01-May-2014
512,Revenue,CCHD,Home Care - Elderly - South,Other Small Contracts,Dhek Bhal,411.40, 13-May-2014
513,Revenue,CCHD,Home Care - Elderly - North,Other Small Contracts,Dhek Bhal,154.88, 13-May-2014
514,Revenue,CCHD,Home Care - Elderly - South,Other Small Contracts,Dhek Bhal,522.72, 16-May-2014
515,Revenue,CCHD,Home Care - Elderly - North,Other Small Contracts,Dhek Bhal,193.60, 16-May-2014
516,Revenue,CCHD,Home Care - Elderly - South,Other Small Contracts,Dhek Bhal,406.56, 21-May-2014
517,Revenue,CCHD,Home Care - Elderly - North,Other Small Contracts,Dhek Bhal,208.12, 21-May-2014
518,Revenue,CCHD,Home Care - Elderly - South,Other Small Contracts,Dhek Bhal,527.56, 29-May-2014
519,Revenue,CCHD,Home Care - Elderly - North,Other Small Contracts,Dhek Bhal,198.44, 29-May-2014
520,Revenue,CCHD,Bed Purchasing - Under 65s PWLD - South,Permanent Residential,Dimensions (Uk),4880.00, 13-May-2014
521,Revenue,CCHD,Supported Living - South,Private & Voluntary Home Care,Dimensions (UK) Ltd,7748.40, 21-May-2014
522,Revenue,CCHD,Supported Living - South,Private & Voluntary Home Care,Dimensions (UK) Ltd,7748.40, 28-May-2014
523,Revenue,CCHD,Training - Adult Services,Training Expenses,Distance Learning College & Training,2086.00, 02-May-2014
524,Revenue,CCHD,Home Care - Elderly - South,Other Small Contracts,DoCare Ltd,4788.00, 06-May-2014
525,Revenue,CCHD,Home Care - Elderly - North,One-off Planned Direct Payment,DoCare Ltd,104.50, 06-May-2014
526,Revenue,CCHD,Home Care - Elderly - North,Other Small Contracts,DoCare Ltd,7956.25, 06-May-2014
527,Revenue,CCHD,Day Care - North,Private & Voluntary Day Care,DoCare Ltd,76.00, 06-May-2014
528,Revenue,CCHD,Home Care - Elderly - South,Other Small Contracts,DoCare Ltd,4788.00, 06-May-2014
529,Revenue,CCHD,Home Care - Elderly - North,One-off Planned Direct Payment,DoCare Ltd,104.50, 06-May-2014
530,Revenue,CCHD,Home Care - Elderly - North,Other Small Contracts,DoCare Ltd,8027.50, 06-May-2014
531,Revenue,CCHD,Day Care - North,Private & Voluntary Day Care,DoCare Ltd,76.00, 06-May-2014
532,Revenue,CCHD,Home Care - Elderly - South,Other Small Contracts,DoCare Ltd,4712.01, 06-May-2014
533,Revenue,CCHD,Home Care - Elderly - North,One-off Planned Direct Payment,DoCare Ltd,104.50, 06-May-2014
534,Revenue,CCHD,Home Care - Elderly - North,Other Small Contracts,DoCare Ltd,8122.50, 06-May-2014
535,Revenue,CCHD,Day Care - North,Private & Voluntary Day Care,DoCare Ltd,76.00, 06-May-2014
536,Revenue,CCHD,Home Care - Elderly - South,Other Small Contracts,DoCare Ltd,4412.75, 29-May-2014
537,Revenue,CCHD,Home Care - Elderly - North,One-off Planned Direct Payment,DoCare Ltd,104.50, 29-May-2014
538,Revenue,CCHD,Home Care - Elderly - North,Other Small Contracts,DoCare Ltd,7994.25, 29-May-2014
539,Revenue,CCHD,Day Care - North,Private & Voluntary Day Care,DoCare Ltd,76.00, 29-May-2014
540,Revenue,CCHD,Home Care - Elderly - South,Other Small Contracts,DoCare Ltd,4346.26, 29-May-2014
541,Revenue,CCHD,Home Care - Elderly - North,One-off Planned Direct Payment,DoCare Ltd,104.50, 29-May-2014
542,Revenue,CCHD,Home Care - Elderly - North,Other Small Contracts,DoCare Ltd,8003.75, 29-May-2014
543,Revenue,CCHD,Day Care - North,Private & Voluntary Day Care,DoCare Ltd,76.00, 29-May-2014
544,Revenue,CCHD,Home Care - Elderly - South,Other Small Contracts,DoCare Ltd,4408.00, 29-May-2014
545,Revenue,CCHD,Home Care - Elderly - North,One-off Planned Direct Payment,DoCare Ltd,104.50, 29-May-2014
546,Revenue,CCHD,Home Care - Elderly - North,Other Small Contracts,DoCare Ltd,8165.25, 29-May-2014
547,Revenue,CCHD,Day Care - North,Private & Voluntary Day Care,DoCare Ltd,76.00, 29-May-2014
548,Revenue,CCHD,Home Care - Elderly - South,Other Small Contracts,DoCare Ltd,4161.01, 30-May-2014
549,Revenue,CCHD,Home Care - Elderly - North,One-off Planned Direct Payment,DoCare Ltd,109.25, 30-May-2014
550,Revenue,CCHD,Home Care - Elderly - North,Other Small Contracts,DoCare Ltd,8165.25, 30-May-2014
551,Revenue,CCHD,Day Care - North,Private & Voluntary Day Care,DoCare Ltd,76.00, 30-May-2014
552,Revenue,CCHD,DAT Treatment,Other Supplies & Services,Dr Norman,2436.00, 13-May-2014
553,Revenue,CCHD,DAT Treatment,Other Supplies & Services,Dr P Taylor & Partners,1320.00, 13-May-2014
554,Revenue,CCHD,DAT Treatment,Other Supplies & Services,Dr Robertson,1218.00, 13-May-2014
555,Revenue,CCHD,DAT Treatment,Other Supplies & Services,Dr W J Foubister & Partners,711.00, 12-May-2014
556,Revenue,CCHD,Bed Purchasing - Under 65s PWLD - South,Permanent Residential,Dudbridge House,6643.52, 13-May-2014
557,Revenue,CCHD,MH Purchasing - Younger,Permanent Residential,Dunraven House,1854.32, 13-May-2014
558,Revenue,CCHD,Bed and Breakfast,Bed & Breakfast,E J Bartlett,434.00, 07-May-2014
559,Revenue,CCHD,Bed and Breakfast,Bed & Breakfast,E J Bartlett,434.00, 13-May-2014
560,Revenue,CCHD,Bed and Breakfast,Bed & Breakfast,E J Bartlett,434.00, 20-May-2014
561,Revenue,CCHD,Bed and Breakfast,Bed & Breakfast,E J Bartlett,465.00, 28-May-2014
562,Revenue,CCHD,Bed and Breakfast,Bed & Breakfast,E J Bartlett,434.00, 28-May-2014
563,Revenue,CCHD,Bed purchasing - Under 65s PWLD - North,Permanent Residential,East Court,2213.44, 13-May-2014
564,Revenue,CCHD,Day Care - South,Private & Voluntary Day Care,Easton Community Centre,520.56, 13-May-2014
565,Revenue,CCHD,Day Care - South,Private & Voluntary Day Care,Easton Community Centre,520.56, 13-May-2014
566,Revenue,CCHD,Younger MH non-res purchasing,Private & Voluntary Day Care,Easton Community Centre,520.56, 13-May-2014
567,Revenue,CCHD,Day Care - South,Private & Voluntary Day Care,Easton Community Centre,520.56, 13-May-2014
568,Revenue,CCHD,Bed Purchasing - S28A - Over 65- North,Permanent Residential,Eclipse Office Park,2653.24, 13-May-2014
569,Revenue,CCHD,Bed Purchasing - Elderly - South,Permanent Residential,Eclipse Office Park,1429.36, 13-May-2014
570,Revenue,CCHD,Bed Purchasing - Under 65s PWLD - South,Permanent Residential,Eclipse Office Park,5681.84, 13-May-2014
571,Revenue,CCHD,Bed purchasing - Elderly PWLD - North,Permanent Residential,Eclipse Office Park,3423.28, 13-May-2014
572,Revenue,CCHD,Bed Purchasing - Under 65s PWLD - South,Permanent Residential,Eclipse Office Park,4867.92, 13-May-2014
573,Revenue,CCHD,Bed Purchasing - Under 65s PWLD - South,Permanent Residential,Eclipse Office Park,5442.48, 13-May-2014
574,Revenue,CCHD,Bed Purchasing - Under 65s PWLD - South,Permanent Nursing,Eclipse Office Park,2818.52, 13-May-2014
575,Revenue,CCHD,Bed purchasing - Elderly MH - North,Permanent Nursing,Eclipse Office Park,1447.24, 13-May-2014
576,Revenue,CCHD,Section 117 Placements MH Younger,Permanent Nursing,Eclipse Office Park,585.46, 13-May-2014
577,Revenue,CCHD,Bed Purchasing - Elderly MH - South,Permanent Residential,Eclipse Office Park,3605.96, 13-May-2014
578,Revenue,CCHD,Bed purchasing - Elderly S117 - South,Permanent Nursing,Eclipse Office Park,1992.00, 13-May-2014
579,Revenue,CCHD,Section 117 Placements MH Younger,Permanent Residential,Eclipse Office Park,1356.00, 13-May-2014
580,Revenue,CCHD,Bed purchasing - Elderly S117 - South,Permanent Nursing,Eclipse Office Park,1992.00, 13-May-2014
581,Revenue,CCHD,Bed Purchasing - Elderly - South,Permanent Nursing,Eclipse Office Park,1431.72, 13-May-2014
582,Revenue,CCHD,Bed Purchasing - Elderly - North,Permanent Nursing,Eclipse Office Park,1117.06, 13-May-2014
583,Revenue,CCHD,Bed purchasing - Elderly PWLD - South,Permanent Residential,Eclipse Office Park,4125.12, 13-May-2014
584,Revenue,CCHD,Bed Purchasing - Under 65s PWLD - South,Permanent Nursing,Eclipse Office Park,5411.96, 13-May-2014
585,Revenue,CCHD,Bed purchasing -S28A  Under 65 - North,Permanent Residential,Eclipse Office Park,5334.12, 13-May-2014
586,Revenue,CCHD,Bed purchasing - S28A Under 65 - South,Permanent Residential,Eclipse Office Park,5527.88, 13-May-2014
587,Revenue,CCHD,Bed Purchasing - Elderly MH - South,Permanent Residential,Eclipse Office Park,1302.92, 13-May-2014
588,Revenue,CCHD,Bed Purchasing - Under 65s PWLD - South,Permanent Residential,Eclipse Office Park,5018.44, 13-May-2014
589,Revenue,CCHD,Bed Purchasing - Under 65s PWLD - South,Permanent Residential,Eclipse Office Park,1726.73, 13-May-2014
590,Revenue,CCHD,Bed Purchasing - Under 65s PWLD - South,Permanent Residential,Eclipse Office Park,5507.16, 13-May-2014
591,Revenue,CCHD,Bed purchasing - S28A Under 65 - South,Permanent Nursing,Eclipse Office Park,7294.32, 13-May-2014
592,Revenue,CCHD,MH Purchasing - Younger,Permanent Residential,Eclipse Office Park,860.20, 13-May-2014
593,Revenue,CCHD,Bed purchasing - Elderly PWLD - South,Permanent Residential,Eclipse Office Park,5124.60, 13-May-2014
594,Revenue,CCHD,Bed purchasing - Elderly PWLD - South,Permanent Residential,Eclipse Office Park,3877.68, 13-May-2014
595,Revenue,CCHD,Bed purchasing - Elderly PWLD - North,Permanent Residential,Eclipse Office Park,3010.44, 13-May-2014
596,Revenue,CCHD,Bed purchasing -S28A  Under 65 - North,Permanent Residential,Eclipse Office Park,5258.04, 13-May-2014
597,Revenue,CCHD,Bed purchasing -S28A  Under 65 - North,Permanent Residential,Eclipse Office Park,7058.72, 13-May-2014
598,Revenue,CCHD,Bed purchasing -S28A  Under 65 - North,Permanent Nursing,Eclipse Office Park,6244.88, 13-May-2014
599,Revenue,CCHD,Bed Purchasing - Under 65s PWLD - South,Permanent Residential,Eclipse Office Park,4515.52, 13-May-2014
600,Revenue,CCHD,Bed Purchasing - Elderly - South,Permanent Residential,Eclipse Office Park,3210.16, 13-May-2014
601,Revenue,CCHD,Bed purchasing -S28A  Under 65 - North,Permanent Residential,Eclipse Office Park,6755.12, 13-May-2014
602,Revenue,CCHD,Bed purchasing - S28A Under 65 - South,Permanent Residential,Eclipse Office Park,4525.88, 13-May-2014
603,Revenue,CCHD,Bed Purchasing - S28A - Over 65- North,Permanent Residential,Eclipse Office Park,6604.52, 13-May-2014
604,Revenue,CCHD,Bed Purchasing - LD S28A- Over 65- South,Permanent Residential,Eclipse Office Park,4176.64, 13-May-2014
605,Revenue,CCHD,Bed purchasing -S28A  Under 65 - North,Permanent Residential,Eclipse Office Park,7058.72, 13-May-2014
606,Revenue,CCHD,Bed purchasing -S28A  Under 65 - North,Permanent Residential,Eclipse Office Park,7058.72, 13-May-2014
607,Revenue,CCHD,Bed Purchasing - LD S28A- Over 65- South,Permanent Residential,Eclipse Office Park,4098.32, 13-May-2014
608,Revenue,CCHD,Bed purchasing - S28A Under 65 - South,Permanent Residential,Eclipse Office Park,4867.92, 13-May-2014
609,Revenue,CCHD,Bed purchasing - S28A Under 65 - South,Permanent Residential,Eclipse Office Park,4761.36, 13-May-2014
610,Revenue,CCHD,Bed purchasing - S28A Under 65 - South,Permanent Residential,Eclipse Office Park,3663.96, 13-May-2014
611,Revenue,CCHD,Bed Purchasing - LD S28A- Over 65- South,Permanent Residential,Eclipse Office Park,5091.12, 13-May-2014
612,Revenue,CCHD,Bed Purchasing - LD S28A- Over 65- South,Permanent Residential,Eclipse Office Park,5031.12, 13-May-2014
613,Revenue,CCHD,Bed Purchasing - LD S28A- Over 65- South,Permanent Residential,Eclipse Office Park,5187.16, 13-May-2014
614,Revenue,CCHD,Bed Purchasing - LD S28A- Over 65- South,Permanent Residential,Eclipse Office Park,4353.28, 13-May-2014
615,Revenue,CCHD,Bed Purchasing - LD S28A- Over 65- South,Permanent Residential,Eclipse Office Park,5170.20, 13-May-2014
616,Revenue,CCHD,Bed purchasing -S28A  Under 65 - North,Permanent Residential,Eclipse Office Park,1015.34, 13-May-2014
617,Revenue,CCHD,Bed purchasing -S28A  Under 65 - North,Permanent Nursing,Eclipse Office Park,6328.12, 13-May-2014
618,Revenue,CCHD,Bed Purchasing - LD S28A- Over 65- South,Permanent Residential,Eclipse Office Park,6829.23, 13-May-2014
619,Revenue,CCHD,Section 117 Placements MH Younger,Permanent Residential,Eclipse Office Park,1356.00, 13-May-2014
620,Revenue,CCHD,Bed purchasing - Elderly MH - North,Permanent Residential,Eclipse Office Park,860.20, 13-May-2014
621,Revenue,CCHD,Bed purchasing - S28A Under 65 - South,Permanent Residential,Eclipse Office Park,5415.92, 13-May-2014
622,Revenue,CCHD,Bed purchasing - Elderly PWLD - North,Permanent Residential,Eclipse Office Park,4307.44, 13-May-2014
623,Revenue,CCHD,Bed purchasing - Elderly MH - North,Permanent Nursing,Eclipse Office Park,1104.48, 13-May-2014
624,Revenue,CCHD,Bed Purchasing - Under 65s PWLD - South,Permanent Residential,Eclipse Office Park,4271.52, 13-May-2014
625,Revenue,CCHD,Bed Purchasing - Under 65s PWLD - South,Permanent Residential,Eclipse Office Park,3203.64, 13-May-2014
626,Revenue,CCHD,Bed purchasing -S28A  Under 65 - North,Permanent Residential,Eclipse Office Park,5675.56, 13-May-2014
627,Revenue,CCHD,Bed Purchasing - S28A - Over 65- North,Permanent Residential,Eclipse Office Park,3599.08, 13-May-2014
628,Revenue,CCHD,Bed Purchasing - Elderly S117- North,Permanent Residential,Eclipse Office Park,1756.00, 13-May-2014
629,Revenue,CCHD,MH Purchasing - Younger,Permanent Residential,Eclipse Office Park,1036.60, 13-May-2014
630,Revenue,CCHD,Bed Purchasing - S28A - Over 65- North,Permanent Residential,Eclipse Office Park,5625.48, 13-May-2014
631,Revenue,CCHD,Bed Purchasing - LD S28A- Over 65- South,Permanent Residential,Eclipse Office Park,3882.08, 13-May-2014
632,Revenue,CCHD,Bed purchasing - S28A Under 65 - South,Permanent Residential,Eclipse Office Park,5471.56, 13-May-2014
633,Revenue,CCHD,Bed purchasing - S28A Under 65 - South,Permanent Nursing,Eclipse Office Park,5364.24, 13-May-2014
634,Revenue,CCHD,Bed Purchasing - LD S28A- Over 65- South,Permanent Nursing,Eclipse Office Park,5225.52, 13-May-2014
635,Revenue,CCHD,Bed Purchasing - LD S28A- Over 65- South,Permanent Residential,Eclipse Office Park,4802.88, 13-May-2014
636,Revenue,CCHD,Bed Purchasing - LD S28A- Over 65- South,Permanent Residential,Eclipse Office Park,4524.76, 13-May-2014
637,Revenue,CCHD,Bed Purchasing - LD S28A- Over 65- South,Permanent Residential,Eclipse Office Park,4599.84, 13-May-2014
638,Revenue,CCHD,Bed Purchasing - LD S28A- Over 65- South,Permanent Residential,Eclipse Office Park,3449.88, 13-May-2014
639,Revenue,CCHD,Bed purchasing - S28A Under 65 - South,Permanent Residential,Eclipse Office Park,7163.68, 13-May-2014
640,Revenue,CCHD,Bed Purchasing - LD S28A- Over 65- South,Permanent Residential,Eclipse Office Park,4667.16, 13-May-2014
641,Revenue,CCHD,Bed Purchasing - S28A - Over 65- North,Permanent Residential,Eclipse Office Park,4750.44, 13-May-2014
642,Revenue,CCHD,Bed Purchasing - Elderly S117- North,Permanent Nursing,Eclipse Office Park,1816.00, 13-May-2014
643,Revenue,CCHD,Bed Purchasing - S28A - Over 65- North,Permanent Residential,Eclipse Office Park,4588.52, 13-May-2014
644,Revenue,CCHD,Bed Purchasing - S28A - Over 65- North,Permanent Residential,Eclipse Office Park,4759.28, 13-May-2014
645,Revenue,CCHD,Bed purchasing - S28A Under 65 - South,Permanent Residential,Eclipse Office Park,4756.28, 13-May-2014
646,Revenue,CCHD,Bed Purchasing - S28A - Over 65- North,Permanent Residential,Eclipse Office Park,4503.16, 13-May-2014
647,Revenue,CCHD,Bed purchasing -S28A  Under 65 - North,Permanent Residential,Eclipse Office Park,7058.72, 13-May-2014
648,Revenue,CCHD,Bed Purchasing - Elderly - North,Permanent Residential,Eclipse Office Park,4276.19, 13-May-2014
649,Revenue,CCHD,Bed Purchasing - S28A - Over 65- North,Permanent Residential,Eclipse Office Park,3133.72, 13-May-2014
650,Revenue,CCHD,Bed Purchasing - S28A - Over 65- North,Permanent Residential,Eclipse Office Park,3266.96, 13-May-2014
651,Revenue,CCHD,Bed purchasing - Under 65s PWLD - North,Permanent Residential,Eclipse Office Park,6773.16, 13-May-2014
652,Revenue,CCHD,Bed Purchasing - Elderly - South,Permanent Residential,Eclipse Office Park,1318.68, 13-May-2014
653,Revenue,CCHD,MH Purchasing - Younger,Permanent Nursing,Eclipse Office Park,937.76, 13-May-2014
654,Revenue,CCHD,MH Purchasing - Younger,Permanent Nursing,Eclipse Office Park,952.20, 13-May-2014
655,Revenue,CCHD,Bed purchasing - Elderly PWLD - South,Permanent Residential,Eclipse Office Park,3254.24, 13-May-2014
656,Revenue,CCHD,Bed purchasing - S28A Under 65 - South,Permanent Residential,Eclipse Office Park,5919.12, 13-May-2014
657,Revenue,CCHD,Bed purchasing - S28A Under 65 - South,Permanent Residential,Eclipse Office Park,6010.16, 13-May-2014
658,Revenue,CCHD,Bed Purchasing - LD S28A- Over 65- South,Permanent Residential,Eclipse Office Park,4353.28, 13-May-2014
659,Revenue,CCHD,Bed Purchasing - Under 65s PWLD - South,Permanent Residential,Eclipse Office Park,5919.52, 13-May-2014
660,Revenue,CCHD,Bed Purchasing - LD S28A- Over 65- South,Permanent Nursing,Eclipse Office Park,4528.36, 13-May-2014
661,Revenue,CCHD,Bed Purchasing - LD S28A- Over 65- South,Permanent Nursing,Eclipse Office Park,9144.66, 13-May-2014
662,Revenue,CCHD,Bed Purchasing - LD S28A- Over 65- South,Permanent Residential,Eclipse Office Park,3609.44, 13-May-2014
663,Revenue,CCHD,Bed Purchasing - LD S28A- Over 65- South,Permanent Residential,Eclipse Office Park,4343.36, 13-May-2014
664,Revenue,CCHD,Bed Purchasing - LD S28A- Over 65- South,Permanent Residential,Eclipse Office Park,5953.36, 13-May-2014
665,Revenue,CCHD,Bed Purchasing - Elderly MH - South,Permanent Residential,Eclipse Office Park,1224.16, 13-May-2014
666,Revenue,CCHD,Bed purchasing -S28A  Under 65 - North,Permanent Nursing,Eclipse Office Park,7675.92, 13-May-2014
667,Revenue,CCHD,Bed Purchasing - Under 65s PWLD - South,Permanent Residential,Eclipse Office Park,5205.60, 13-May-2014
668,Revenue,CCHD,Bed Purchasing - Elderly S117- North,Permanent Nursing,Eclipse Office Park,1992.00, 13-May-2014
669,Revenue,CCHD,Section 117 Placements MH Younger,Permanent Residential,Eclipse Office Park,1356.00, 13-May-2014
670,Revenue,CCHD,Bed purchasing - Elderly PWLD - South,Permanent Nursing,Eclipse Office Park,3389.36, 13-May-2014
671,Revenue,CCHD,Bed Purchasing - Elderly - South,Permanent Residential,Eclipse Office Park,3389.48, 13-May-2014
672,Revenue,CCHD,Bed Purchasing - LD S28A- Over 65- South,Permanent Nursing,Eclipse Office Park,2981.68, 13-May-2014
673,Revenue,CCHD,Bed Purchasing - LD S28A- Over 65- South,Permanent Nursing,Eclipse Office Park,2767.44, 13-May-2014
674,Revenue,CCHD,Bed Purchasing - S28A - Over 65- North,Permanent Nursing,Eclipse Office Park,3700.72, 13-May-2014
675,Revenue,CCHD,Bed Purchasing - S28A - Over 65- North,Permanent Nursing,Eclipse Office Park,3716.72, 13-May-2014
676,Revenue,CCHD,MH Purchasing - Younger,Respite Planned - Residential,Eclipse Office Park,3734.48, 13-May-2014
677,Revenue,CCHD,Bed Purchasing - Elderly - South,Permanent Residential,Edgecumbe Lodge,1533.80, 13-May-2014
678,Revenue,CCHD,Bed Purchasing - Southmead Hospital,Permanent Residential,Edgecumbe Lodge,1260.20, 13-May-2014
679,Revenue,CCHD,Bed Purchasing - Elderly - South,Permanent Residential,Edgecumbe Lodge,1056.36, 13-May-2014
680,Revenue,CCHD,Bed Purchasing - Elderly - South,Permanent Residential,Edgecumbe Lodge,1453.32, 13-May-2014
681,Revenue,CCHD,Bed Purchasing - Southmead Hospital,Permanent Residential,Edgecumbe Lodge,2131.08, 13-May-2014
682,Revenue,CCHD,Bed Purchasing - Elderly - South,Permanent Residential,Edgecumbe Lodge,1427.00, 13-May-2014
683,Revenue,CCHD,Bed Purchasing - Southmead Hospital,Permanent Residential,Edgecumbe Lodge,1533.80, 13-May-2014
684,Revenue,CCHD,Bed Purchasing - Elderly - South,Permanent Residential,Edgecumbe Lodge,1141.04, 13-May-2014
685,Revenue,CCHD,Bed Purchasing - Elderly - South,Permanent Residential,Edgecumbe Lodge,1286.84, 13-May-2014
686,Revenue,CCHD,Bed Purchasing - Frenchay Hospital,Permanent Residential,Edgecumbe Lodge,817.40, 13-May-2014
687,Revenue,CCHD,Bed Purchasing - Frenchay Hospital,Permanent Residential,Edgecumbe Lodge,1070.20, 13-May-2014
688,Revenue,CCHD,Bed Purchasing - Elderly - South,Permanent Residential,Edgecumbe Lodge,1231.12, 13-May-2014
689,Revenue,CCHD,Bed purchasing - Elderly MH - North,Permanent Residential,Edgecumbe Lodge,1127.53, 13-May-2014
690,Revenue,CCHD,Bed purchasing - Elderly MH - North,Permanent Residential,Edgecumbe Lodge,741.54, 13-May-2014
691,Revenue,CCHD,Bed Purchasing - Southmead Hospital,Permanent Residential,Edgemont House Ltd,1432.20, 13-May-2014
692,Revenue,CCHD,Bed Purchasing - Elderly - South,Permanent Residential,Edgemont House Ltd,1472.92, 13-May-2014
693,Revenue,CCHD,Bed Purchasing - Elderly - South,Permanent Residential,Edgemont House Ltd,1260.20, 13-May-2014
694,Revenue,CCHD,Bed Purchasing - Elderly - South,Permanent Residential,Edgemont House Ltd,1260.20, 13-May-2014
695,Revenue,CCHD,Bed Purchasing - Elderly - South,Permanent Residential,Edgemont House Ltd,1430.32, 13-May-2014
696,Revenue,CCHD,Bed Purchasing - Elderly - South,Permanent Residential,Edgemont House Ltd,1286.96, 13-May-2014
697,Revenue,CCHD,South Glos Users in South Glos Homes,Permanent Nursing,Edgemont View Nursing Home,533.27, 13-May-2014
698,Revenue,CCHD,Bed Purchasing - Elderly - North,Permanent Nursing,Edgemont View Nursing Home,1217.24, 13-May-2014
699,Revenue,CCHD,Bed Purchasing - Elderly - South,Permanent Nursing,Edgemont View Nursing Home,1445.88, 13-May-2014
700,Revenue,CCHD,Bed Purchasing - Elderly - South,Permanent Nursing,Edgemont View Nursing Home,1320.20, 13-May-2014
701,Revenue,CCHD,Bed Purchasing - Elderly - South,Permanent Nursing,Edgemont View Nursing Home,1634.80, 13-May-2014
702,Revenue,CCHD,Bed Purchasing - Elderly - South,Permanent Nursing,Edgemont View Nursing Home,1196.68, 13-May-2014
703,Revenue,CCHD,Training - Adult Services,Training Expenses,Eils/Scils,3150.00, 30-May-2014
704,Revenue,CCHD,Planning and Partnerships procurement,Other Supplies & Services,Eldercare,1431.72, 02-May-2014
705,Revenue,CCHD,Planning and Partnerships procurement,Other Supplies & Services,Eldercare,1443.36, 02-May-2014
706,Revenue,CCHD,Planning and Partnerships procurement,Other Supplies & Services,Eldercare,1464.70, 02-May-2014
707,Revenue,CCHD,Supporting People Programme,Grants to Voluntary Bodies,Elim Housing Association Limited,5018.50, 01-May-2014
708,Revenue,CCHD,Supporting People Programme,Grants to Voluntary Bodies,Elim Housing Association Limited,5018.50, 30-May-2014
709,Revenue,CCHD,Home Care - Elderly - South,Other Small Contracts,Elite Home Care Ltd,6804.09, 08-May-2014
710,Revenue,CCHD,Home Care - Elderly - South,Other Small Contracts,Elite Home Care Ltd,6131.11, 08-May-2014
711,Revenue,CCHD,Home Care - Elderly - South,Other Small Contracts,Elite Home Care Ltd,5060.46, 08-May-2014
712,Revenue,CCHD,Home Care - Elderly - North,Other Small Contracts,Elite Home Care Ltd,332.12, 08-May-2014
713,Revenue,CCHD,Home Care - Elderly - South,Other Small Contracts,Elite Home Care Ltd,5244.00, 22-May-2014
714,Revenue,CCHD,Home Care - Elderly - North,Other Small Contracts,Elite Home Care Ltd,332.12, 22-May-2014
715,Revenue,CCHD,Home Care - Elderly - South,Other Small Contracts,Elite Home Care Ltd,5833.95, 22-May-2014
716,Revenue,CCHD,Home Care - Elderly - North,Other Small Contracts,Elite Home Care Ltd,332.12, 22-May-2014
717,Revenue,CCHD,Home Care - Elderly - South,Other Small Contracts,Elite Home Care Ltd,5650.41, 22-May-2014
718,Revenue,CCHD,Home Care - Elderly - North,Other Small Contracts,Elite Home Care Ltd,332.12, 22-May-2014
719,Revenue,CCHD,Bed Purchasing - Elderly - South,Permanent Residential,Elmbridge Residential Home Ltd,1338.08, 13-May-2014
720,Revenue,CCHD,Bed Purchasing - Frenchay Hospital,Permanent Nursing,Elmwood Nursing Home,2248.80, 13-May-2014
721,Revenue,CCHD,DAT Treatment,Other Supplies & Services,Emersons Green Medical Centre,812.00, 12-May-2014
722,Revenue,CCHD,Day Care - South,Private & Voluntary Day Care,Enham,638.72, 20-May-2014
723,Revenue,CCHD,Home Care - Elderly - South,Other Small Contracts,Everycare (Bristol) Ltd,5274.25, 23-May-2014
724,Revenue,CCHD,Home Care - Elderly - North,Other Small Contracts,Everycare (Bristol) Ltd,2728.50, 23-May-2014
725,Revenue,CCHD,Day Care - South,Private & Voluntary Day Care,Everycare (Bristol) Ltd,97.75, 23-May-2014
726,Revenue,CCHD,Under 65s -MH  Home Care Purch,Other Small Contracts,Everycare (Bristol) Ltd,93.50, 23-May-2014
727,Revenue,CCHD,Home Care - Elderly - South,Other Small Contracts,Everycare (Bristol) Ltd,5094.77, 23-May-2014
728,Revenue,CCHD,Home Care - Elderly - North,Other Small Contracts,Everycare (Bristol) Ltd,2779.50, 23-May-2014
729,Revenue,CCHD,Day Care - South,Private & Voluntary Day Care,Everycare (Bristol) Ltd,93.50, 23-May-2014
730,Revenue,CCHD,Under 65s -MH  Home Care Purch,Other Small Contracts,Everycare (Bristol) Ltd,89.25, 23-May-2014
731,Revenue,CCHD,Home Care - Elderly - South,Other Small Contracts,Everycare (Bristol) Ltd,5338.00, 27-May-2014
732,Revenue,CCHD,Home Care - Elderly - North,Other Small Contracts,Everycare (Bristol) Ltd,3000.50, 27-May-2014
733,Revenue,CCHD,Day Care - South,Private & Voluntary Day Care,Everycare (Bristol) Ltd,102.00, 27-May-2014
734,Revenue,CCHD,Under 65s -MH  Home Care Purch,Other Small Contracts,Everycare (Bristol) Ltd,85.00, 27-May-2014
735,Revenue,CCHD,Home Care - Elderly - South,Other Small Contracts,Everycare (Bristol) Ltd,5197.75, 30-May-2014
736,Revenue,CCHD,Home Care - Elderly - North,Other Small Contracts,Everycare (Bristol) Ltd,3132.25, 30-May-2014
737,Revenue,CCHD,Day Care - South,Private & Voluntary Day Care,Everycare (Bristol) Ltd,63.75, 30-May-2014
738,Revenue,CCHD,Under 65s -MH  Home Care Purch,Other Small Contracts,Everycare (Bristol) Ltd,85.00, 30-May-2014
739,Revenue,CCHD,Bed Purchasing - Elderly MH - South,Permanent Residential,Exmouth House,1420.84, 13-May-2014
740,Revenue,CCHD,Bed Purchasing - Southmead Hospital,Permanent Residential,Fairfield House Care Home,1474.96, 13-May-2014
741,Revenue,CCHD,Bed Purchasing - Elderly - South,Permanent Nursing,Fairview Court,1186.56, 13-May-2014
742,Revenue,CCHD,Bed Purchasing - Elderly MH - South,Permanent Nursing,Fairview Court,1880.16, 13-May-2014
743,Revenue,CCHD,Bed Purchasing - Elderly MH - South,Permanent Nursing,Fairview Court,1962.56, 13-May-2014
744,Revenue,CCHD,Bed Purchasing - Elderly MH - South,Permanent Residential,Fairview Court,1432.20, 13-May-2014
745,Revenue,CCHD,Bed Purchasing - Elderly - South,Permanent Nursing,Fairview Court,1734.64, 13-May-2014
746,Revenue,CCHD,Bed Purchasing - Elderly - South,Permanent Residential,Fairview Court,2687.76, 13-May-2014
747,Revenue,CCHD,Bed Purchasing - Elderly MH - South,Permanent Nursing,Fairview Court,2001.48, 13-May-2014
748,Revenue,CCHD,Bed Purchasing - Elderly - South,Permanent Nursing,Fairview Court,1858.80, 13-May-2014
749,Revenue,CCHD,Bed Purchasing - Frenchay Hospital,Permanent Nursing,Fairview Court,1860.64, 13-May-2014
750,Revenue,CCHD,Bed Purchasing - Elderly - South,Permanent Nursing,Fairview Court,12864.96, 13-May-2014
751,Revenue,CCHD,Bed Purchasing - Elderly - South,Permanent Nursing,Fairview Court,2054.97, 13-May-2014
752,Revenue,CCHD,Bed Purchasing - Elderly - South,Permanent Residential,Fairview Court,1723.28, 13-May-2014
753,Revenue,CCHD,Bed Purchasing - Elderly MH - South,Permanent Nursing,Fairview Court,1951.44, 13-May-2014
754,Revenue,CCHD,Bed purchasing - Elderly MH - North,Permanent Nursing,Fairview Court,1713.92, 13-May-2014
755,Revenue,CCHD,Bed Purchasing - Elderly - South,Permanent Nursing,Fairview Court Care Home,1126.66, 16-May-2014
756,Revenue,CCHD,Bed Purchasing - Elderly MH - South,Permanent Nursing,Fairview Court Care Home,984.28, 16-May-2014
757,Revenue,CCHD,South Glos Users in South Glos Homes,Permanent Nursing,Fairview Court Care Home,2843.57, 16-May-2014
758,Revenue,CCHD,Bed Purchasing - Elderly MH - South,Permanent Nursing,Fairview Court Care Home,1990.89, 16-May-2014
759,Revenue,CCHD,Bed Purchasing - Frenchay Hospital,Permanent Nursing,Fairview Court Care Home,1473.30, 16-May-2014
760,Revenue,CCHD,Bed purchasing - Elderly S117 - South,Permanent Nursing,Fairview Court Care Home,2520.00, 16-May-2014
761,Revenue,CCHD,S75 CCG Interim Beds,Permanent Nursing,Fairview Court Care Home,6800.00, 16-May-2014
762,Revenue,CCHD,S75 CCG Interim Beds,Permanent Nursing,Fairview Court Care Home,6714.33, 16-May-2014
763,Revenue,CCHD,Bed Purchasing - Elderly - South,Permanent Residential,Fairview House,872.32, 13-May-2014
764,Revenue,CCHD,Bed Purchasing - Elderly - South,Permanent Residential,Fairview House,1287.28, 13-May-2014
765,Revenue,CCHD,Bed Purchasing - Elderly - South,Permanent Residential,Fairview House,936.60, 13-May-2014
766,Revenue,CCHD,Bed purchasing - Elderly S117 - South,Permanent Residential,Fairview House,1916.84, 13-May-2014
767,Revenue,CCHD,Bed Purchasing - Elderly - South,Permanent Residential,Fairview House,721.24, 13-May-2014
768,Revenue,CCHD,Bed Purchasing - Elderly - South,Permanent Residential,Fairview House,1192.92, 13-May-2014
769,Revenue,CCHD,Bed Purchasing - Southmead Hospital,Permanent Residential,Fairview House,1130.96, 13-May-2014
770,Revenue,CCHD,Bed Purchasing - Elderly MH - South,Permanent Residential,Fairview House,1125.84, 13-May-2014
771,Revenue,CCHD,Bed Purchasing - Frenchay Hospital,Permanent Residential,Fairview House,1260.20, 13-May-2014
772,Revenue,CCHD,Bed Purchasing - Southmead Hospital,Permanent Residential,Fairview House,1077.32, 13-May-2014
773,Revenue,CCHD,Bed Purchasing - Elderly MH - South,Permanent Residential,Fairview House,1039.60, 13-May-2014
774,Revenue,CCHD,Bed Purchasing - Frenchay Hospital,Permanent Residential,Faith House,1223.28, 13-May-2014
775,Revenue,CCHD,Bed purchasing - Under 65s PWLD - North,Permanent Residential,Fernbank,7706.00, 13-May-2014
776,Revenue,CCHD,Home Care - Elderly - South,Other Small Contracts,Firstpoint Homecare Ltd,1052.16, 06-May-2014
777,Revenue,CCHD,Home Care - Elderly - North,Other Small Contracts,Firstpoint Homecare Ltd,1819.82, 06-May-2014
778,Revenue,CCHD,Day Care - South,Private & Voluntary Day Care,Firstpoint Homecare Ltd,153.60, 06-May-2014
779,Revenue,CCHD,Day Care - North,Private & Voluntary Day Care,Firstpoint Homecare Ltd,80.64, 06-May-2014
780,Revenue,CCHD,Under 65s -MH  Home Care Purch,Other Small Contracts,Firstpoint Homecare Ltd,46.08, 06-May-2014
781,Revenue,CCHD,Home care - Elderly MH - North,Other Small Contracts,Firstpoint Homecare Ltd,46.08, 06-May-2014
782,Revenue,CCHD,Elderly MH Day Care North,Private & Voluntary Day Care,Firstpoint Homecare Ltd,96.00, 06-May-2014
783,Revenue,CCHD,Home Care - Elderly - South,Other Small Contracts,Firstpoint Homecare Ltd,1386.24, 06-May-2014
784,Revenue,CCHD,Home Care - Elderly - North,Other Small Contracts,Firstpoint Homecare Ltd,2319.68, 06-May-2014
785,Revenue,CCHD,Day Care - South,Private & Voluntary Day Care,Firstpoint Homecare Ltd,153.60, 06-May-2014
786,Revenue,CCHD,Day Care - North,Private & Voluntary Day Care,Firstpoint Homecare Ltd,84.48, 06-May-2014
787,Revenue,CCHD,Under 65s -MH  Home Care Purch,Other Small Contracts,Firstpoint Homecare Ltd,46.08, 06-May-2014
788,Revenue,CCHD,Home care - Elderly MH - North,Other Small Contracts,Firstpoint Homecare Ltd,46.08, 06-May-2014
789,Revenue,CCHD,Elderly MH Day Care North,Private & Voluntary Day Care,Firstpoint Homecare Ltd,92.16, 06-May-2014
790,Revenue,CCHD,Home Care - Elderly - South,Other Small Contracts,Firstpoint Homecare Ltd,1382.40, 30-May-2014
791,Revenue,CCHD,Home Care - Elderly - North,Other Small Contracts,Firstpoint Homecare Ltd,2315.28, 30-May-2014
792,Revenue,CCHD,Day Care - South,Private & Voluntary Day Care,Firstpoint Homecare Ltd,149.76, 30-May-2014
793,Revenue,CCHD,Day Care - North,Private & Voluntary Day Care,Firstpoint Homecare Ltd,88.32, 30-May-2014
794,Revenue,CCHD,Under 65s -MH  Home Care Purch,Other Small Contracts,Firstpoint Homecare Ltd,46.08, 30-May-2014
795,Revenue,CCHD,Home care - Elderly MH - North,Other Small Contracts,Firstpoint Homecare Ltd,46.08, 30-May-2014
796,Revenue,CCHD,Elderly MH Day Care North,Private & Voluntary Day Care,Firstpoint Homecare Ltd,96.00, 30-May-2014
797,Revenue,CCHD,Learning Difficulties Development Fund,Other Supplies & Services,Forest of Avon Trust,2500.00, 16-May-2014
798,Revenue,CCHD,Bed Purchasing - Elderly - South,Permanent Nursing,Four Seasons Health Care,1196.88, 13-May-2014
799,Revenue,CCHD,Bed Purchasing - Elderly S117- North,Permanent Residential,Four Seasons Health Care,2060.40, 13-May-2014
800,Revenue,CCHD,Bed Purchasing - Frenchay Hospital,Permanent Residential,Four Seasons Health Care,1550.64, 13-May-2014
801,Revenue,CCHD,Supported Living - South,Private & Voluntary Home Care,Freeways Trust Limited,1843.83, 28-May-2014
802,Revenue,CCHD,Supported Living - South,Private & Voluntary Home Care,Freeways Trust Limited,2385.69, 28-May-2014
803,Revenue,CCHD,Bed purchasing - Under 65s PWLD - North,Permanent Residential,Freeways Trust Ltd,2860.04, 13-May-2014
804,Revenue,CCHD,Bed purchasing - S28A Under 65 - South,Permanent Residential,Freeways Trust Ltd,2924.48, 13-May-2014
805,Revenue,CCHD,Bed purchasing - Under 65s PWLD - North,Permanent Residential,Freeways Trust Ltd,8303.68, 13-May-2014
806,Revenue,CCHD,Bed purchasing - Under 65s PWLD - North,Permanent Residential,Freeways Trust Ltd,1465.02, 13-May-2014
807,Revenue,CCHD,Bed purchasing - Under 65s PWLD - North,Permanent Residential,Freeways Trust Ltd,2286.96, 13-May-2014
808,Revenue,CCHD,Bed purchasing - Under 65s PWLD - North,Permanent Residential,Freeways Trust Ltd,2731.36, 13-May-2014
809,Revenue,CCHD,Bed Purchasing - Under 65s PWLD - South,Permanent Residential,Freeways Trust Ltd,3338.76, 13-May-2014
810,Revenue,CCHD,Bed purchasing - Elderly PWLD - North,Permanent Residential,Freeways Trust Ltd,2266.40, 13-May-2014
811,Revenue,CCHD,Bed Purchasing - Under 65s PWLD - South,Permanent Residential,Freeways Trust Ltd,2415.00, 13-May-2014
812,Revenue,CCHD,Bed purchasing - Under 65s PWLD - North,Permanent Residential,Freeways Trust Ltd,2731.36, 13-May-2014
813,Revenue,CCHD,Bed purchasing - Elderly PWLD - North,Permanent Residential,Freeways Trust Ltd,3155.72, 13-May-2014
814,Revenue,CCHD,Section 117 Placements MH Younger,Permanent Residential,Freeways Trust Ltd,3373.20, 13-May-2014
815,Revenue,CCHD,Bed purchasing - Under 65s PWLD - North,Permanent Residential,Freeways Trust Ltd,3901.68, 13-May-2014
816,Revenue,CCHD,Bed Purchasing - Under 65s PWLD - South,Permanent Residential,Freeways Trust Ltd,25710.36, 13-May-2014
817,Revenue,CCHD,Bed Purchasing - Under 65s PWLD - South,Permanent Residential,Freeways Trust Ltd,1273.20, 13-May-2014
818,Revenue,CCHD,Bed Purchasing - Frenchay Hospital,Permanent Nursing,Frenchay Park Nursing Home,1010.00, 13-May-2014
819,Revenue,CCHD,Bed Purchasing - Elderly - South,Permanent Nursing,Frenchay Park Nursing Home,1328.20, 13-May-2014
820,Revenue,CCHD,DAT Treatment,Other Supplies & Services,Frome Valley Medical Centre,609.00, 13-May-2014
821,Revenue,CCHD,Bed Purchasing - Elderly - South,Permanent Nursing,Fshc  1St Floor,896.16, 13-May-2014
822,Revenue,CCHD,Bed Purchasing - Frenchay Hospital,Permanent Residential,Fshc  1St Floor,894.12, 13-May-2014
823,Revenue,CCHD,Bed Purchasing - Southmead Hospital,Permanent Nursing,Fshc  1St Floor,795.20, 13-May-2014
824,Revenue,CCHD,Bed Purchasing - Frenchay Hospital,Permanent Residential,Fshc  1St Floor,1260.20, 13-May-2014
825,Revenue,CCHD,Bed Purchasing - Frenchay Hospital,Permanent Nursing,Fshc  1St Floor,1388.20, 13-May-2014
826,Revenue,CCHD,Bed Purchasing - Elderly - South,Permanent Nursing,Fshc  1St Floor,779.12, 13-May-2014
827,Revenue,CCHD,Bed Purchasing - Southmead Hospital,Permanent Nursing,Fshc  1St Floor,1388.20, 13-May-2014
828,Revenue,CCHD,Bed Purchasing - Southmead Hospital,Permanent Nursing,Fshc  1St Floor,774.40, 13-May-2014
829,Revenue,CCHD,Bed Purchasing - Frenchay Hospital,Permanent Nursing,Fshc  1St Floor,1388.20, 13-May-2014
830,Revenue,CCHD,Bed Purchasing - Elderly - South,Permanent Residential,Fshc  1St Floor,1216.20, 13-May-2014
831,Revenue,CCHD,Bed Purchasing - Elderly - South,Permanent Nursing,Fshc  1St Floor,1012.92, 13-May-2014
832,Revenue,CCHD,Bed Purchasing - Southmead Hospital,Permanent Nursing,Fshc  1St Floor,1388.20, 13-May-2014
833,Revenue,CCHD,Swift Dump Code,Permanent Residential,Fshc  1St Floor,1319.15, 13-May-2014
834,Revenue,CCHD,Bed Purchasing - Elderly - South,Permanent Nursing,Fshc  1St Floor,518.12, 13-May-2014
835,Revenue,CCHD,Bed Purchasing - Elderly - South,Permanent Nursing,Fshc  1St Floor,1226.68, 13-May-2014
836,Revenue,CCHD,Bed Purchasing - Elderly - South,Permanent Nursing,Fshc  1St Floor,984.28, 13-May-2014
837,Revenue,CCHD,Bed Purchasing - Elderly - South,Permanent Nursing,Fshc  1St Floor,1324.48, 13-May-2014
838,Revenue,CCHD,Bed Purchasing - Southmead Hospital,Permanent Nursing,Fshc  1St Floor,1388.20, 13-May-2014
839,Revenue,CCHD,Bed Purchasing - Frenchay Hospital,Permanent Nursing,Fshc  1St Floor,1309.76, 13-May-2014
840,Revenue,CCHD,Bed Purchasing - Frenchay Hospital,Permanent Nursing,Fshc  1St Floor,1100.70, 13-May-2014
841,Revenue,CCHD,Bed Purchasing - Elderly - North,Permanent Nursing,Fshc  1St Floor,1388.20, 13-May-2014
842,Revenue,CCHD,Bed Purchasing - Frenchay Hospital,Permanent Nursing,Fshc  1St Floor,1884.00, 13-May-2014
843,Revenue,CCHD,Bed Purchasing - Elderly - North,Permanent Nursing,Fshc  1St Floor,1884.00, 13-May-2014
844,Revenue,CCHD,Bed Purchasing - Frenchay Hospital,Permanent Nursing,Fshc  1St Floor,1204.12, 13-May-2014
845,Revenue,CCHD,Bed Purchasing - Elderly - South,Permanent Nursing,Fshc  1St Floor,1388.20, 13-May-2014
846,Revenue,CCHD,Bed Purchasing - Elderly - South,Permanent Nursing,Fshc  1St Floor,1337.12, 13-May-2014
847,Revenue,CCHD,Bed Purchasing - Elderly - South,Permanent Nursing,Fshc  1St Floor,1372.20, 13-May-2014
848,Revenue,CCHD,Bed Purchasing - Frenchay Hospital,Permanent Nursing,Fshc  1St Floor,1096.60, 13-May-2014
849,Revenue,CCHD,Bed Purchasing - Elderly MH - South,Permanent Residential,Fshc  1St Floor,1131.72, 13-May-2014
850,Revenue,CCHD,Bed Purchasing - Elderly - South,Permanent Nursing,Fshc  1St Floor,1352.20, 13-May-2014
851,Revenue,CCHD,Bed Purchasing - Southmead Hospital,Permanent Nursing,Fshc  1St Floor,1388.20, 13-May-2014
852,Revenue,CCHD,Bed Purchasing - Elderly MH - South,Permanent Nursing,Fshc  1St Floor,1229.44, 13-May-2014
853,Revenue,CCHD,Bed Purchasing - Southmead Hospital,Permanent Nursing,Fshc  1St Floor,1354.16, 13-May-2014
854,Revenue,CCHD,Bed Purchasing - Southmead Hospital,Permanent Nursing,Fshc  1St Floor,682.35, 13-May-2014
855,Revenue,CCHD,Bed Purchasing - Southmead Hospital,Permanent Nursing,Fshc  1St Floor,609.87, 13-May-2014
856,Revenue,CCHD,Bed purchasing - Elderly MH - North,Permanent Nursing,Fshc  1St Floor,781.44, 13-May-2014
857,Revenue,CCHD,Bed Purchasing - Elderly - South,Permanent Nursing,Fshc  1St Floor,993.48, 13-May-2014
858,Revenue,CCHD,Bed Purchasing - Elderly - North,Permanent Nursing,Fshc  1St Floor,1137.44, 13-May-2014
859,Revenue,CCHD,Bed Purchasing - Elderly - North,Permanent Nursing,Fshc  1St Floor,985.88, 13-May-2014
860,Revenue,CCHD,Bed Purchasing - Frenchay Hospital,Permanent Nursing,Fshc  1St Floor,944.48, 13-May-2014
861,Revenue,CCHD,Bed Purchasing - Elderly - North,Permanent Nursing,Fshc  1St Floor,1290.68, 13-May-2014
862,Revenue,CCHD,Bed Purchasing - Frenchay Hospital,Permanent Nursing,Fshc  1St Floor,1564.20, 13-May-2014
863,Revenue,CCHD,Bed Purchasing - Elderly - North,Permanent Nursing,Fshc  1St Floor,782.40, 13-May-2014
864,Revenue,CCHD,Bed Purchasing - Elderly - North,Permanent Nursing,Fshc  1St Floor,1347.08, 13-May-2014
865,Revenue,CCHD,Bed Purchasing - Southmead Hospital,Permanent Nursing,Fshc  1St Floor,1408.08, 13-May-2014
866,Revenue,CCHD,Bed Purchasing - Elderly - North,Permanent Nursing,Fshc  1St Floor,1039.60, 13-May-2014
867,Revenue,CCHD,Bed Purchasing - Southmead Hospital,Permanent Nursing,Fshc  1St Floor,1220.20, 13-May-2014
868,Revenue,CCHD,Bed Purchasing - Elderly MH - South,Respite Emergency - Nursing,Fshc  1St Floor,790.43, 13-May-2014
869,Revenue,CCHD,Bed Purchasing - Elderly - North,Permanent Residential,Fshc  1St Floor,1077.00, 13-May-2014
870,Revenue,CCHD,Bed Purchasing - Elderly - North,Permanent Residential,Fshc  1St Floor,1367.48, 13-May-2014
871,Revenue,CCHD,Bed Purchasing - Elderly - North,Permanent Residential,Fshc  1St Floor,1986.11, 13-May-2014
872,Revenue,CCHD,Bed Purchasing - Frenchay Hospital,Permanent Nursing,Fshc  1St Floor,931.84, 13-May-2014
873,Revenue,CCHD,Bed Purchasing - Frenchay Hospital,Permanent Nursing,Fshc  1St Floor,1104.08, 13-May-2014
874,Revenue,CCHD,Bed Purchasing - Frenchay Hospital,Permanent Nursing,Fshc  1St Floor,1129.00, 13-May-2014
875,Revenue,CCHD,Bed purchasing - Elderly MH - North,Permanent Nursing,Fshc  1St Floor,1031.68, 13-May-2014
876,Revenue,CCHD,Bed Purchasing - Southmead Hospital,Permanent Nursing,Fshc  1St Floor,1289.20, 13-May-2014
877,Revenue,CCHD,Bed Purchasing - Elderly - North,Permanent Nursing,Fshc  1St Floor,1220.16, 13-May-2014
878,Revenue,CCHD,Bed Purchasing - Frenchay Hospital,Permanent Nursing,Fshc  1St Floor,1128.80, 13-May-2014
879,Revenue,CCHD,Bed Purchasing - Elderly - South,Permanent Nursing,Fshc  1St Floor,1288.12, 13-May-2014
880,Revenue,CCHD,Bed Purchasing - Elderly - South,Permanent Nursing,Fshc  1St Floor,966.09, 13-May-2014
881,Revenue,CCHD,Bed Purchasing - Elderly - South,Permanent Residential,Fshc  1St Floor,1132.60, 13-May-2014
882,Revenue,CCHD,Bed Purchasing - Frenchay Hospital,Permanent Nursing,Fshc  1St Floor,2060.00, 13-May-2014
883,Revenue,CCHD,Bed Purchasing - Southmead Hospital,Permanent Nursing,Fshc  1St Floor,1564.20, 13-May-2014
884,Revenue,CCHD,Bed Purchasing - Frenchay Hospital,Permanent Nursing,Fshc  1St Floor,1375.60, 13-May-2014
885,Revenue,CCHD,Bed Purchasing - Frenchay Hospital,Permanent Nursing,Fshc  1St Floor,998.57, 13-May-2014
886,Revenue,CCHD,Swift Dump Code,Permanent Residential,Fshc  1St Floor,642.86, 13-May-2014
887,Revenue,CCHD,Bed Purchasing - Southmead Hospital,Permanent Nursing,Fshc  1St Floor,1388.20, 13-May-2014
888,Revenue,CCHD,Bed Purchasing - Elderly - North,Permanent Nursing,Fshc  1St Floor,574.28, 13-May-2014
889,Revenue,CCHD,Bed purchasing - Elderly MH - North,Permanent Nursing,Fshc  1St Floor,1489.72, 13-May-2014
890,Revenue,CCHD,Bed Purchasing - Elderly - North,Permanent Nursing,Fshc  1St Floor,1289.20, 13-May-2014
891,Revenue,CCHD,Bed Purchasing - Southmead Hospital,Permanent Nursing,Fshc  1St Floor,1268.96, 13-May-2014
892,Revenue,CCHD,Bed Purchasing - Frenchay Hospital,Permanent Nursing,Fshc  1St Floor,1029.80, 13-May-2014
893,Revenue,CCHD,Bed Purchasing - Frenchay Hospital,Permanent Residential,Fshc  1St Floor,621.36, 13-May-2014
894,Revenue,CCHD,Bed Purchasing - Frenchay Hospital,Permanent Nursing,Fshc  1St Floor,1294.72, 13-May-2014
895,Revenue,CCHD,Bed Purchasing - Frenchay Hospital,Permanent Nursing,Fshc  1St Floor,1372.56, 13-May-2014
896,Revenue,CCHD,Bed Purchasing - Elderly - North,Permanent Nursing,Fshc  1St Floor,7087.33, 13-May-2014
897,Revenue,CCHD,Bed Purchasing - Elderly - North,Permanent Nursing,Fshc  1St Floor,1312.76, 13-May-2014
898,Revenue,CCHD,Bed Purchasing - Elderly - North,Permanent Nursing,Fshc  1St Floor,984.57, 13-May-2014
899,Revenue,CCHD,Bed Purchasing - Elderly - North,Permanent Residential,Fshc  1St Floor,779.72, 13-May-2014
900,Revenue,CCHD,Bed Purchasing - Southmead Hospital,Permanent Nursing,Fshc  1St Floor,1475.48, 13-May-2014
901,Revenue,CCHD,Bed Purchasing - Southmead Hospital,Permanent Nursing,Fshc  1St Floor,1564.20, 13-May-2014
902,Revenue,CCHD,Bed Purchasing - Elderly MH - South,Permanent Nursing,Fshc  1St Floor,1338.84, 13-May-2014
903,Revenue,CCHD,Bed Purchasing - Elderly - North,Permanent Nursing,Fshc  1St Floor,1471.32, 13-May-2014
904,Revenue,CCHD,Bed Purchasing - Elderly MH - South,Permanent Nursing,Fshc  1St Floor,4373.82, 13-May-2014
905,Revenue,CCHD,Bed Purchasing - Elderly MH - South,Permanent Nursing,Fshc  1St Floor,1309.96, 13-May-2014
906,Revenue,CCHD,Bed Purchasing - Elderly MH - South,Permanent Nursing,Fshc  1St Floor,982.47, 13-May-2014
907,Revenue,CCHD,Bed purchasing - Elderly MH - North,Permanent Residential,Fshc  1St Floor,1456.20, 13-May-2014
908,Revenue,CCHD,Bed Purchasing - Elderly - North,Permanent Nursing,Fshc  1St Floor,1552.64, 13-May-2014
909,Revenue,CCHD,Bed purchasing - Elderly S117 - South,Permanent Nursing,Fshc  1St Floor,1884.00, 13-May-2014
910,Revenue,CCHD,Bed purchasing - Elderly MH - North,Permanent Residential,Fshc  1St Floor,1263.96, 13-May-2014
911,Revenue,CCHD,Bed Purchasing - Southmead Hospital,Permanent Residential,Fshc  1St Floor,1260.20, 13-May-2014
912,Revenue,CCHD,Bed Purchasing - Elderly - North,Permanent Residential,Fshc  1St Floor,1171.36, 13-May-2014
913,Revenue,CCHD,Bed Purchasing - Elderly - South,Permanent Nursing,Fshc  1St Floor,1564.20, 13-May-2014
914,Revenue,CCHD,Bed purchasing - Elderly MH - North,Permanent Residential,Fshc  1St Floor,1401.92, 13-May-2014
915,Revenue,CCHD,Bed Purchasing - Elderly - North,Permanent Nursing,Fshc  1St Floor,1357.88, 13-May-2014
916,Revenue,CCHD,Bed Purchasing - Southmead Hospital,Permanent Residential,Fshc  1St Floor,1484.20, 13-May-2014
917,Revenue,CCHD,Bed Purchasing - Frenchay Hospital,Respite Planned - Nursing,Fshc  1St Floor,1816.00, 13-May-2014
918,Revenue,CCHD,Bed purchasing - Phys Dis - North,Permanent Nursing,Fshc  1St Floor,976.53, 13-May-2014
919,Revenue,CCHD,Bed Purchasing - Elderly - North,Permanent Nursing,Fshc  1St Floor,2737.72, 13-May-2014
920,Revenue,CCHD,Bed Purchasing - Elderly - North,Permanent Nursing,Fshc  1St Floor,1388.20, 13-May-2014
921,Revenue,CCHD,Bed Purchasing - Elderly - North,Permanent Residential,Fshc  1St Floor,1260.20, 13-May-2014
922,Revenue,CCHD,Bed Purchasing - Elderly - North,Permanent Nursing,Fshc  1St Floor,1153.32, 13-May-2014
923,Revenue,CCHD,Bed Purchasing - Frenchay Hospital,Permanent Residential,Fshc  1St Floor,1260.20, 13-May-2014
924,Revenue,CCHD,Bed Purchasing - Elderly - North,Permanent Nursing,Fshc  1St Floor,587.40, 13-May-2014
925,Revenue,CCHD,Bed Purchasing - Southmead Hospital,Permanent Nursing,Fshc  1St Floor,1388.20, 13-May-2014
926,Revenue,CCHD,Bed Purchasing - Frenchay Hospital,Permanent Nursing,Fshc  1St Floor,1327.96, 13-May-2014
927,Revenue,CCHD,Bed Purchasing - Elderly - North,Permanent Nursing,Fshc  1St Floor,903.52, 13-May-2014
928,Revenue,CCHD,Bed Purchasing - Elderly - North,Permanent Nursing,Fshc  1St Floor,1017.20, 13-May-2014
929,Revenue,CCHD,Bed Purchasing - Southmead Hospital,Permanent Nursing,Fshc  1St Floor,1024.92, 13-May-2014
930,Revenue,CCHD,Bed Purchasing - Frenchay Hospital,Permanent Nursing,Fshc  1St Floor,1388.20, 13-May-2014
931,Revenue,CCHD,Bed Purchasing - Elderly - South,Permanent Nursing,Fshc  1St Floor,1394.12, 13-May-2014
932,Revenue,CCHD,Bed Purchasing - Frenchay Hospital,Permanent Nursing,Fshc  1St Floor,1321.92, 13-May-2014
933,Revenue,CCHD,Bed Purchasing - Elderly - South,Respite Planned - Residential,Fshc  1St Floor,1003.42, 13-May-2014
934,Revenue,CCHD,Bed Purchasing - Frenchay Hospital,Permanent Nursing,Fshc  1St Floor,1388.20, 13-May-2014
935,Revenue,CCHD,Bed Purchasing - Southmead Hospital,Permanent Nursing,Fshc  1St Floor,586.56, 13-May-2014
936,Revenue,CCHD,Bed Purchasing - Elderly - North,Permanent Nursing,Fshc  1St Floor,1288.16, 13-May-2014
937,Revenue,CCHD,Bed Purchasing - Elderly - North,Permanent Nursing,Fshc  1St Floor,1083.08, 13-May-2014
938,Revenue,CCHD,Bed Purchasing - Southmead Hospital,Permanent Nursing,Fshc  1St Floor,762.08, 13-May-2014
939,Revenue,CCHD,Bed Purchasing - Frenchay Hospital,Permanent Nursing,Fshc  1St Floor,873.88, 13-May-2014
940,Revenue,CCHD,Bed Purchasing - Southmead Hospital,Permanent Nursing,Fshc  1St Floor,1312.68, 13-May-2014
941,Revenue,CCHD,Bed Purchasing - Elderly - North,Permanent Nursing,Fshc  1St Floor,1270.20, 13-May-2014
942,Revenue,CCHD,Bed Purchasing - Elderly - South,Permanent Nursing,Fshc  1St Floor,794.40, 13-May-2014
943,Revenue,CCHD,Bed Purchasing - Frenchay Hospital,Permanent Nursing,Fshc  1St Floor,1361.44, 13-May-2014
944,Revenue,CCHD,Bed Purchasing - Frenchay Hospital,Permanent Nursing,Fshc  1St Floor,1021.08, 13-May-2014
945,Revenue,CCHD,Bed Purchasing - Southmead Hospital,Permanent Nursing,Fshc  1St Floor,1360.32, 13-May-2014
946,Revenue,CCHD,Bed Purchasing - Elderly - North,Permanent Residential,Fshc  1St Floor,3000.64, 13-May-2014
947,Revenue,CCHD,Bed purchasing - Phys Dis - North,Permanent Nursing,Fshc  1St Floor,1394.04, 13-May-2014
948,Revenue,CCHD,Bed Purchasing - Elderly - South,Permanent Nursing,Fshc  1St Floor,1242.76, 13-May-2014
949,Revenue,CCHD,Bed Purchasing - Southmead Hospital,Permanent Nursing,Fshc  1St Floor,1388.20, 13-May-2014
950,Revenue,CCHD,Bed Purchasing - Southmead Hospital,Permanent Nursing,Fshc  1St Floor,1319.28, 13-May-2014
951,Revenue,CCHD,Bed Purchasing - Elderly MH - South,Permanent Residential,Fshc  1St Floor,1952.00, 13-May-2014
952,Revenue,CCHD,Bed Purchasing - Frenchay Hospital,Permanent Nursing,Fshc  1St Floor,1381.00, 13-May-2014
953,Revenue,CCHD,Bed Purchasing - Southmead Hospital,Permanent Residential,Fshc  1St Floor,1484.20, 13-May-2014
954,Revenue,CCHD,Bed Purchasing - Elderly - South,Permanent Residential,Fshc  1St Floor,1424.40, 13-May-2014
955,Revenue,CCHD,Bed Purchasing - Elderly - North,Permanent Residential,Fshc  1St Floor,1167.12, 13-May-2014
956,Revenue,CCHD,Bed Purchasing - Elderly - North,Permanent Nursing,Fshc  1St Floor,1143.32, 13-May-2014
957,Revenue,CCHD,Bed Purchasing - Frenchay Hospital,Permanent Nursing,Fshc  1St Floor,1248.96, 13-May-2014
958,Revenue,CCHD,Bed Purchasing - Elderly - North,Permanent Nursing,Fshc  1St Floor,1388.20, 13-May-2014
959,Revenue,CCHD,Bed Purchasing - Elderly - North,Permanent Residential,Fshc  1St Floor,1284.43, 13-May-2014
960,Revenue,CCHD,Bed Purchasing - Southmead Hospital,Respite Emergency - Residential,Fshc  1St Floor,976.00, 13-May-2014
961,Revenue,CCHD,Bed purchasing - Elderly MH - North,Permanent Residential,Fshc  1St Floor,1456.20, 13-May-2014
962,Revenue,CCHD,Bed Purchasing - Southmead Hospital,Permanent Nursing,Fshc  1St Floor,1203.24, 13-May-2014
963,Revenue,CCHD,Bed Purchasing - Southmead Hospital,Permanent Nursing,Fshc  1St Floor,1384.20, 13-May-2014
964,Revenue,CCHD,Bed Purchasing - Elderly - South,Permanent Residential,Fshc  1St Floor,901.60, 13-May-2014
965,Revenue,CCHD,Bed purchasing - Elderly PWLD - South,Permanent Residential,Fshc  1St Floor,1260.20, 13-May-2014
966,Revenue,CCHD,Bed Purchasing - Frenchay Hospital,Permanent Nursing,Fshc  1St Floor,1388.20, 13-May-2014
967,Revenue,CCHD,Bed Purchasing - Southmead Hospital,Permanent Nursing,Fshc  1St Floor,1107.48, 13-May-2014
968,Revenue,CCHD,Bed Purchasing - Elderly - North,Permanent Residential,Fshc  1St Floor,1199.08, 13-May-2014
969,Revenue,CCHD,Bed Purchasing - Frenchay Hospital,Permanent Nursing,Fshc  1St Floor,728.56, 13-May-2014
970,Revenue,CCHD,Bed Purchasing - Frenchay Hospital,Permanent Nursing,Fshc  1St Floor,1388.20, 13-May-2014
971,Revenue,CCHD,Bed Purchasing - Southmead Hospital,Permanent Nursing,Fshc  1St Floor,1094.12, 13-May-2014
972,Revenue,CCHD,Bed Purchasing - Elderly - South,Permanent Nursing,Fshc  1St Floor,1388.20, 13-May-2014
973,Revenue,CCHD,Bed Purchasing - Elderly - South,Permanent Residential,Fshc  1St Floor,806.40, 13-May-2014
974,Revenue,CCHD,Bed Purchasing - Southmead Hospital,Permanent Residential,Fshc  1St Floor,1475.64, 13-May-2014
975,Revenue,CCHD,Bed Purchasing - Elderly - South,Permanent Nursing,Fshc  1St Floor,1227.24, 13-May-2014
976,Revenue,CCHD,Bed Purchasing - Elderly - South,Permanent Nursing,Fshc  1St Floor,944.52, 13-May-2014
977,Revenue,CCHD,Bed purchasing - Elderly S117 - South,Permanent Nursing,Fshc  1St Floor,1884.00, 13-May-2014
978,Revenue,CCHD,Bed Purchasing - Frenchay Hospital,Permanent Residential,Fshc  1St Floor,1122.08, 13-May-2014
979,Revenue,CCHD,Bed Purchasing - Elderly - North,Permanent Nursing,Fshc  1St Floor,1327.84, 13-May-2014
980,Revenue,CCHD,South Glos Users in South Glos Homes,Permanent Nursing,Fshc  1St Floor,887.12, 13-May-2014
981,Revenue,CCHD,Bed Purchasing - Elderly - South,Permanent Residential,Fshc  1St Floor,1371.40, 13-May-2014
982,Revenue,CCHD,Bed Purchasing - Frenchay Hospital,Respite Emergency - Residential,Fshc  1St Floor,1952.00, 13-May-2014
983,Revenue,CCHD,Bed Purchasing - Frenchay Hospital,Permanent Nursing,Fshc  1St Floor,1084.98, 13-May-2014
984,Revenue,CCHD,Bed Purchasing - Elderly - South,Permanent Residential,Fshc  1St Floor,865.48, 13-May-2014
985,Revenue,CCHD,Bed Purchasing - Frenchay Hospital,Permanent Nursing,Fshc  1St Floor,777.80, 13-May-2014
986,Revenue,CCHD,Bed Purchasing - Frenchay Hospital,Permanent Nursing,Fshc  1St Floor,583.35, 13-May-2014
987,Revenue,CCHD,Bed Purchasing - Elderly - North,Permanent Residential,Fshc  1St Floor,1216.92, 13-May-2014
988,Revenue,CCHD,Bed Purchasing - Elderly - South,Permanent Nursing,Fshc  1St Floor,1304.72, 13-May-2014
989,Revenue,CCHD,Bed Purchasing - Elderly - South,Permanent Nursing,Fshc  1St Floor,1668.40, 13-May-2014
990,Revenue,CCHD,Bed Purchasing - Southmead Hospital,Permanent Nursing,Fshc  1St Floor,1884.00, 13-May-2014
991,Revenue,CCHD,Bed Purchasing - Frenchay Hospital,Permanent Nursing,Fshc  1St Floor,1116.56, 13-May-2014
992,Revenue,CCHD,Bed Purchasing - Southmead Hospital,Permanent Nursing,Fshc  1St Floor,1121.72, 13-May-2014
993,Revenue,CCHD,Bed Purchasing - Frenchay Hospital,Permanent Nursing,Fshc  1St Floor,958.64, 13-May-2014
994,Revenue,CCHD,Bed Purchasing - Frenchay Hospital,Permanent Nursing,Fshc  1St Floor,1309.72, 13-May-2014
995,Revenue,CCHD,Bed Purchasing - Frenchay Hospital,Permanent Nursing,Fshc  1St Floor,1549.00, 13-May-2014
996,Revenue,CCHD,Bed Purchasing - Southmead Hospital,Permanent Nursing,Fshc  1St Floor,1621.20, 13-May-2014
997,Revenue,CCHD,Bed Purchasing - Southmead Hospital,Permanent Nursing,Fshc  1St Floor,1317.24, 13-May-2014
998,Revenue,CCHD,Bed Purchasing - Southmead Hospital,Permanent Nursing,Fshc  1St Floor,987.93, 13-May-2014
999,Revenue,CCHD,Bed Purchasing - Southmead Hospital,Permanent Nursing,Fshc  1St Floor,2875.37, 13-May-2014
1000,Revenue,CCHD,Bed Purchasing - Southmead Hospital,Permanent Nursing,Fshc  1St Floor,1365.08, 13-May-2014
1001,Revenue,CCHD,Bed Purchasing - Southmead Hospital,Permanent Nursing,Fshc  1St Floor,1023.81, 13-May-2014
1002,Revenue,CCHD,Bed Purchasing - Frenchay Hospital,Permanent Nursing,Fshc  1St Floor,1388.20, 13-May-2014
1003,Revenue,CCHD,Bed Purchasing - Southmead Hospital,Permanent Nursing,Fshc  1St Floor,881.80, 13-May-2014
1004,Revenue,CCHD,Bed Purchasing - Southmead Hospital,Permanent Residential,Fshc  1St Floor,1756.00, 13-May-2014
1005,Revenue,CCHD,Bed Purchasing - Frenchay Hospital,Permanent Nursing,Fshc  1St Floor,1320.20, 13-May-2014
1006,Revenue,CCHD,Bed Purchasing - Elderly - North,Permanent Nursing,Fshc  1St Floor,1302.56, 13-May-2014
1007,Revenue,CCHD,Bed purchasing - Phys Dis - North,Permanent Nursing,Fshc  1St Floor,775.72, 13-May-2014
1008,Revenue,CCHD,Bed Purchasing - Elderly - North,Permanent Nursing,Fshc  1St Floor,1496.20, 13-May-2014
1009,Revenue,CCHD,Bed Purchasing - Elderly - North,Permanent Nursing,Fshc  1St Floor,1229.36, 13-May-2014
1010,Revenue,CCHD,Bed Purchasing - Frenchay Hospital,Permanent Nursing,Fshc  1St Floor,1320.20, 13-May-2014
1011,Revenue,CCHD,Bed purchasing - Elderly MH - North,Permanent Nursing,Fshc  1St Floor,857.04, 13-May-2014
1012,Revenue,CCHD,Bed Purchasing - Southmead Hospital,Permanent Nursing,Fshc  1St Floor,1496.20, 13-May-2014
1013,Revenue,CCHD,Bed Purchasing - Elderly - North,Permanent Nursing,Fshc  1St Floor,1368.56, 13-May-2014
1014,Revenue,CCHD,Bed Purchasing - Frenchay Hospital,Permanent Nursing,Fshc  1St Floor,2373.00, 13-May-2014
1015,Revenue,CCHD,Bed Purchasing - Frenchay Hospital,Permanent Nursing,Fshc  1St Floor,1376.68, 13-May-2014
1016,Revenue,CCHD,Bed Purchasing - Frenchay Hospital,Permanent Residential,Fshc  1St Floor,1233.08, 13-May-2014
1017,Revenue,CCHD,Bed Purchasing - Southmead Hospital,Permanent Nursing,Fshc  1St Floor,1307.20, 13-May-2014
1018,Revenue,CCHD,Bed Purchasing - Southmead Hospital,Permanent Nursing,Fshc  1St Floor,1263.24, 13-May-2014
1019,Revenue,CCHD,Bed Purchasing - Southmead Hospital,Permanent Nursing,Fshc  1St Floor,1467.24, 13-May-2014
1020,Revenue,CCHD,Bed purchasing - Elderly S117 - South,Permanent Nursing,Fshc  1St Floor,1992.00, 13-May-2014
1021,Revenue,CCHD,Bed Purchasing - Frenchay Hospital,Permanent Nursing,Fshc  1St Floor,950.68, 13-May-2014
1022,Revenue,CCHD,Bed Purchasing - Elderly S117- North,Permanent Nursing,Fshc  1St Floor,1992.00, 13-May-2014
1023,Revenue,CCHD,Bed Purchasing - Elderly - North,Permanent Residential,Fshc  1St Floor,1432.20, 13-May-2014
1024,Revenue,CCHD,Bed Purchasing - Frenchay Hospital,Permanent Nursing,Fshc  1St Floor,1100.44, 13-May-2014
1025,Revenue,CCHD,Bed Purchasing - Elderly - South,Permanent Residential,Fshc  1St Floor,1361.00, 13-May-2014
1026,Revenue,CCHD,Bed Purchasing - Southmead Hospital,Permanent Residential,FSHC 1st Floor,806.60, 13-May-2014
1027,Revenue,CCHD,General EPH budgets,Premises Maintenance by Contractor,Geoff Lewis Flooring Limited,655.00, 30-May-2014
1028,Revenue,CCHD,Section 117 Placements MH Younger,Permanent Residential,Gladstone House,2762.16, 13-May-2014
1029,Revenue,CCHD,Bed Purchasing - Under 65s PWLD - South,Permanent Residential,Glasallt Fawr,9214.26, 13-May-2014
1030,Revenue,CCHD,Bed purchasing - Elderly MH - North,Permanent Residential,Glebe House Nursing Home,1807.40, 13-May-2014
1031,Revenue,CCHD,South Glos Users in South Glos Homes,Permanent Nursing,Glebe House Nursing Home,925.37, 13-May-2014
1032,Revenue,CCHD,Bed Purchasing - Elderly - South,Respite Emergency - Residential,Glebe House Nursing Home,2408.10, 13-May-2014
1033,Revenue,CCHD,Bed Purchasing - Elderly - South,Respite Emergency - Residential,Glebe House Nursing Home,1356.00, 13-May-2014
1034,Revenue,CCHD,Bed purchasing - Elderly MH - North,Permanent Residential,Glebe House Nursing Home,2044.08, 13-May-2014
1035,Revenue,CCHD,Bed Purchasing - Elderly - North,Permanent Nursing,Glebe House Nursing Home,1395.84, 13-May-2014
1036,Revenue,CCHD,Bed Purchasing - Frenchay Hospital,Permanent Nursing,Glebe House Nursing Home,895.36, 13-May-2014
1037,Revenue,CCHD,Bed Purchasing - Elderly - North,Permanent Residential,Glebe House Nursing Home,1173.84, 13-May-2014
1038,Revenue,CCHD,Bed Purchasing - Elderly - North,Permanent Residential,Glebe House Nursing Home,921.24, 13-May-2014
1039,Revenue,CCHD,Swift Dump Code,Permanent Residential,Glebe House Nursing Home,859.34, 13-May-2014
1040,Revenue,CCHD,South Glos Users in South Glos Homes,Permanent Nursing,Glebe House Nursing Home,2305.59, 13-May-2014
1041,Revenue,CCHD,Bed Purchasing - Elderly - North,Permanent Nursing,Glebe House Nursing Home,1832.52, 13-May-2014
1042,Revenue,CCHD,Bed Purchasing - Elderly - North,Permanent Nursing,Glebe House Nursing Home,2165.56, 13-May-2014
1043,Revenue,CCHD,Bed Purchasing - Elderly - South,Permanent Residential,Glebe House Nursing Home,2004.44, 13-May-2014
1044,Revenue,CCHD,Bed Purchasing - Elderly - North,Permanent Residential,Glebe House Nursing Home,2593.00, 13-May-2014
1045,Revenue,CCHD,South Glos Users in South Glos Homes,Permanent Nursing,Glebe House Nursing Home,1537.06, 13-May-2014
1046,Revenue,CCHD,Bed Purchasing - Under 65s PWLD - South,Permanent Residential,Gordena Care Home,2113.64, 13-May-2014
1047,Revenue,CCHD,Bed purchasing - Elderly PWLD - South,Permanent Residential,Gordena Care Home,4799.84, 13-May-2014
1048,Revenue,CCHD,Bed purchasing - Elderly PWLD - South,Permanent Residential,Gordena Care Home,3159.76, 13-May-2014
1049,Revenue,CCHD,Bed purchasing - Elderly PWLD - South,Permanent Residential,Gordena Care Home,2968.16, 13-May-2014
1050,Revenue,CCHD,Bed Purchasing - Under 65s PWLD - South,Permanent Residential,Gordena Care Home,3383.17, 13-May-2014
1051,Revenue,CCHD,Bed Purchasing - Under 65s PWLD - South,Permanent Residential,Gordena Care Limited,4217.76, 13-May-2014
1052,Revenue,CCHD,Bed purchasing - S28A Under 65 - South,Permanent Residential,Gordena Care Limited,4116.00, 13-May-2014
1053,Revenue,CCHD,Bed purchasing - Under 65s PWLD - North,Permanent Residential,Gordena Care Limited,4218.96, 13-May-2014
1054,Revenue,CCHD,Bed Purchasing - Elderly - North,Permanent Residential,Greensleeves,1331.92, 13-May-2014
1055,Revenue,CCHD,Learning Difficulties Development Fund,Other Supplies & Services,Growing Support CIC,500.00, 22-May-2014
1056,Revenue,CCHD,User Involvement,Other Supplies & Services,Growing Support CIC,4333.75, 29-May-2014
1057,Revenue,CCHD,Bed Purchasing - Elderly - North,Permanent Residential,Gwendoline House,887.84, 13-May-2014
1058,Revenue,CCHD,Bed Purchasing - Elderly - South,Permanent Residential,Gwendoline House,1510.00, 13-May-2014
1059,Revenue,CCHD,Bed Purchasing - Elderly - North,Permanent Residential,Gwendoline House,1661.96, 13-May-2014
1060,Revenue,CCHD,Bed Purchasing - Elderly MH - South,Permanent Residential,Gwendoline House,1288.20, 13-May-2014
1061,Revenue,CCHD,Bed Purchasing - Elderly - South,Permanent Residential,Gwendoline House,1143.56, 13-May-2014
1062,Revenue,CCHD,Woodleaze,Prop.Serv. General Repairs,H Mealing & Sons Limited,1685.00, 16-May-2014
1063,Revenue,CCHD,Supporting People Programme,Grants to Voluntary Bodies,Habinteg Housing Association,1358.58, 01-May-2014
1064,Revenue,CCHD,Supporting People Programme,Grants to Voluntary Bodies,Habinteg Housing Association,1358.58, 30-May-2014
1065,Revenue,CCHD,Breakthrough and Inclusion Work,Other Supplies & Services,Hambly`s Sport Matter Limited,828.00, 28-May-2014
1066,Revenue,CCHD,Bed Purchasing - Elderly - South,Permanent Residential,Harefield Hall,1347.12, 13-May-2014
1067,Revenue,CCHD,Bed Purchasing - Elderly - South,Permanent Residential,Harefield Hall,2000.12, 13-May-2014
1068,Revenue,CCHD,Bed Purchasing - Elderly - South,Permanent Residential,Harefield Hall,1115.32, 13-May-2014
1069,Revenue,CCHD,Bed Purchasing - Elderly - South,Permanent Residential,Harefield Hall,1805.32, 13-May-2014
1070,Revenue,CCHD,Bed Purchasing - Elderly MH - South,Permanent Residential,Harefield Hall,1036.40, 13-May-2014
1071,Revenue,CCHD,Bed Purchasing - Elderly - South,Permanent Residential,Harefield Hall,1304.48, 13-May-2014
1072,Revenue,CCHD,Bed Purchasing - Elderly - South,Permanent Residential,Harefield Hall,666.40, 13-May-2014
1073,Revenue,CCHD,Bed Purchasing - Southmead Hospital,Permanent Nursing,Hc-One Ltd,3264.28, 13-May-2014
1074,Revenue,CCHD,Bed Purchasing - Elderly - North,Permanent Nursing,Hc-One Ltd,1492.36, 13-May-2014
1075,Revenue,CCHD,Bed Purchasing - Elderly - North,Permanent Nursing,Hc-One Ltd,1533.56, 13-May-2014
1076,Revenue,CCHD,Bed Purchasing - Elderly - North,Permanent Residential,Hc-One Ltd,1006.84, 13-May-2014
1077,Revenue,CCHD,Bed Purchasing - Elderly - North,Permanent Nursing,Hc-One Ltd,1518.60, 13-May-2014
1078,Revenue,CCHD,Bed purchasing - Elderly PWLD - South,Permanent Nursing,Hc-One Ltd,1955.92, 13-May-2014
1079,Revenue,CCHD,Bed purchasing - Elderly MH - North,Permanent Nursing,Hc-One Ltd,1496.20, 13-May-2014
1080,Revenue,CCHD,Bed purchasing - Elderly MH - North,Permanent Nursing,Hc-One Ltd,1239.28, 13-May-2014
1081,Revenue,CCHD,Bed Purchasing - Elderly - South,Permanent Nursing,Hc-One Ltd,1152.48, 13-May-2014
1082,Revenue,CCHD,Bed purchasing - Elderly MH - North,Permanent Nursing,Hc-One Ltd,1197.44, 13-May-2014
1083,Revenue,CCHD,Bed Purchasing - Elderly S117- North,Permanent Nursing,Hc-One Ltd,1976.56, 13-May-2014
1084,Revenue,CCHD,Day Care - South,Private & Voluntary Day Care,Headway Bristol,519.75, 02-May-2014
1085,Revenue,CCHD,Day Care - South,Private & Voluntary Day Care,Headway Bristol,579.24, 28-May-2014
1086,Revenue,CCHD,Day Care - South,Private & Voluntary Day Care,Headway Bristol,572.31, 28-May-2014
1087,Revenue,CCHD,Home Care - Elderly - South,Other Small Contracts,Helping Hands Homecare,543.49, 01-May-2014
1088,Revenue,CCHD,Home Care - Elderly - North,Other Small Contracts,Helping Hands Homecare,1180.82, 01-May-2014
1089,Revenue,CCHD,Day Care - North,Private & Voluntary Day Care,Helping Hands Homecare,121.21, 01-May-2014
1090,Revenue,CCHD,Under 65s -MH  Home Care Purch,Other Small Contracts,Helping Hands Homecare,31.28, 01-May-2014
1091,Revenue,CCHD,Home care - Elderly MH - North,Other Small Contracts,Helping Hands Homecare,62.56, 01-May-2014
1092,Revenue,CCHD,Home Care - Elderly - South,Other Small Contracts,Helping Hands Homecare,551.31, 08-May-2014
1093,Revenue,CCHD,Home Care - Elderly - North,Other Small Contracts,Helping Hands Homecare,1403.69, 08-May-2014
1094,Revenue,CCHD,Day Care - North,Private & Voluntary Day Care,Helping Hands Homecare,117.30, 08-May-2014
1095,Revenue,CCHD,Under 65s -MH  Home Care Purch,Other Small Contracts,Helping Hands Homecare,31.28, 08-May-2014
1096,Revenue,CCHD,Home care - Elderly MH - North,Other Small Contracts,Helping Hands Homecare,62.56, 08-May-2014
1097,Revenue,CCHD,Home Care - Elderly - South,Other Small Contracts,Helping Hands Homecare,563.04, 08-May-2014
1098,Revenue,CCHD,Home Care - Elderly - North,Other Small Contracts,Helping Hands Homecare,1661.75, 08-May-2014
1099,Revenue,CCHD,Day Care - North,Private & Voluntary Day Care,Helping Hands Homecare,93.84, 08-May-2014
1100,Revenue,CCHD,Under 65s -MH  Home Care Purch,Other Small Contracts,Helping Hands Homecare,31.28, 08-May-2014
1101,Revenue,CCHD,Home care - Elderly MH - North,Other Small Contracts,Helping Hands Homecare,62.56, 08-May-2014
1102,Revenue,CCHD,Home Care - Elderly - South,Other Small Contracts,Helping Hands Homecare,578.68, 16-May-2014
1103,Revenue,CCHD,Home Care - Elderly - North,Other Small Contracts,Helping Hands Homecare,1689.12, 16-May-2014
1104,Revenue,CCHD,Day Care - North,Private & Voluntary Day Care,Helping Hands Homecare,93.84, 16-May-2014
1105,Revenue,CCHD,Under 65s -MH  Home Care Purch,Other Small Contracts,Helping Hands Homecare,31.28, 16-May-2014
1106,Revenue,CCHD,Home care - Elderly MH - North,Other Small Contracts,Helping Hands Homecare,62.56, 16-May-2014
1107,Revenue,CCHD,Home Care - Elderly - South,Other Small Contracts,Helping Hands Homecare,371.45, 28-May-2014
1108,Revenue,CCHD,Home Care - Elderly - North,Other Small Contracts,Helping Hands Homecare,1771.23, 28-May-2014
1109,Revenue,CCHD,Day Care - North,Private & Voluntary Day Care,Helping Hands Homecare,93.84, 28-May-2014
1110,Revenue,CCHD,Under 65s -MH  Home Care Purch,Other Small Contracts,Helping Hands Homecare,31.28, 28-May-2014
1111,Revenue,CCHD,Home care - Elderly MH - North,Other Small Contracts,Helping Hands Homecare,62.56, 28-May-2014
1112,Revenue,CCHD,Tenancy Start Up Scheme,Other Supplies & Services,Heron Way Agencies Limited,1300.00, 22-May-2014
1113,Revenue,CCHD,Tenancy Start Up Scheme,Other Supplies & Services,Heron Way Agencies Limited,1500.00, 23-May-2014
1114,Revenue,CCHD,S117 Placements PCT,Permanent Residential,Hesley Hall,18209.52, 13-May-2014
1115,Revenue,CCHD,Bed Purchasing - Southmead Hospital,Permanent Residential,High Border Lodge,1442.96, 13-May-2014
1116,Revenue,CCHD,Bed Purchasing - Frenchay Hospital,Permanent Residential,Highfield House,1227.52, 13-May-2014
1117,Revenue,CCHD,Bed Purchasing - Southmead Hospital,Permanent Residential,Highgate Studios,1174.24, 13-May-2014
1118,Revenue,CCHD,Bed purchasing - Under 65s PWLD - North,Permanent Residential,Holmleigh Care Homes Ltd,4059.84, 13-May-2014
1119,Revenue,CCHD,Bed Purchasing - Under 65s PWLD - South,Permanent Residential,Holmleigh Care Homes Ltd,5102.60, 13-May-2014
1120,Revenue,CCHD,Bed purchasing - Under 65s PWLD - North,Permanent Residential,Home Farm Trust Ltd  5-6 Brook Office Pa,2852.08, 13-May-2014
1121,Revenue,CCHD,Bed purchasing - Elderly PWLD - South,Permanent Residential,Home Farm Trust Ltd  5-6 Brook Office Pa,5114.40, 13-May-2014
1122,Revenue,CCHD,Bed purchasing - Under 65s PWLD - North,Permanent Residential,Home Farm Trust Ltd  5-6 Brook Office Pa,3442.72, 13-May-2014
1123,Revenue,CCHD,Bed Purchasing - Under 65s PWLD - South,Permanent Residential,Home Farm Trust Ltd  5-6 Brook Office Pa,4572.16, 13-May-2014
1124,Revenue,CCHD,Bed purchasing - Under 65s PWLD - North,Permanent Residential,Home From Home Care Ltd,8988.20, 13-May-2014
1125,Revenue,CCHD,Social Lettings Agency,Fees - General,Home Turf Lettings,10.00, 09-May-2014
1126,Revenue,CCHD,Social Lettings Agency,Other Supplies & Services,Home Turf Lettings,565.00, 09-May-2014
1127,Revenue,CCHD,Bed purchasing - Under 65s PWLD - North,Permanent Residential,Homes Caring For Autism Ltd  Churchill H,9895.04, 13-May-2014
1128,Revenue,CCHD,Bed Purchasing - Under 65s PWLD - South,Permanent Residential,Homes Caring For Autism Ltd  Churchill H,12903.72, 13-May-2014
1129,Revenue,CCHD,Bed Purchasing - Southmead Hospital,Permanent Nursing,Horfield Care Limited,1329.81, 14-May-2014
1130,Revenue,CCHD,Bed Purchasing - Frenchay Hospital,Permanent Nursing,Horfield Care Limited,1138.18, 14-May-2014
1131,Revenue,CCHD,Bed Purchasing - Southmead Hospital,Respite Emergency - Nursing,Horfield Care Limited,1754.78, 14-May-2014
1132,Revenue,CCHD,Bed Purchasing - Elderly - North,Permanent Nursing,Horfield Care Limited,1340.09, 14-May-2014
1133,Revenue,CCHD,Bed Purchasing - Southmead Hospital,Permanent Nursing,Horfield Care Limited,1481.01, 14-May-2014
1134,Revenue,CCHD,Bed Purchasing - Elderly - South,Permanent Nursing,Horfield Care Limited,1050.17, 14-May-2014
1135,Revenue,CCHD,Bed Purchasing - Southmead Hospital,Permanent Nursing,Horfield Care Limited,695.25, 14-May-2014
1136,Revenue,CCHD,Bed Purchasing - Frenchay Hospital,Respite Emergency - Nursing,Horfield Care Limited,3026.10, 14-May-2014
1137,Revenue,CCHD,Bed Purchasing - Frenchay Hospital,Permanent Nursing,Horfield Care Limited,1338.21, 14-May-2014
1138,Revenue,CCHD,Bed Purchasing - Elderly - North,Permanent Nursing,Horfield Care Limited,920.98, 14-May-2014
1139,Revenue,CCHD,Bed Purchasing - Frenchay Hospital,Respite Emergency - Nursing,Horfield Care Limited,945.43, 14-May-2014
1140,Revenue,CCHD,Bed Purchasing - Elderly - North,Respite Emergency - Nursing,Horfield Care Limited,1096.74, 14-May-2014
1141,Revenue,CCHD,Supporting People Programme,Grants to Voluntary Bodies,Housing 21,616.42, 01-May-2014
1142,Revenue,CCHD,Supporting People Programme,Grants to Voluntary Bodies,Housing 21,935.00, 01-May-2014
1143,Revenue,CCHD,Supporting People Programme,Grants to Voluntary Bodies,Housing 21,616.42, 30-May-2014
1144,Revenue,CCHD,Supporting People Programme,Grants to Voluntary Bodies,Housing 21,935.00, 30-May-2014
1145,Revenue,CCHD,Home Care - Elderly - North,Private & Voluntary Home Care,Housing 21,37580.45, 09-May-2014
1146,Revenue,CCHD,Home Care - Elderly - South,Private & Voluntary Home Care,Housing 21,24011.00, 01-May-2014
1147,Revenue,CCHD,Home Care - Elderly - South,Private & Voluntary Home Care,Housing 21,24011.00, 30-May-2014
1148,Revenue,CCHD,Health Promotion,Uniforms & Clothing,Initially Yours Embroiderers Limited,711.84, 01-May-2014
1149,Revenue,CCHD,Care Management Team - South,Agency Staff (Operational)/PCT Pay,IPE,2258.76, 14-May-2014
1150,Revenue,CCHD,Care Management Team - South,Agency Staff (Operational)/PCT Pay,IPE,999.38, 23-May-2014
1151,Revenue,CCHD,Social Lettings Agency,Fees - General,J & C Hawkins,11.60, 09-May-2014
1152,Revenue,CCHD,Social Lettings Agency,Other Supplies & Services,J & C Hawkins,566.01, 09-May-2014
1153,Revenue,CCHD,Bed Purchasing - Elderly - North,Permanent Residential,Jah Jireh Charity Homes,1150.44, 13-May-2014
1154,Revenue,CCHD,Homeless - Private Sector Leasing,Other Supplies & Services,Jill Collins,594.00, 15-May-2014
1155,Revenue,CCHD,Training - Adult Services,Training Expenses,JK Training,800.00, 30-May-2014
1156,Revenue,CCHD,TSG Practice Placements,Training Expenses,Jo Toye,750.00, 23-May-2014
1157,Revenue,CCHD,Training - Adult Services,Training Expenses,Jo Williams,544.00, 02-May-2014
1158,Revenue,CCHD,Training - Adult Services,Training Expenses,Jo Williams,510.00, 30-May-2014
1159,Revenue,CCHD,Bed Purchasing - Under 65s PWLD - South,Permanent Residential,Julia Simone- Supp. Ind.,3960.52, 13-May-2014
1160,Revenue,CCHD,Bed purchasing -S28A  Under 65 - North,Permanent Residential,Julia Simone- Supp. Ind.,3494.52, 13-May-2014
1161,Revenue,CCHD,Telecare,Other Supplies & Services,Just Checking Ltd,21355.00, 22-May-2014
1162,Revenue,CCHD,Bed Purchasing - Elderly - South,Permanent Residential,Karenza Ltd,1756.00, 13-May-2014
1163,Revenue,CCHD,DAT Treatment,Other Supplies & Services,Kennedy Way Surgery,711.00, 12-May-2014
1164,Revenue,CCHD,Bed Purchasing - Elderly - South,Permanent Residential,Kenver House Residential Home,1568.68, 13-May-2014
1165,Revenue,CCHD,Bed Purchasing - Frenchay Hospital,Permanent Residential,Kenver House Residential Home,1119.36, 13-May-2014
1166,Revenue,CCHD,Bed Purchasing - Frenchay Hospital,Permanent Residential,Kenver House Residential Home,1643.72, 13-May-2014
1167,Revenue,CCHD,Bed Purchasing - Southmead Hospital,Permanent Residential,Kenver House Residential Home,1671.08, 13-May-2014
1168,Revenue,CCHD,Bed Purchasing - Elderly - South,Permanent Residential,Kenver House Residential Home,1527.68, 13-May-2014
1169,Revenue,CCHD,Bed Purchasing - Elderly - South,Permanent Residential,Kenver House Residential Home,1136.68, 13-May-2014
1170,Revenue,CCHD,Bed Purchasing - Elderly MH - South,Permanent Residential,Kenver House Residential Home,1307.52, 13-May-2014
1171,Revenue,CCHD,Bed Purchasing - Elderly - South,Permanent Residential,Kenver House Residential Home,1691.08, 13-May-2014
1172,Revenue,CCHD,Bed Purchasing - Elderly - South,Permanent Residential,Kenver House Residential Home,1713.26, 13-May-2014
1173,Revenue,CCHD,Bed Purchasing - Elderly - South,Permanent Residential,Kenver House Residential Home,1373.04, 13-May-2014
1174,Revenue,CCHD,Bed Purchasing - Elderly - South,Permanent Residential,Kenver House Residential Home,1253.64, 13-May-2014
1175,Revenue,CCHD,Bed Purchasing - Elderly - South,Respite Planned - Residential,Kenver House Residential Home,1067.64, 13-May-2014
1176,Revenue,CCHD,Bed Purchasing - Elderly - South,Permanent Residential,Kenver House Residential Home,2166.88, 13-May-2014
1177,Revenue,CCHD,Bed Purchasing - Elderly - South,Permanent Residential,Kenver House Residential Home,1603.00, 13-May-2014
1178,Revenue,CCHD,Bed Purchasing - Elderly - South,Respite Planned - Residential,Kenver House Residential Home,1857.33, 13-May-2014
1179,Revenue,CCHD,Bed Purchasing - Elderly - South,Respite Planned - Residential,Kenver House Residential Home,1304.32, 13-May-2014
1180,Revenue,CCHD,Bed Purchasing - Southmead Hospital,Permanent Residential,Kenver House Residential Home,1671.00, 13-May-2014
1181,Revenue,CCHD,Bed Purchasing - Elderly - South,Permanent Residential,Kenver House Residential Home,1591.01, 13-May-2014
1182,Revenue,CCHD,Bed Purchasing - Elderly - South,Permanent Residential,Kenver House Residential Home,1414.64, 13-May-2014
1183,Revenue,CCHD,Bed Purchasing - Elderly - North,Respite Emergency - Residential,Kenver House Residential Home,2198.84, 13-May-2014
1184,Revenue,CCHD,Bed Purchasing - Elderly - North,Permanent Residential,Kenver House Residential Home,1020.89, 13-May-2014
1185,Revenue,CCHD,Bed Purchasing - Elderly - North,Respite Emergency - Residential,Kenver House Residential Home,1020.89, 13-May-2014
1186,Revenue,CCHD,Bed Purchasing - Frenchay Hospital,Permanent Residential,Kenver House Residential Home,1562.40, 13-May-2014
1187,Revenue,CCHD,Supporting People Programme,Grants to Voluntary Bodies,Keyring Living Support Networks,2917.00, 01-May-2014
1188,Revenue,CCHD,Supporting People Programme,Grants to Voluntary Bodies,Keyring Living Support Networks,2917.00, 30-May-2014
1189,Revenue,CCHD,DAT Treatment,Other Supplies & Services,Kingswood Health Centre,3959.00, 13-May-2014
1190,Revenue,CCHD,Supporting People Programme,Grants to Voluntary Bodies,Kingswood Young Homeless Project,16943.67, 01-May-2014
1191,Revenue,CCHD,Supporting People Programme,Grants to Voluntary Bodies,Kingswood Young Homeless Project,16943.67, 30-May-2014
1192,Revenue,CCHD,Bed purchasing - Under 65s PWLD - North,Permanent Residential,Kisimul Group,11388.88, 13-May-2014
1193,Revenue,CCHD,Supporting People Programme,Grants to Voluntary Bodies,Knightstone Housing Association Limited,13513.75, 01-May-2014
1194,Revenue,CCHD,Supporting People Programme,Grants to Voluntary Bodies,Knightstone Housing Association Limited,8537.92, 01-May-2014
1195,Revenue,CCHD,Supporting People Programme,Grants to Voluntary Bodies,Knightstone Housing Association Limited,7602.50, 01-May-2014
1196,Revenue,CCHD,Supporting People Programme,Grants to Voluntary Bodies,Knightstone Housing Association Limited,1789.75, 01-May-2014
1197,Revenue,CCHD,Supporting People Programme,Grants to Voluntary Bodies,Knightstone Housing Association Limited,2482.75, 01-May-2014
1198,Revenue,CCHD,Supporting People Programme,Grants to Voluntary Bodies,Knightstone Housing Association Limited,2483.33, 01-May-2014
1199,Revenue,CCHD,Supporting People Programme,Grants to Voluntary Bodies,Knightstone Housing Association Limited,844.58, 01-May-2014
1200,Revenue,CCHD,Supporting People Programme,Grants to Voluntary Bodies,Knightstone Housing Association Limited,2227.17, 01-May-2014
1201,Revenue,CCHD,Supporting People Programme,Grants to Voluntary Bodies,Knightstone Housing Association Limited,13513.75, 30-May-2014
1202,Revenue,CCHD,Supporting People Programme,Grants to Voluntary Bodies,Knightstone Housing Association Limited,8537.92, 30-May-2014
1203,Revenue,CCHD,Supporting People Programme,Grants to Voluntary Bodies,Knightstone Housing Association Limited,7602.50, 30-May-2014
1204,Revenue,CCHD,Supporting People Programme,Grants to Voluntary Bodies,Knightstone Housing Association Limited,1789.75, 30-May-2014
1205,Revenue,CCHD,Supporting People Programme,Grants to Voluntary Bodies,Knightstone Housing Association Limited,2482.75, 30-May-2014
1206,Revenue,CCHD,Supporting People Programme,Grants to Voluntary Bodies,Knightstone Housing Association Limited,2483.33, 30-May-2014
1207,Revenue,CCHD,Supporting People Programme,Grants to Voluntary Bodies,Knightstone Housing Association Limited,844.58, 30-May-2014
1208,Revenue,CCHD,Supporting People Programme,Grants to Voluntary Bodies,Knightstone Housing Association Limited,2227.17, 30-May-2014
1209,Revenue,CCHD,Home Care - Elderly - South,Other Small Contracts,Kumari Care Limited,3528.04, 16-May-2014
1210,Revenue,CCHD,Home Care - Elderly - North,Other Small Contracts,Kumari Care Limited,835.14, 16-May-2014
1211,Revenue,CCHD,Day Care - South,Private & Voluntary Day Care,Kumari Care Limited,96.50, 16-May-2014
1212,Revenue,CCHD,Under 65s -MH  Home Care Purch,Other Small Contracts,Kumari Care Limited,262.48, 16-May-2014
1213,Revenue,CCHD,Home Care - Elderly - South,Other Small Contracts,Kumari Care Limited,3373.64, 29-May-2014
1214,Revenue,CCHD,Home Care - Elderly - North,Other Small Contracts,Kumari Care Limited,833.86, 29-May-2014
1215,Revenue,CCHD,Day Care - South,Private & Voluntary Day Care,Kumari Care Limited,96.50, 29-May-2014
1216,Revenue,CCHD,Under 65s -MH  Home Care Purch,Other Small Contracts,Kumari Care Limited,247.04, 29-May-2014
1217,Revenue,CCHD,Home Care - Elderly - South,Other Small Contracts,Kumari Care Limited,3462.42, 13-May-2014
1218,Revenue,CCHD,Home Care - Elderly - North,Other Small Contracts,Kumari Care Limited,828.94, 13-May-2014
1219,Revenue,CCHD,Day Care - South,Private & Voluntary Day Care,Kumari Care Limited,96.50, 13-May-2014
1220,Revenue,CCHD,Under 65s -MH  Home Care Purch,Other Small Contracts,Kumari Care Limited,266.34, 13-May-2014
1221,Revenue,CCHD,Home Care - Elderly - South,Other Small Contracts,Kumari Care Limited,3091.86, 29-May-2014
1222,Revenue,CCHD,Home Care - Elderly - North,Other Small Contracts,Kumari Care Limited,828.94, 29-May-2014
1223,Revenue,CCHD,Under 65s -MH  Home Care Purch,Other Small Contracts,Kumari Care Limited,270.20, 29-May-2014
1224,Revenue,CCHD,Home Care - Elderly - South,Other Small Contracts,Kumari Care Limited,3450.84, 29-May-2014
1225,Revenue,CCHD,Home Care - Elderly - North,Other Small Contracts,Kumari Care Limited,849.30, 29-May-2014
1226,Revenue,CCHD,Day Care - South,Private & Voluntary Day Care,Kumari Care Limited,96.50, 29-May-2014
1227,Revenue,CCHD,Under 65s -MH  Home Care Purch,Other Small Contracts,Kumari Care Limited,262.48, 29-May-2014
1228,Revenue,CCHD,Home Care - Elderly - South,Other Small Contracts,Kumari Care Limited,3230.82, 29-May-2014
1229,Revenue,CCHD,Home Care - Elderly - North,Other Small Contracts,Kumari Care Limited,864.74, 29-May-2014
1230,Revenue,CCHD,Day Care - South,Private & Voluntary Day Care,Kumari Care Limited,96.50, 29-May-2014
1231,Revenue,CCHD,Under 65s -MH  Home Care Purch,Other Small Contracts,Kumari Care Limited,270.20, 29-May-2014
1232,Revenue,CCHD,Learning Difficulties Development Fund,Other Supplies & Services,L D Awareness,1577.63, 16-May-2014
1233,Revenue,CCHD,DAT Treatment,Other Supplies & Services,Leap Valley Surgery,1523.00, 13-May-2014
1234,Revenue,CCHD,"Strategy, Advice and Public Protection",Other Supplies & Services,Lee Cox,3000.00, 30-May-2014
1235,Revenue,CCHD,"Strategy, Advice and Public Protection",Other Supplies & Services,Lee Cox,2750.00, 30-May-2014
1236,Revenue,CCHD,"Strategy, Advice and Public Protection",Other Supplies & Services,Lee Cox,2000.00, 30-May-2014
1237,Revenue,CCHD,"Strategy, Advice and Public Protection",Other Supplies & Services,Lee Cox,2250.00, 30-May-2014
1238,Revenue,CCHD,"Strategy, Advice and Public Protection",Other Supplies & Services,Lee Cox,1500.00, 30-May-2014
1239,Revenue,CCHD,Bed purchasing - Phys Dis - North,Permanent Nursing,Leonard Cheshire  National Account Centr,5036.48, 13-May-2014
1240,Revenue,CCHD,Bed purchasing - Phys Dis - North,Permanent Residential,Leonard Cheshire  National Account Centr,2910.92, 13-May-2014
1241,Revenue,CCHD,Bed Purchasing - Under 65s PWLD - South,Permanent Residential,Leonard Cheshire  National Account Centr,3003.72, 13-May-2014
1242,Revenue,CCHD,Bed Purchasing - Elderly - North,Permanent Nursing,Leonard Cheshire  National Account Centr,3520.60, 13-May-2014
1243,Revenue,CCHD,Bed purchasing - Phys Dis - North,Permanent Nursing,Leonard Cheshire  National Account Centr,2764.56, 13-May-2014
1244,Revenue,CCHD,Bed Purchasing - Elderly - North,Permanent Residential,Leonard Cheshire  National Account Centr,3196.52, 13-May-2014
1245,Revenue,CCHD,Bed purchasing - Under 65s PWLD - North,Permanent Residential,Leonard Cheshire  National Account Centr,5959.48, 13-May-2014
1246,Revenue,CCHD,Bed purchasing - Under 65s PWLD - North,Permanent Residential,Leonard Cheshire  National Account Centr,5957.92, 13-May-2014
1247,Revenue,CCHD,Bed Purchasing - Elderly - South,Permanent Residential,Leonard Cheshire  National Account Centr,4492.08, 13-May-2014
1248,Revenue,CCHD,Bed purchasing - Phys Dis - North,Permanent Nursing,Leonard Cheshire  National Account Centr,2881.12, 13-May-2014
1249,Revenue,CCHD,Bed purchasing - Phys Dis - North,Permanent Nursing,Leonard Cheshire  National Account Centr,3869.32, 13-May-2014
1250,Revenue,CCHD,Bed purchasing - Phys Dis - North,Permanent Residential,Leonard Cheshire  National Account Centr,2932.64, 13-May-2014
1251,Revenue,CCHD,Bed purchasing - Phys Dis - North,Permanent Nursing,Leonard Cheshire  National Account Centr,4535.00, 13-May-2014
1252,Revenue,CCHD,Bed purchasing - Phys Dis - North,Permanent Nursing,Leonard Cheshire  National Account Centr,3271.52, 13-May-2014
1253,Revenue,CCHD,Bed purchasing - Phys Dis - North,Permanent Nursing,Leonard Cheshire  National Account Centr,5603.08, 13-May-2014
1254,Revenue,CCHD,Bed Purchasing - Elderly - South,Permanent Nursing,Leonard Cheshire  National Account Centr,2908.60, 13-May-2014
1255,Revenue,CCHD,Bed Purchasing - Southmead Hospital,Permanent Nursing,Leonard Cheshire  National Account Centr,3041.76, 13-May-2014
1256,Revenue,CCHD,South Glos Users in South Glos Homes,Permanent Nursing,Leonard Cheshire  National Account Centr,1199.08, 13-May-2014
1257,Revenue,CCHD,Bed purchasing - Phys Dis - North,Permanent Nursing,Leonard Cheshire  National Account Centr,3358.64, 13-May-2014
1258,Revenue,CCHD,Bed purchasing - Phys Dis - North,Permanent Nursing,Leonard Cheshire  National Account Centr,2518.98, 13-May-2014
1259,Revenue,CCHD,Bed purchasing - Phys Dis - North,Permanent Nursing,Leonard Cheshire  National Account Centr,4127.12, 13-May-2014
1260,Revenue,CCHD,Bed Purchasing - Elderly - South,Permanent Nursing,Leonard Cheshire  National Account Centr,4560.88, 13-May-2014
1261,Revenue,CCHD,Bed Purchasing - Elderly S117- North,Permanent Nursing,Leonard Elms Care Home,2891.00, 13-May-2014
1262,Revenue,CCHD,Bed Purchasing - Elderly - South,Permanent Nursing,Leonard Elms Care Home,1562.76, 13-May-2014
1263,Revenue,CCHD,Supported Living - North,Private & Voluntary Home Care,Lifeways Community Care (Gloucester) Ltd,8792.00, 20-May-2014
1264,Revenue,CCHD,Supported Living - North,Private & Voluntary Home Care,Lifeways Community Care (Gloucester) Ltd,11373.00, 01-May-2014
1265,Revenue,CCHD,Supported Living - North,Private & Voluntary Home Care,Lifeways Community Care (Gloucester) Ltd,11373.00, 02-May-2014
1266,Revenue,CCHD,Supported Living - North,Private & Voluntary Home Care,Lifeways Community Care (Gloucester) Ltd,11373.00, 23-May-2014
1267,Revenue,CCHD,Bed Purchasing - Frenchay Hospital,Permanent Residential,Little Croft,1268.20, 13-May-2014
1268,Revenue,CCHD,Bed Purchasing - Elderly - South,Permanent Residential,Little Croft,1570.60, 13-May-2014
1269,Revenue,CCHD,Bed Purchasing - Elderly - South,Permanent Residential,Little Croft,1602.64, 13-May-2014
1270,Revenue,CCHD,Bed Purchasing - Southmead Hospital,Permanent Residential,Little Croft,1748.76, 13-May-2014
1271,Revenue,CCHD,Bed Purchasing - Elderly - South,Permanent Residential,Little Croft,1883.48, 13-May-2014
1272,Revenue,CCHD,Bed Purchasing - Southmead Hospital,Permanent Residential,Little Croft,780.36, 13-May-2014
1273,Revenue,CCHD,Bed Purchasing - Frenchay Hospital,Permanent Residential,Little Croft,1189.72, 13-May-2014
1274,Revenue,CCHD,Bed Purchasing - Southmead Hospital,Permanent Residential,Little Croft,619.24, 13-May-2014
1275,Revenue,CCHD,Bed Purchasing - Elderly MH - South,Permanent Residential,Little Croft,1181.96, 13-May-2014
1276,Revenue,CCHD,Bed Purchasing - Elderly - South,Permanent Residential,Little Croft,1050.36, 13-May-2014
1277,Revenue,CCHD,Bed Purchasing - Elderly MH - South,Permanent Residential,Little Croft,1633.20, 13-May-2014
1278,Revenue,CCHD,Bed Purchasing - Southmead Hospital,Permanent Residential,Little Croft,1260.20, 13-May-2014
1279,Revenue,CCHD,Bed Purchasing - Elderly - North,Permanent Residential,Little Croft,1349.44, 13-May-2014
1280,Revenue,CCHD,Bed Purchasing - Frenchay Hospital,Respite Planned - Residential,Little Croft,3906.98, 13-May-2014
1281,Revenue,CCHD,Bed Purchasing - Southmead Hospital,Permanent Residential,Little Croft,1260.20, 13-May-2014
1282,Revenue,CCHD,Bed purchasing - Under 65s PWLD - North,Permanent Residential,Littlecroft Residential Homes  Longcroft,6481.28, 13-May-2014
1283,Revenue,CCHD,Home Care - Elderly - North,Other Small Contracts,Lloyds TSB Commercial Finance Limited,6302.92, 06-May-2014
1284,Revenue,CCHD,Day Care - North,Private & Voluntary Day Care,Lloyds TSB Commercial Finance Limited,140.76, 06-May-2014
1285,Revenue,CCHD,Home Care - Elderly - North,Other Small Contracts,Lloyds TSB Commercial Finance Limited,6291.19, 06-May-2014
1286,Revenue,CCHD,Day Care - North,Private & Voluntary Day Care,Lloyds TSB Commercial Finance Limited,93.84, 06-May-2014
1287,Revenue,CCHD,Home Care - Elderly - North,Other Small Contracts,Lloyds TSB Commercial Finance Limited,6095.69, 13-May-2014
1288,Revenue,CCHD,Day Care - North,Private & Voluntary Day Care,Lloyds TSB Commercial Finance Limited,46.92, 13-May-2014
1289,Revenue,CCHD,Home Care - Elderly - North,Other Small Contracts,Lloyds TSB Commercial Finance Limited,5982.79, 14-May-2014
1290,Revenue,CCHD,Day Care - North,Private & Voluntary Day Care,Lloyds TSB Commercial Finance Limited,47.64, 14-May-2014
1291,Revenue,CCHD,Home Care - Elderly - North,Other Small Contracts,Lloyds TSB Commercial Finance Limited,6157.47, 23-May-2014
1292,Revenue,CCHD,Day Care - North,Private & Voluntary Day Care,Lloyds TSB Commercial Finance Limited,91.31, 23-May-2014
1293,Revenue,CCHD,Home Care - Elderly - North,Other Small Contracts,Lloyds TSB Commercial Finance Limited,6109.83, 20-May-2014
1294,Revenue,CCHD,Day Care - North,Private & Voluntary Day Care,Lloyds TSB Commercial Finance Limited,95.28, 20-May-2014
1295,Revenue,CCHD,Supported Living - South,Private & Voluntary Home Care,Lloyds TSB Commercial Finance Limited,10134.52, 20-May-2014
1296,Revenue,CCHD,Supported Living - South,Private & Voluntary Home Care,Lloyds TSB Commercial Finance Limited,3866.07, 20-May-2014
1297,Revenue,CCHD,Supported Living - South,Private & Voluntary Home Care,Lloyds TSB Commercial Finance Limited,3894.10, 20-May-2014
1298,Revenue,CCHD,Supported Living - South,Private & Voluntary Home Care,Lloyds TSB Commercial Finance Limited,3705.62, 23-May-2014
1299,Revenue,CCHD,Supported Living - South,Private & Voluntary Home Care,Lloyds TSB Commercial Finance Limited,9199.95, 20-May-2014
1300,Revenue,CCHD,Supported Living - South,Private & Voluntary Home Care,Lloyds TSB Commercial Finance Limited,3822.30, 23-May-2014
1301,Revenue,CCHD,Supported Living - South,Private & Voluntary Home Care,Lloyds TSB Commercial Finance Limited,7785.72, 23-May-2014
1302,Revenue,CCHD,Supported Living - South,Private & Voluntary Home Care,Lloyds TSB Commercial Finance Limited,3755.33, 20-May-2014
1303,Revenue,CCHD,Supported Living - North,Private & Voluntary Home Care,Lloyds TSB Commercial Finance Limited,9359.85, 20-May-2014
1304,Revenue,CCHD,Supported Living - South,Private & Voluntary Home Care,Lloyds TSB Commercial Finance Limited,3936.69, 20-May-2014
1305,Revenue,CCHD,Supported Living - South,Private & Voluntary Home Care,Lloyds TSB Commercial Finance Limited,3582.23, 20-May-2014
1306,Revenue,CCHD,Supported Living - South,Private & Voluntary Home Care,Lloyds TSB Commercial Finance Limited,3609.14, 20-May-2014
1307,Revenue,CCHD,Supported Living - South,Private & Voluntary Home Care,Lloyds TSB Commercial Finance Limited,5945.75, 20-May-2014
1308,Revenue,CCHD,Supported Living - South,Private & Voluntary Home Care,Lloyds TSB Commercial Finance Limited,3555.84, 20-May-2014
1309,Revenue,CCHD,Supported Living - South,Private & Voluntary Home Care,Lloyds TSB Commercial Finance Limited,3639.57, 23-May-2014
1310,Revenue,CCHD,Supported Living - North,Private & Voluntary Home Care,Lloyds TSB Commercial Finance Limited,8023.55, 20-May-2014
1311,Revenue,CCHD,Supported Living - South,Private & Voluntary Home Care,Lloyds TSB Commercial Finance Limited,3468.98, 20-May-2014
1312,Revenue,CCHD,Supported Living - South,Private & Voluntary Home Care,Loga Care Ltd (T/A Logacare),3795.33, 01-May-2014
1313,Revenue,CCHD,Supported Living - South,Private & Voluntary Home Care,Loga Care Ltd (T/A Logacare),3672.90, 30-May-2014
1314,Revenue,CCHD,Social Lettings Agency,Fees - General,Lorna Ricketts,10.00, 01-May-2014
1315,Revenue,CCHD,Social Lettings Agency,Other Supplies & Services,Lorna Ricketts,565.00, 01-May-2014
1316,Revenue,CCHD,Social Lettings Agency,Fees - General,Lorna Ricketts,10.00, 30-May-2014
1317,Revenue,CCHD,Social Lettings Agency,Other Supplies & Services,Lorna Ricketts,565.00, 30-May-2014
1318,Revenue,CCHD,Day Care - North,Private & Voluntary Day Care,Lower Kilcott,1466.00, 13-May-2014
1319,Revenue,CCHD,Day Care - North,Private & Voluntary Day Care,Lower Kilcott,560.64, 13-May-2014
1320,Revenue,CCHD,Bed Purchasing - Southmead Hospital,Permanent Nursing,Majestic 3 Limited,1000.20, 13-May-2014
1321,Revenue,CCHD,Home Care - Elderly - South,Other Small Contracts,Manor Community Domiciliary Care Agency,404.10, 02-May-2014
1322,Revenue,CCHD,Under 65s -MH  Home Care Purch,Other Small Contracts,Manor Community Domiciliary Care Agency,89.76, 02-May-2014
1323,Revenue,CCHD,Elderly MH Day Care North,Private & Voluntary Day Care,Manor Community Domiciliary Care Agency,44.88, 02-May-2014
1324,Revenue,CCHD,Home Care - Elderly - South,Other Small Contracts,Manor Community Domiciliary Care Agency,457.40, 09-May-2014
1325,Revenue,CCHD,Under 65s -MH  Home Care Purch,Other Small Contracts,Manor Community Domiciliary Care Agency,89.76, 09-May-2014
1326,Revenue,CCHD,Elderly MH Day Care North,Private & Voluntary Day Care,Manor Community Domiciliary Care Agency,44.88, 09-May-2014
1327,Revenue,CCHD,Home Care - Elderly - South,Other Small Contracts,Manor Community Domiciliary Care Agency,464.90, 16-May-2014
1328,Revenue,CCHD,Under 65s -MH  Home Care Purch,Other Small Contracts,Manor Community Domiciliary Care Agency,89.76, 16-May-2014
1329,Revenue,CCHD,Elderly MH Day Care North,Private & Voluntary Day Care,Manor Community Domiciliary Care Agency,44.88, 16-May-2014
1330,Revenue,CCHD,Bed Purchasing - Elderly - South,Permanent Residential,Manor Cottage,1456.52, 13-May-2014
1331,Revenue,CCHD,Bed Purchasing - Southmead Hospital,Permanent Residential,Manor Cottage,1260.20, 13-May-2014
1332,Revenue,CCHD,Bed Purchasing - Elderly - North,Permanent Residential,Manton Hall Residential Home,1521.60, 13-May-2014
1333,Revenue,CCHD,Supported Living - South,Private & Voluntary Home Care,Maples Community Care Limited,2889.60, 13-May-2014
1334,Revenue,CCHD,Supported Living - South,Private & Voluntary Home Care,Maples Community Care Limited,2889.60, 13-May-2014
1335,Revenue,CCHD,Section 117 Placements MH Younger,Private & Voluntary Day Care,Maples Community Care Limited,798.00, 09-May-2014
1336,Revenue,CCHD,Section 117 Placements MH Younger,Private & Voluntary Day Care,Maples Community Care Limited,2597.00, 09-May-2014
1337,Revenue,CCHD,Younger MH non-res purchasing,Private & Voluntary Day Care,Maples Community Care Limited,2597.00, 09-May-2014
1338,Revenue,CCHD,Section 117 Placements MH Younger,Private & Voluntary Day Care,Maples Community Care Limited,2597.00, 09-May-2014
1339,Revenue,CCHD,Supporting People Programme,Grants to Voluntary Bodies,Maples Community Housing Limited,2717.25, 01-May-2014
1340,Revenue,CCHD,Supporting People Programme,Grants to Voluntary Bodies,Maples Community Housing Limited,2717.25, 30-May-2014
1341,Revenue,CCHD,Social Lettings Agency,Fees - General,Margaret O`Hara,11.60, 20-May-2014
1342,Revenue,CCHD,Social Lettings Agency,Other Supplies & Services,Margaret O`Hara,655.41, 20-May-2014
1343,Revenue,CCHD,Bed Purchasing - Under 65s PWLD - South,Permanent Residential,Marsden Healthcare Limited,913.72, 09-May-2014
1344,Revenue,CCHD,Bed purchasing - Elderly PWLD - South,Permanent Residential,Marsden Healthcare Limited,3247.80, 09-May-2014
1345,Revenue,CCHD,Bed purchasing - Elderly PWLD - South,Permanent Residential,Marsden Healthcare Limited,1525.64, 09-May-2014
1346,Revenue,CCHD,Bed Purchasing - Elderly - South,Permanent Nursing,Meadow Care Home,1928.88, 13-May-2014
1347,Revenue,CCHD,Home Care - Elderly - South,Other Small Contracts,Mears Care,531.30, 06-May-2014
1348,Revenue,CCHD,Home Care - Elderly - North,Other Small Contracts,Mears Care,4685.45, 06-May-2014
1349,Revenue,CCHD,Day Care - North,Private & Voluntary Day Care,Mears Care,146.30, 06-May-2014
1350,Revenue,CCHD,Under 65s -MH  Home Care Purch,Other Small Contracts,Mears Care,115.50, 06-May-2014
1351,Revenue,CCHD,Home Care - Elderly LD - KH,Private & Voluntary Home Care,Mears Care,53.90, 06-May-2014
1352,Revenue,CCHD,Home Care - Elderly - South,Other Small Contracts,Mears Care,500.50, 06-May-2014
1353,Revenue,CCHD,Home Care - Elderly - North,Other Small Contracts,Mears Care,4546.85, 06-May-2014
1354,Revenue,CCHD,Day Care - North,Private & Voluntary Day Care,Mears Care,146.30, 06-May-2014
1355,Revenue,CCHD,Under 65s -MH  Home Care Purch,Other Small Contracts,Mears Care,115.50, 06-May-2014
1356,Revenue,CCHD,Home Care - Elderly LD - KH,Private & Voluntary Home Care,Mears Care,50.05, 06-May-2014
1357,Revenue,CCHD,Home Care - Elderly - South,Other Small Contracts,Mears Care,523.60, 06-May-2014
1358,Revenue,CCHD,Home Care - Elderly - North,Other Small Contracts,Mears Care,4181.10, 06-May-2014
1359,Revenue,CCHD,Day Care - North,Private & Voluntary Day Care,Mears Care,115.50, 06-May-2014
1360,Revenue,CCHD,Under 65s -MH  Home Care Purch,Other Small Contracts,Mears Care,115.50, 06-May-2014
1361,Revenue,CCHD,Home Care - Elderly LD - KH,Private & Voluntary Home Care,Mears Care,53.90, 06-May-2014
1362,Revenue,CCHD,Home Care - Elderly - South,Other Small Contracts,Mears Care,512.05, 29-May-2014
1363,Revenue,CCHD,Home Care - Elderly - North,Other Small Contracts,Mears Care,4427.50, 29-May-2014
1364,Revenue,CCHD,Day Care - North,Private & Voluntary Day Care,Mears Care,123.20, 29-May-2014
1365,Revenue,CCHD,Under 65s -MH  Home Care Purch,Other Small Contracts,Mears Care,115.50, 29-May-2014
1366,Revenue,CCHD,Home Care - Elderly LD - KH,Private & Voluntary Home Care,Mears Care,53.90, 29-May-2014
1367,Revenue,CCHD,Home Care - Elderly - South,Other Small Contracts,Mears Care,585.20, 29-May-2014
1368,Revenue,CCHD,Home Care - Elderly - North,Other Small Contracts,Mears Care,4477.55, 29-May-2014
1369,Revenue,CCHD,Day Care - North,Private & Voluntary Day Care,Mears Care,146.30, 29-May-2014
1370,Revenue,CCHD,Under 65s -MH  Home Care Purch,Other Small Contracts,Mears Care,115.50, 29-May-2014
1371,Revenue,CCHD,Home Care - Elderly LD - KH,Private & Voluntary Home Care,Mears Care,53.90, 29-May-2014
1372,Revenue,CCHD,Home Care - Elderly - South,Private & Voluntary Home Care,Mears Care,48544.00, 28-May-2014
1373,Revenue,CCHD,Home Care - Elderly - South,Other Small Contracts,Medacs Home Care,276.50, 12-May-2014
1374,Revenue,CCHD,Home Care - Elderly - North,Other Small Contracts,Medacs Home Care,486.20, 12-May-2014
1375,Revenue,CCHD,Home care - Elderly MH - North,Other Small Contracts,Medacs Home Care,105.00, 12-May-2014
1376,Revenue,CCHD,Home Care - Elderly - South,Other Small Contracts,Medacs Home Care,210.00, 23-May-2014
1377,Revenue,CCHD,Home Care - Elderly - North,Other Small Contracts,Medacs Home Care,535.20, 23-May-2014
1378,Revenue,CCHD,Home care - Elderly MH - North,Other Small Contracts,Medacs Home Care,98.00, 23-May-2014
1379,Revenue,CCHD,Home Care - Elderly - South,Other Small Contracts,Medacs Home Care,210.00, 20-May-2014
1380,Revenue,CCHD,Home Care - Elderly - North,Other Small Contracts,Medacs Home Care,584.20, 20-May-2014
1381,Revenue,CCHD,Home Care - Elderly - South,Other Small Contracts,Medacs Home Care,192.50, 30-May-2014
1382,Revenue,CCHD,Home Care - Elderly - North,Other Small Contracts,Medacs Home Care,636.70, 30-May-2014
1383,Revenue,CCHD,NRS Contract,Daily Living Equipment,Medequip Assistive Technology Ltd,36073.70, 28-May-2014
1384,Revenue,CCHD,NRS Contract,Daily Living Equipment,Medequip Assistive Technology Ltd,81412.24, 28-May-2014
1385,Revenue,CCHD,NRS Contract,Daily Living Equipment,Medequip Assistive Technology Ltd,33024.70, 30-May-2014
1386,Revenue,CCHD,NRS Contract,Daily Living Equipment,Medequip Assistive Technology Ltd,62848.16, 30-May-2014
1387,Revenue,CCHD,Bed Purchasing - Under 65s PWLD - South,Permanent Residential,Mencap,3941.84, 13-May-2014
1388,Revenue,CCHD,Supported Living (S28a) South,Private & Voluntary Home Care,Mencap - PS Central & Cymru,3786.86, 28-May-2014
1389,Revenue,CCHD,Supported Living (S28a) South,Private & Voluntary Home Care,Mencap - PS Central & Cymru,3786.86, 02-May-2014
1390,Revenue,CCHD,Supported Living (S28a) South,Private & Voluntary Home Care,Mencap - PS Central & Cymru,3786.86, 19-May-2014
1391,Revenue,CCHD,Supported Living (S28a) South,Private & Voluntary Home Care,Mencap - PS Central & Cymru,3786.86, 21-May-2014
1392,Revenue,CCHD,Supporting People Programme,Grants to Voluntary Bodies,Merlin Housing Society,14628.50, 01-May-2014
1393,Revenue,CCHD,Supporting People Programme,Grants to Voluntary Bodies,Merlin Housing Society,2458.92, 01-May-2014
1394,Revenue,CCHD,Supporting People Programme,Grants to Voluntary Bodies,Merlin Housing Society,47076.50, 01-May-2014
1395,Revenue,CCHD,Supporting People Programme,Grants to Voluntary Bodies,Merlin Housing Society,1041.83, 01-May-2014
1396,Revenue,CCHD,Supporting People Programme,Grants to Voluntary Bodies,Merlin Housing Society,14628.50, 30-May-2014
1397,Revenue,CCHD,Supporting People Programme,Grants to Voluntary Bodies,Merlin Housing Society,2458.92, 30-May-2014
1398,Revenue,CCHD,Supporting People Programme,Grants to Voluntary Bodies,Merlin Housing Society,47076.50, 30-May-2014
1399,Revenue,CCHD,Supporting People Programme,Grants to Voluntary Bodies,Merlin Housing Society,1041.83, 30-May-2014
1400,Revenue,CCHD,Intermediate Care Accommodation,Other Supplies & Services,Merlin Housing Society,491.13, 23-May-2014
1401,Revenue,CCHD,Home Care - Elderly - South,Other Small Contracts,MiHomecare,614.46, 20-May-2014
1402,Revenue,CCHD,Home Care - Elderly - North,Other Small Contracts,MiHomecare,2562.15, 20-May-2014
1403,Revenue,CCHD,Home Care - Elderly - South,Other Small Contracts,MiHomecare,610.47, 20-May-2014
1404,Revenue,CCHD,Home Care - Elderly - North,Other Small Contracts,MiHomecare,2566.14, 20-May-2014
1405,Revenue,CCHD,Home Care - Elderly - South,Other Small Contracts,MiHomecare,534.66, 13-May-2014
1406,Revenue,CCHD,Home Care - Elderly - North,Other Small Contracts,MiHomecare,1792.08, 13-May-2014
1407,Revenue,CCHD,Home Care - Elderly - South,Other Small Contracts,MiHomecare,518.70, 08-May-2014
1408,Revenue,CCHD,Home Care - Elderly - North,Other Small Contracts,MiHomecare,1736.22, 08-May-2014
1409,Revenue,CCHD,Home Care - Elderly - South,Other Small Contracts,MiHomecare,534.60, 13-May-2014
1410,Revenue,CCHD,Home Care - Elderly - North,Other Small Contracts,MiHomecare,1826.34, 13-May-2014
1411,Revenue,CCHD,Home Care - Elderly - South,Other Small Contracts,MiHomecare,562.95, 13-May-2014
1412,Revenue,CCHD,Home Care - Elderly - North,Other Small Contracts,MiHomecare,1781.79, 13-May-2014
1413,Revenue,CCHD,Home Care - Elderly - South,Other Small Contracts,MiHomecare,1340.64, 16-May-2014
1414,Revenue,CCHD,Home Care - Elderly - North,Other Small Contracts,MiHomecare,2873.37, 16-May-2014
1415,Revenue,CCHD,Home care - Elderly MH - North,Other Small Contracts,MiHomecare,15.96, 16-May-2014
1416,Revenue,CCHD,Bed Purchasing - Frenchay Hospital,Permanent Residential,Milburn Finance,1055.44, 13-May-2014
1417,Revenue,CCHD,Home Care - Elderly - South,Other Small Contracts,Milestones Homecare & Dementia Service,1493.80, 06-May-2014
1418,Revenue,CCHD,Home Care - Elderly - North,Other Small Contracts,Milestones Homecare & Dementia Service,2025.36, 06-May-2014
1419,Revenue,CCHD,Home care - Elderly MH - North,Other Small Contracts,Milestones Homecare & Dementia Service,54.32, 06-May-2014
1420,Revenue,CCHD,Home Care - Elderly - South,Other Small Contracts,Milestones Homecare & Dementia Service,1416.20, 06-May-2014
1421,Revenue,CCHD,Home Care - Elderly - North,Other Small Contracts,Milestones Homecare & Dementia Service,1936.12, 06-May-2014
1422,Revenue,CCHD,Home care - Elderly MH - North,Other Small Contracts,Milestones Homecare & Dementia Service,42.68, 06-May-2014
1423,Revenue,CCHD,Home Care - Elderly - South,Other Small Contracts,Milestones Homecare & Dementia Service,1319.20, 13-May-2014
1424,Revenue,CCHD,Home Care - Elderly - North,Other Small Contracts,Milestones Homecare & Dementia Service,2203.84, 13-May-2014
1425,Revenue,CCHD,Home care - Elderly MH - North,Other Small Contracts,Milestones Homecare & Dementia Service,54.32, 13-May-2014
1426,Revenue,CCHD,Home Care - Elderly - South,Other Small Contracts,Milestones Homecare & Dementia Service,1451.12, 13-May-2014
1427,Revenue,CCHD,Home Care - Elderly - North,Other Small Contracts,Milestones Homecare & Dementia Service,2219.36, 13-May-2014
1428,Revenue,CCHD,Home care - Elderly MH - North,Other Small Contracts,Milestones Homecare & Dementia Service,54.32, 13-May-2014
1429,Revenue,CCHD,Home Care - Elderly - South,Other Small Contracts,Milestones Homecare & Dementia Service,1264.88, 13-May-2014
1430,Revenue,CCHD,Home Care - Elderly - North,Other Small Contracts,Milestones Homecare & Dementia Service,1943.88, 13-May-2014
1431,Revenue,CCHD,Home care - Elderly MH - North,Other Small Contracts,Milestones Homecare & Dementia Service,54.32, 13-May-2014
1432,Revenue,CCHD,Home Care - Elderly - South,Other Small Contracts,Milestones Homecare & Dementia Service,1358.00, 21-May-2014
1433,Revenue,CCHD,Home Care - Elderly - North,Other Small Contracts,Milestones Homecare & Dementia Service,2044.76, 21-May-2014
1434,Revenue,CCHD,Home care - Elderly MH - North,Other Small Contracts,Milestones Homecare & Dementia Service,54.32, 21-May-2014
1435,Revenue,CCHD,Home Care - Elderly - South,Other Small Contracts,Milestones Supported Living Services,741.85, 13-May-2014
1436,Revenue,CCHD,Home Care - Elderly - North,Other Small Contracts,Milestones Supported Living Services,48.12, 13-May-2014
1437,Revenue,CCHD,Day Care - South,Private & Voluntary Day Care,Milestones Supported Living Services,96.24, 13-May-2014
1438,Revenue,CCHD,Day Care - North,Private & Voluntary Day Care,Milestones Supported Living Services,233.36, 13-May-2014
1439,Revenue,CCHD,Younger MH non-res purchasing,Private & Voluntary Day Care,Milestones Supported Living Services,32.08, 13-May-2014
1440,Revenue,CCHD,Home care - Elderly MH - North,Other Small Contracts,Milestones Supported Living Services,64.16, 13-May-2014
1441,Revenue,CCHD,Home Care - Elderly - South,Other Small Contracts,Milestones Supported Living Services,938.34, 13-May-2014
1442,Revenue,CCHD,Home Care - Elderly - North,Other Small Contracts,Milestones Supported Living Services,48.12, 13-May-2014
1443,Revenue,CCHD,Day Care - South,Private & Voluntary Day Care,Milestones Supported Living Services,32.08, 13-May-2014
1444,Revenue,CCHD,Day Care - North,Private & Voluntary Day Care,Milestones Supported Living Services,213.31, 13-May-2014
1445,Revenue,CCHD,Younger MH non-res purchasing,Private & Voluntary Day Care,Milestones Supported Living Services,24.06, 13-May-2014
1446,Revenue,CCHD,Home care - Elderly MH - North,Other Small Contracts,Milestones Supported Living Services,68.17, 13-May-2014
1447,Revenue,CCHD,Home Care - Elderly - South,Other Small Contracts,Milestones Supported Living Services,938.34, 06-May-2014
1448,Revenue,CCHD,Home Care - Elderly - North,Other Small Contracts,Milestones Supported Living Services,48.12, 06-May-2014
1449,Revenue,CCHD,Day Care - South,Private & Voluntary Day Care,Milestones Supported Living Services,32.08, 06-May-2014
1450,Revenue,CCHD,Day Care - North,Private & Voluntary Day Care,Milestones Supported Living Services,229.35, 06-May-2014
1451,Revenue,CCHD,Younger MH non-res purchasing,Private & Voluntary Day Care,Milestones Supported Living Services,24.06, 06-May-2014
1452,Revenue,CCHD,Home care - Elderly MH - North,Other Small Contracts,Milestones Supported Living Services,64.16, 06-May-2014
1453,Revenue,CCHD,Home Care - Elderly - South,Other Small Contracts,Milestones Supported Living Services,4342.83, 23-May-2014
1454,Revenue,CCHD,Home Care - Elderly - North,Other Small Contracts,Milestones Supported Living Services,48.12, 23-May-2014
1455,Revenue,CCHD,Day Care - South,Private & Voluntary Day Care,Milestones Supported Living Services,96.24, 23-May-2014
1456,Revenue,CCHD,Day Care - North,Private & Voluntary Day Care,Milestones Supported Living Services,225.34, 23-May-2014
1457,Revenue,CCHD,Younger MH non-res purchasing,Private & Voluntary Day Care,Milestones Supported Living Services,24.06, 23-May-2014
1458,Revenue,CCHD,Home care - Elderly MH - North,Other Small Contracts,Milestones Supported Living Services,64.16, 23-May-2014
1459,Revenue,CCHD,Home Care - Elderly - South,Other Small Contracts,Milestones Supported Living Services,4415.01, 23-May-2014
1460,Revenue,CCHD,Home Care - Elderly - North,Other Small Contracts,Milestones Supported Living Services,48.12, 23-May-2014
1461,Revenue,CCHD,Day Care - South,Private & Voluntary Day Care,Milestones Supported Living Services,100.25, 23-May-2014
1462,Revenue,CCHD,Day Care - North,Private & Voluntary Day Care,Milestones Supported Living Services,229.35, 23-May-2014
1463,Revenue,CCHD,Younger MH non-res purchasing,Private & Voluntary Day Care,Milestones Supported Living Services,32.08, 23-May-2014
1464,Revenue,CCHD,Home care - Elderly MH - North,Other Small Contracts,Milestones Supported Living Services,64.16, 23-May-2014
1465,Revenue,CCHD,Supported Living (S28a) North,Private & Voluntary Home Care,Milestones Trust,995.88, 01-May-2014
1466,Revenue,CCHD,Supported Living (S28a) North,Private & Voluntary Home Care,Milestones Trust,3512.60, 23-May-2014
1467,Revenue,CCHD,Supported Living (S28a) North,Private & Voluntary Home Care,Milestones Trust,3512.60, 23-May-2014
1468,Revenue,CCHD,Supported Living (S28a) North,Private & Voluntary Home Care,Milestones Trust,3957.04, 23-May-2014
1469,Revenue,CCHD,Supported Living (S28a) North,Private & Voluntary Home Care,Milestones Trust,3974.00, 23-May-2014
1470,Revenue,CCHD,Stibbs and Fairburn,Respite Planned - Residential,Milestones Trust,127861.00, 02-May-2014
1471,Revenue,CCHD,Supported Living (S28a) North,Private & Voluntary Home Care,Milestones Trust,5322.47, 02-May-2014
1472,Revenue,CCHD,Supported Living (S28a) South,Private & Voluntary Home Care,Milestones Trust,3731.26, 02-May-2014
1473,Revenue,CCHD,Supported Living (S28a) South,Private & Voluntary Home Care,Milestones Trust,3291.12, 02-May-2014
1474,Revenue,CCHD,Supported Living (S28a) South,Private & Voluntary Home Care,Milestones Trust,3795.84, 02-May-2014
1475,Revenue,CCHD,Supported Living (S28a) South,Private & Voluntary Home Care,Milestones Trust,566.83, 02-May-2014
1476,Revenue,CCHD,Supported Living (S28a) North,Private & Voluntary Home Care,Milestones Trust,3638.05, 02-May-2014
1477,Revenue,CCHD,Supported Living (S28a) North,Private & Voluntary Home Care,Milestones Trust,3985.45, 22-May-2014
1478,Revenue,CCHD,Supported Living (S28a) South,Private & Voluntary Home Care,Milestones Trust,6561.03, 21-May-2014
1479,Revenue,CCHD,Supported Living (S28a) South,Private & Voluntary Home Care,Milestones Trust,585.39, 02-May-2014
1480,Revenue,CCHD,Supported Living (S28a) North,Private & Voluntary Home Care,Milestones Trust,4115.93, 02-May-2014
1481,Revenue,CCHD,Supported Living (S28a) North,Private & Voluntary Home Care,Milestones Trust,4381.00, 02-May-2014
1482,Revenue,CCHD,Supported Living (S28a) South,Private & Voluntary Home Care,Milestones Trust,1380.36, 02-May-2014
1483,Revenue,CCHD,Supported Living (S28a) North,Private & Voluntary Home Care,Milestones Trust,9293.06, 02-May-2014
1484,Revenue,CCHD,Supported Living (S28a) North,Private & Voluntary Home Care,Milestones Trust,9314.42, 02-May-2014
1485,Revenue,CCHD,Purchase of Non-Res Care - South,Private & Voluntary Day Care,Milestones Trust,1678.32, 02-May-2014
1486,Revenue,CCHD,Purchase of Non-Res Care - South,Private & Voluntary Day Care,Milestones Trust,1339.48, 02-May-2014
1487,Revenue,CCHD,Supported Living - South,Private & Voluntary Home Care,Milestones Trust,1308.74, 02-May-2014
1488,Revenue,CCHD,Purchase of Non-Res Care - South,Private & Voluntary Day Care,Milestones Trust,1320.14, 06-May-2014
1489,Revenue,CCHD,Purchase of Non-Res Care - South,Private & Voluntary Day Care,Milestones Trust,1397.74, 02-May-2014
1490,Revenue,CCHD,Purchase of Non-Res Care - South,Private & Voluntary Day Care,Milestones Trust,3637.44, 02-May-2014
1491,Revenue,CCHD,Supported Living - South,Private & Voluntary Home Care,Milestones Trust,1764.53, 02-May-2014
1492,Revenue,CCHD,Purchase of Non-Res Care - South,Private & Voluntary Day Care,Milestones Trust,1563.06, 02-May-2014
1493,Revenue,CCHD,Purchase of Non-Res Care - South,Private & Voluntary Day Care,Milestones Trust,1461.62, 02-May-2014
1494,Revenue,CCHD,Purchase of Non-Res Care - South,Private & Voluntary Day Care,Milestones Trust,758.22, 02-May-2014
1495,Revenue,CCHD,Purchase of Non-Res Care - South,Private & Voluntary Day Care,Milestones Trust,1204.43, 02-May-2014
1496,Revenue,CCHD,Supported Living - South,Private & Voluntary Home Care,Milestones Trust,2218.30, 02-May-2014
1497,Revenue,CCHD,Purchase of Non-Res Care - South,Private & Voluntary Day Care,Milestones Trust,1509.29, 02-May-2014
1498,Revenue,CCHD,Purchase of Non-Res Care - South,Private & Voluntary Day Care,Milestones Trust,903.06, 28-May-2014
1499,Revenue,CCHD,Purchase of Non-Res Care - South,Private & Voluntary Day Care,Milestones Trust,747.36, 28-May-2014
1500,Revenue,CCHD,Purchase of Non-Res Care - South,Private & Voluntary Day Care,Milestones Trust,560.52, 28-May-2014
1501,Revenue,CCHD,Purchase of Non-Res Care - South,Private & Voluntary Day Care,Milestones Trust,622.80, 28-May-2014
1502,Revenue,CCHD,Supported Living - South,Private & Voluntary Home Care,Milestones Trust,747.36, 28-May-2014
1503,Revenue,CCHD,Purchase of Non-Res Care - South,Private & Voluntary Day Care,Milestones Trust,747.36, 28-May-2014
1504,Revenue,CCHD,Purchase of Non-Res Care - South,Private & Voluntary Day Care,Milestones Trust,747.36, 28-May-2014
1505,Revenue,CCHD,Purchase of Non-Res Care - South,Private & Voluntary Day Care,Milestones Trust,747.36, 28-May-2014
1506,Revenue,CCHD,Purchase of Non-Res Care - South,Private & Voluntary Day Care,Milestones Trust,1121.04, 29-May-2014
1507,Revenue,CCHD,Purchase of Non-Res Care - South,Private & Voluntary Day Care,Milestones Trust,1715.41, 06-May-2014
1508,Revenue,CCHD,Bed Purchasing - Winter resillience,Other Supplies & Services,Morag Duff,1189.90, 27-May-2014
1509,Revenue,CCHD,Bed Purchasing - Frenchay Hospital,Permanent Residential,Mostyn Lodge Residential Home,1133.48, 13-May-2014
1510,Revenue,CCHD,Bed purchasing - Elderly S117 - South,Permanent Residential,Mostyn Lodge Residential Home,1928.00, 13-May-2014
1511,Revenue,CCHD,Day Care - South,Private & Voluntary Day Care,Moving On,1124.04, 02-May-2014
1512,Revenue,CCHD,Social Lettings Agency,Fees - General,Mr & Mrs Howson,10.00, 07-May-2014
1513,Revenue,CCHD,Social Lettings Agency,Other Supplies & Services,Mr & Mrs Howson,565.00, 07-May-2014
1514,Revenue,CCHD,Social Lettings Agency,Fees - General,Mr & Mrs Howson,10.00, 16-May-2014
1515,Revenue,CCHD,Social Lettings Agency,Other Supplies & Services,Mr & Mrs Howson,565.00, 16-May-2014
1516,Revenue,CCHD,Social Lettings Agency,Fees - General,Mr & Mrs R Meredith,10.00, 22-May-2014
1517,Revenue,CCHD,Social Lettings Agency,Other Supplies & Services,Mr & Mrs R Meredith,565.00, 22-May-2014
1518,Revenue,CCHD,Social Lettings Agency,Fees - General,Mr & Mrs R Meredith,8.60, 22-May-2014
1519,Revenue,CCHD,Social Lettings Agency,Other Supplies & Services,Mr & Mrs R Meredith,582.00, 22-May-2014
1520,Revenue,CCHD,Social Lettings Agency,Fees - General,Mr A B & Mrs T Vadgama,11.60, 01-May-2014
1521,Revenue,CCHD,Social Lettings Agency,Other Supplies & Services,Mr A B & Mrs T Vadgama,655.41, 01-May-2014
1522,Revenue,CCHD,Social Lettings Agency,Fees - General,Mr A B & Mrs T Vadgama,11.60, 30-May-2014
1523,Revenue,CCHD,Social Lettings Agency,Other Supplies & Services,Mr A B & Mrs T Vadgama,655.41, 30-May-2014
1524,Revenue,CCHD,Homeless - Private Sector Leasing,Other Supplies & Services,Mr D G & Mrs L K Jenkins,565.00, 23-May-2014
1525,Revenue,CCHD,Social Lettings Agency,Fees - General,Mr F E & Mrs M Rogers,11.71, 09-May-2014
1526,Revenue,CCHD,Social Lettings Agency,Other Supplies & Services,Mr F E & Mrs M Rogers,661.96, 09-May-2014
1527,Revenue,CCHD,Social Lettings Agency,Fees - General,Mr Jack Davis,10.00, 08-May-2014
1528,Revenue,CCHD,Social Lettings Agency,Other Supplies & Services,Mr Jack Davis,565.00, 08-May-2014
1529,Revenue,CCHD,Direct Payments - Phys Dis -South,One-off Planned Direct Payment,Mr Mark Goodwin,2180.00, 23-May-2014
1530,Revenue,CCHD,Social Lettings Agency,Fees - General,Mr Noel Hudson,11.20, 20-May-2014
1531,Revenue,CCHD,Social Lettings Agency,Other Supplies & Services,Mr Noel Hudson,632.81, 20-May-2014
1532,Revenue,CCHD,Tenancy Start Up Scheme,Other Supplies & Services,Mr Paul Bragg,1300.00, 01-May-2014
1533,Revenue,CCHD,Social Lettings Agency,Fees - General,Mr Peter Sargent,10.00, 08-May-2014
1534,Revenue,CCHD,Social Lettings Agency,Other Supplies & Services,Mr Peter Sargent,565.00, 08-May-2014
1535,Revenue,CCHD,Social Lettings Agency,Fees - General,Mr Po Huen Wong,10.00, 30-May-2014
1536,Revenue,CCHD,Social Lettings Agency,Other Supplies & Services,Mr Po Huen Wong,565.00, 30-May-2014
1537,Revenue,CCHD,Social Lettings Agency,Fees - General,Mr Rakesh Harji,8.70, 16-May-2014
1538,Revenue,CCHD,Social Lettings Agency,Other Supplies & Services,Mr Rakesh Harji,672.80, 16-May-2014
1539,Revenue,CCHD,Tenancy Start Up Scheme,Other Supplies & Services,Mr S & Mrs D Berry,1400.00, 02-May-2014
1540,Revenue,CCHD,Social Lettings Agency,Fees - General,Mr Shaun Street,10.00, 30-May-2014
1541,Revenue,CCHD,Social Lettings Agency,Other Supplies & Services,Mr Shaun Street,565.00, 30-May-2014
1542,Revenue,CCHD,LD Direct Payments Over 65 North,One-off Planned Direct Payment,Mr Stanley Milne,576.00, 23-May-2014
1543,Revenue,CCHD,Social Lettings Agency,Fees - General,Mr Stephen O`Keefe,7.50, 06-May-2014
1544,Revenue,CCHD,Social Lettings Agency,Other Supplies & Services,Mr Stephen O`Keefe,587.25, 06-May-2014
1545,Revenue,CCHD,Home Care - Elderly - South,Other Small Contracts,Mrs B Kimber -  CM2000,11219.00, 06-May-2014
1546,Revenue,CCHD,Home Care - Elderly - North,Other Small Contracts,Mrs B Kimber -  CM2000,5807.43, 06-May-2014
1547,Revenue,CCHD,Day Care - South,Private & Voluntary Day Care,Mrs B Kimber -  CM2000,427.44, 06-May-2014
1548,Revenue,CCHD,Day Care - North,Private & Voluntary Day Care,Mrs B Kimber -  CM2000,98.64, 06-May-2014
1549,Revenue,CCHD,Under 65s -MH  Home Care Purch,Other Small Contracts,Mrs B Kimber -  CM2000,65.76, 06-May-2014
1550,Revenue,CCHD,Elderly MH Day Care North,Private & Voluntary Day Care,Mrs B Kimber -  CM2000,98.64, 06-May-2014
1551,Revenue,CCHD,Home Care - Elderly - South,Other Small Contracts,Mrs B Kimber -  CM2000,11227.22, 13-May-2014
1552,Revenue,CCHD,Home Care - Elderly - North,Other Small Contracts,Mrs B Kimber -  CM2000,5244.36, 13-May-2014
1553,Revenue,CCHD,Day Care - South,Private & Voluntary Day Care,Mrs B Kimber -  CM2000,427.44, 13-May-2014
1554,Revenue,CCHD,Day Care - North,Private & Voluntary Day Care,Mrs B Kimber -  CM2000,32.88, 13-May-2014
1555,Revenue,CCHD,Under 65s -MH  Home Care Purch,Other Small Contracts,Mrs B Kimber -  CM2000,65.76, 13-May-2014
1556,Revenue,CCHD,Elderly MH Day Care North,Private & Voluntary Day Care,Mrs B Kimber -  CM2000,98.64, 13-May-2014
1557,Revenue,CCHD,Home Care - Elderly - South,Other Small Contracts,Mrs B Kimber -  CM2000,11208.37, 21-May-2014
1558,Revenue,CCHD,Home Care - Elderly - North,Other Small Contracts,Mrs B Kimber -  CM2000,5478.63, 21-May-2014
1559,Revenue,CCHD,Day Care - South,Private & Voluntary Day Care,Mrs B Kimber -  CM2000,439.77, 21-May-2014
1560,Revenue,CCHD,Under 65s -MH  Home Care Purch,Other Small Contracts,Mrs B Kimber -  CM2000,65.76, 21-May-2014
1561,Revenue,CCHD,Elderly MH Day Care North,Private & Voluntary Day Care,Mrs B Kimber -  CM2000,98.64, 21-May-2014
1562,Revenue,CCHD,Home Care - Elderly - South,Other Small Contracts,Mrs B Kimber -  CM2000,11490.26, 21-May-2014
1563,Revenue,CCHD,Home Care - Elderly - North,Other Small Contracts,Mrs B Kimber -  CM2000,5318.34, 21-May-2014
1564,Revenue,CCHD,Day Care - South,Private & Voluntary Day Care,Mrs B Kimber -  CM2000,493.20, 21-May-2014
1565,Revenue,CCHD,Day Care - North,Private & Voluntary Day Care,Mrs B Kimber -  CM2000,20.55, 21-May-2014
1566,Revenue,CCHD,Under 65s -MH  Home Care Purch,Other Small Contracts,Mrs B Kimber -  CM2000,65.76, 21-May-2014
1567,Revenue,CCHD,Elderly MH Day Care North,Private & Voluntary Day Care,Mrs B Kimber -  CM2000,98.64, 21-May-2014
1568,Revenue,CCHD,Social Lettings Agency,Fees - General,Mrs Caroline Isaac,10.00, 16-May-2014
1569,Revenue,CCHD,Social Lettings Agency,Other Supplies & Services,Mrs Caroline Isaac,565.00, 16-May-2014
1570,Revenue,CCHD,Direct Payments - Elderly - South,One-off Planned Direct Payment,Mrs Diana Taylor,2195.00, 23-May-2014
1571,Revenue,CCHD,Social Lettings Agency,Fees - General,Mrs Elaine Turner,10.00, 14-May-2014
1572,Revenue,CCHD,Social Lettings Agency,Other Supplies & Services,Mrs Elaine Turner,565.00, 14-May-2014
1573,Revenue,CCHD,Social Lettings Agency,Fees - General,Mrs F Wilkins,10.00, 23-May-2014
1574,Revenue,CCHD,Social Lettings Agency,Other Supplies & Services,Mrs F Wilkins,565.00, 23-May-2014
1575,Revenue,CCHD,Social Lettings Agency,Fees - General,Mrs Hannah Shore,10.00, 01-May-2014
1576,Revenue,CCHD,Social Lettings Agency,Other Supplies & Services,Mrs Hannah Shore,565.00, 01-May-2014
1577,Revenue,CCHD,Social Lettings Agency,Fees - General,Mrs Hannah Shore,10.00, 30-May-2014
1578,Revenue,CCHD,Social Lettings Agency,Other Supplies & Services,Mrs Hannah Shore,565.00, 30-May-2014
1579,Revenue,CCHD,Supported Living - North,Permanent Residential,Mrs I M Bowerman,889.82, 27-May-2014
1580,Revenue,CCHD,Social Lettings Agency,Fees - General,Mrs Irene Skeates,10.00, 12-May-2014
1581,Revenue,CCHD,Social Lettings Agency,Other Supplies & Services,Mrs Irene Skeates,565.00, 12-May-2014
1582,Revenue,CCHD,Supported Living - North,Permanent Residential,Mrs Julie Taylor,1313.16, 12-May-2014
1583,Revenue,CCHD,Social Lettings Agency,Fees - General,Mrs Vicki MacDonald,11.60, 16-May-2014
1584,Revenue,CCHD,Social Lettings Agency,Other Supplies & Services,Mrs Vicki MacDonald,655.41, 16-May-2014
1585,Revenue,CCHD,Social Lettings Agency,Fees - General,Mrs Y C & Mrs E Turner,10.00, 08-May-2014
1586,Revenue,CCHD,Social Lettings Agency,Other Supplies & Services,Mrs Y C & Mrs E Turner,565.00, 08-May-2014
1587,Revenue,CCHD,Social Lettings Agency,Fees - General,Ms Ann Hunt,15.53, 09-May-2014
1588,Revenue,CCHD,Social Lettings Agency,Other Supplies & Services,Ms Ann Hunt,877.68, 09-May-2014
1589,Revenue,CCHD,Younger MH non-res purchasing,Private & Voluntary Day Care,NAS Services Limited,526.60, 16-May-2014
1590,Revenue,CCHD,Younger MH non-res purchasing,Private & Voluntary Day Care,NAS Services Limited,918.65, 29-May-2014
1591,Revenue,CCHD,Day Care - South,Private & Voluntary Day Care,NAS Services Limited,785.00, 29-May-2014
1592,Revenue,CCHD,Younger MH non-res purchasing,Private & Voluntary Day Care,NAS Services Limited,618.92, 29-May-2014
1593,Revenue,CCHD,Newton House,Security Systems,National Security Group,521.21, 22-May-2014
1594,Revenue,CCHD,Bed Purchasing - Under 65s PWLD - South,Permanent Residential,National Star College,4615.04, 13-May-2014
1595,Revenue,CCHD,Home Care - Elderly - South,Other Small Contracts,Nestor T/A Allied Healthcare,3294.60, 06-May-2014
1596,Revenue,CCHD,Home Care - Elderly - North,Other Small Contracts,Nestor T/A Allied Healthcare,7507.45, 06-May-2014
1597,Revenue,CCHD,Day Care - North,Private & Voluntary Day Care,Nestor T/A Allied Healthcare,273.60, 06-May-2014
1598,Revenue,CCHD,Home care - Elderly MH - North,Other Small Contracts,Nestor T/A Allied Healthcare,53.20, 06-May-2014
1599,Revenue,CCHD,Home Care - Elderly - South,Other Small Contracts,Nestor T/A Allied Healthcare,3629.00, 13-May-2014
1600,Revenue,CCHD,Home Care - Elderly - North,Other Small Contracts,Nestor T/A Allied Healthcare,7983.62, 13-May-2014
1601,Revenue,CCHD,Day Care - North,Private & Voluntary Day Care,Nestor T/A Allied Healthcare,258.40, 13-May-2014
1602,Revenue,CCHD,Home care - Elderly MH - North,Other Small Contracts,Nestor T/A Allied Healthcare,53.20, 13-May-2014
1603,Revenue,CCHD,Home Care - Elderly - South,Other Small Contracts,Nestor T/A Allied Healthcare,3268.00, 15-May-2014
1604,Revenue,CCHD,Home Care - Elderly - North,Other Small Contracts,Nestor T/A Allied Healthcare,8263.04, 15-May-2014
1605,Revenue,CCHD,Day Care - North,Private & Voluntary Day Care,Nestor T/A Allied Healthcare,277.40, 15-May-2014
1606,Revenue,CCHD,Home care - Elderly MH - North,Other Small Contracts,Nestor T/A Allied Healthcare,53.20, 15-May-2014
1607,Revenue,CCHD,Home Care - Elderly - South,Other Small Contracts,Nestor T/A Allied Healthcare,3450.40, 15-May-2014
1608,Revenue,CCHD,Home Care - Elderly - North,Other Small Contracts,Nestor T/A Allied Healthcare,8337.86, 15-May-2014
1609,Revenue,CCHD,Day Care - North,Private & Voluntary Day Care,Nestor T/A Allied Healthcare,273.60, 15-May-2014
1610,Revenue,CCHD,Home care - Elderly MH - North,Other Small Contracts,Nestor T/A Allied Healthcare,49.40, 15-May-2014
1611,Revenue,CCHD,Home Care - Elderly - South,Other Small Contracts,Nestor T/A Allied Healthcare,3317.40, 30-May-2014
1612,Revenue,CCHD,Home Care - Elderly - North,Other Small Contracts,Nestor T/A Allied Healthcare,8295.31, 30-May-2014
1613,Revenue,CCHD,Day Care - North,Private & Voluntary Day Care,Nestor T/A Allied Healthcare,277.40, 30-May-2014
1614,Revenue,CCHD,Home care - Elderly MH - North,Other Small Contracts,Nestor T/A Allied Healthcare,53.20, 30-May-2014
1615,Revenue,CCHD,Home Care - Elderly - South,Other Small Contracts,Network Health & Social Care,1145.17, 27-May-2014
1616,Revenue,CCHD,Home Care - Elderly - North,Other Small Contracts,Network Health & Social Care,4776.01, 27-May-2014
1617,Revenue,CCHD,Home Care - Elderly - South,Other Small Contracts,Network Health & Social Care,1160.49, 27-May-2014
1618,Revenue,CCHD,Home Care - Elderly - North,Other Small Contracts,Network Health & Social Care,4837.29, 27-May-2014
1619,Revenue,CCHD,Home Care - Elderly - South,Other Small Contracts,Network Health & Social Care,1194.96, 27-May-2014
1620,Revenue,CCHD,Home Care - Elderly - North,Other Small Contracts,Network Health & Social Care,4841.12, 27-May-2014
1621,Revenue,CCHD,Home Care - Elderly - South,Other Small Contracts,Network Health & Social Care,1233.26, 22-May-2014
1622,Revenue,CCHD,Home Care - Elderly - North,Other Small Contracts,Network Health & Social Care,5028.79, 22-May-2014
1623,Revenue,CCHD,Home Care - Elderly - South,Other Small Contracts,Network Health & Social Care,815.79, 22-May-2014
1624,Revenue,CCHD,Home Care - Elderly - North,Other Small Contracts,Network Health & Social Care,5053.96, 22-May-2014
1625,Revenue,CCHD,Home Care - Elderly - South,Other Small Contracts,Network Health & Social Care,631.95, 22-May-2014
1626,Revenue,CCHD,Home Care - Elderly - North,Other Small Contracts,Network Health & Social Care,4979.00, 22-May-2014
1627,Revenue,CCHD,Social Lettings Agency,Fees - General,Neville James,10.00, 02-May-2014
1628,Revenue,CCHD,Social Lettings Agency,Other Supplies & Services,Neville James,565.00, 02-May-2014
1629,Revenue,CCHD,Community Promoting Independence Team,"Holidays, Outings & Visits",Neville Williams,1275.00, 01-May-2014
1630,Revenue,CCHD,Bed Purchasing - Under 65s PWLD - South,Permanent Residential,Nightingale Nursing Home,3151.80, 13-May-2014
1631,Revenue,CCHD,Bed Purchasing - Under 65s PWLD - South,Permanent Residential,Norwood   Broadway House,4972.40, 13-May-2014
1632,Revenue,CCHD,Bed Purchasing - Elderly MH - South,Permanent Residential,Notaro Homes Ltd  Queensmead Court,1884.80, 13-May-2014
1633,Revenue,CCHD,Bed Purchasing - Southmead Hospital,Permanent Residential,Notaro Homes Ltd  Queensmead Court,1389.00, 13-May-2014
1634,Revenue,CCHD,Bed Purchasing - Elderly - South,Permanent Residential,Nova House Care Home,949.92, 13-May-2014
1635,Revenue,CCHD,Woodleaze,Agency Staff (Admin/Support Staff) Pay,Nurse Plus and Carer Plus (UK) Limited,1128.11, 20-May-2014
1636,Revenue,CCHD,Woodleaze,Agency Staff (Admin/Support Staff) Pay,Nurse Plus and Carer Plus (UK) Limited,912.65, 29-May-2014
1637,Revenue,CCHD,Home Care - Elderly - South,Other Small Contracts,Nursing Solutions Limited,3571.12, 06-May-2014
1638,Revenue,CCHD,Home Care - Elderly - North,Other Small Contracts,Nursing Solutions Limited,576.24, 06-May-2014
1639,Revenue,CCHD,Home Care - Elderly - South,Other Small Contracts,Nursing Solutions Limited,3661.28, 22-May-2014
1640,Revenue,CCHD,Home Care - Elderly - North,Other Small Contracts,Nursing Solutions Limited,564.48, 22-May-2014
1641,Revenue,CCHD,Home Care - Elderly - South,Other Small Contracts,Nursing Solutions Limited,3300.64, 22-May-2014
1642,Revenue,CCHD,Home Care - Elderly - North,Other Small Contracts,Nursing Solutions Limited,588.00, 22-May-2014
1643,Revenue,CCHD,Home Care - Elderly - South,Other Small Contracts,Nursing Solutions Limited,3347.68, 22-May-2014
1644,Revenue,CCHD,Home Care - Elderly - North,Other Small Contracts,Nursing Solutions Limited,544.88, 22-May-2014
1645,Revenue,CCHD,Home Care - Elderly - South,Other Small Contracts,Nursing Solutions Limited,3269.28, 22-May-2014
1646,Revenue,CCHD,Home Care - Elderly - North,Other Small Contracts,Nursing Solutions Limited,650.72, 22-May-2014
1647,Revenue,CCHD,Section 117 Placements MH Younger,Permanent Nursing,Oaklands,6088.80, 13-May-2014
1648,Revenue,CCHD,Woodleaze,Refuse Collection Charges,OCS Group UK Ltd,808.81, 22-May-2014
1649,Revenue,CCHD,Housing Advice,Grants to Voluntary Bodies,Orchard & Shipman PLC,13333.25, 07-May-2014
1650,Revenue,CCHD,Bed purchasing -S28A  Under 65 - North,Permanent Residential,Orchard End Limited,7562.88, 13-May-2014
1651,Revenue,CCHD,Bed purchasing - Elderly S117 - South,Permanent Residential,Osbourne Court,3105.28, 13-May-2014
1652,Revenue,CCHD,Bed Purchasing - Elderly - North,Permanent Residential,Osbourne Court,2850.71, 13-May-2014
1653,Revenue,CCHD,Swift Dump Code,Permanent Residential,Osbourne Court,4364.29, 13-May-2014
1654,Revenue,CCHD,Swift Dump Code,Permanent Residential,Osbourne Court,2632.70, 13-May-2014
1655,Revenue,CCHD,Swift Dump Code,Permanent Residential,Osbourne Court,2081.68, 13-May-2014
1656,Revenue,CCHD,Bed Purchasing - Elderly S117- North,Permanent Residential,Osbourne Court,1928.00, 13-May-2014
1657,Revenue,CCHD,Bed Purchasing - Elderly - North,Permanent Residential,Osbourne Court,2557.32, 13-May-2014
1658,Revenue,CCHD,Bed Purchasing - Under 65s PWLD - South,Permanent Residential,Osprey Court,7750.24, 13-May-2014
1659,Revenue,CCHD,Bed purchasing - S28A Under 65 - South,Permanent Residential,Osprey Court,4322.88, 13-May-2014
1660,Revenue,CCHD,Bed purchasing - S28A Under 65 - South,Permanent Residential,Osprey Court,6396.04, 13-May-2014
1661,Revenue,CCHD,Bed Purchasing - PWLD S 117 Placements,Permanent Residential,Osprey Court,11328.56, 13-May-2014
1662,Revenue,CCHD,Bed Purchasing - Southmead Hospital,Permanent Nursing,Palm Court Nursing Home,1519.32, 13-May-2014
1663,Revenue,CCHD,Bed Purchasing - Elderly MH - South,Permanent Residential,Park Farm House,1344.56, 13-May-2014
1664,Revenue,CCHD,Bed Purchasing - Elderly MH - South,Permanent Residential,Park Farm House,1614.16, 13-May-2014
1665,Revenue,CCHD,Bed Purchasing - Under 65s PWLD - South,Permanent Residential,Park Hall,5634.64, 13-May-2014
1666,Revenue,CCHD,Bed purchasing - Under 65s PWLD - North,Permanent Residential,Park Hall,5202.24, 13-May-2014
1667,Revenue,CCHD,Bed Purchasing - Under 65s PWLD - South,Permanent Residential,Park Hall,5014.44, 13-May-2014
1668,Revenue,CCHD,Bed purchasing - Elderly PWLD - South,Permanent Residential,Park Hall,2555.68, 13-May-2014
1669,Revenue,CCHD,Bed purchasing - Elderly PWLD - North,Permanent Residential,Park Hall,4967.68, 13-May-2014
1670,Revenue,CCHD,Bed purchasing - S28A Under 65 - South,Permanent Residential,Park Hall,4682.92, 13-May-2014
1671,Revenue,CCHD,Bed Purchasing - Under 65s PWLD - South,Permanent Residential,Park Hall,4990.40, 13-May-2014
1672,Revenue,CCHD,Bed purchasing - Under 65s PWLD - North,Permanent Residential,Park Hall,4339.28, 13-May-2014
1673,Revenue,CCHD,Bed Purchasing - S28A - Over 65- North,Permanent Residential,Park Hall,5382.84, 13-May-2014
1674,Revenue,CCHD,Bed Purchasing - Under 65s PWLD - South,Permanent Residential,Park Hall,10767.96, 13-May-2014
1675,Revenue,CCHD,Bed purchasing -S28A  Under 65 - North,Permanent Residential,Park Hall,5931.12, 13-May-2014
1676,Revenue,CCHD,Bed purchasing - S28A Under 65 - South,Permanent Residential,Park Hall,5645.36, 13-May-2014
1677,Revenue,CCHD,Bed Purchasing - Under 65s PWLD - South,Permanent Residential,Park Hall,7181.48, 13-May-2014
1678,Revenue,CCHD,Social Lettings Agency,Fees - General,Paul Ashford,10.00, 27-May-2014
1679,Revenue,CCHD,Social Lettings Agency,Other Supplies & Services,Paul Ashford,565.00, 27-May-2014
1680,Revenue,CCHD,Training - Adult Services,Training Expenses,PDP,210.00, 13-May-2014
1681,Revenue,CCHD,Bed Purchasing - Under 65s PWLD - South,Permanent Residential,Penleigh House Care Home,4560.48, 13-May-2014
1682,Revenue,CCHD,Bed Purchasing - Under 65s PWLD - South,Permanent Residential,Penleigh House Care Home,6430.64, 13-May-2014
1683,Revenue,CCHD,Bed purchasing - Elderly PWLD - South,Permanent Residential,Penleigh House Care Home,4318.88, 13-May-2014
1684,Revenue,CCHD,Bed purchasing - S28A Under 65 - South,Permanent Residential,Penleigh House Care Home,5497.68, 13-May-2014
1685,Revenue,CCHD,Bed purchasing - S28A Under 65 - South,Permanent Residential,Penleigh House Care Home,4123.26, 13-May-2014
1686,Revenue,CCHD,Bed Purchasing - Under 65s PWLD - South,Permanent Residential,Penleigh House Care Home,4966.16, 13-May-2014
1687,Revenue,CCHD,Home Care - Elderly - South,Other Small Contracts,Premier Homecare Limited,82.08, 12-May-2014
1688,Revenue,CCHD,Home Care - Elderly - North,Other Small Contracts,Premier Homecare Limited,8024.46, 12-May-2014
1689,Revenue,CCHD,Day Care - North,Private & Voluntary Day Care,Premier Homecare Limited,13.68, 12-May-2014
1690,Revenue,CCHD,Home care - Elderly MH - North,Other Small Contracts,Premier Homecare Limited,127.68, 12-May-2014
1691,Revenue,CCHD,Elderly MH Day Care North,Private & Voluntary Day Care,Premier Homecare Limited,72.96, 12-May-2014
1692,Revenue,CCHD,Home Care - Elderly - South,Other Small Contracts,Premier Homecare Limited,104.88, 14-May-2014
1693,Revenue,CCHD,Home Care - Elderly - North,Other Small Contracts,Premier Homecare Limited,7986.27, 14-May-2014
1694,Revenue,CCHD,Home care - Elderly MH - North,Other Small Contracts,Premier Homecare Limited,127.68, 14-May-2014
1695,Revenue,CCHD,Elderly MH Day Care North,Private & Voluntary Day Care,Premier Homecare Limited,127.68, 14-May-2014
1696,Revenue,CCHD,Home Care - Elderly - South,Other Small Contracts,Prestige Nursing,928.56, 06-May-2014
1697,Revenue,CCHD,Home Care - Elderly - North,Other Small Contracts,Prestige Nursing,3015.45, 06-May-2014
1698,Revenue,CCHD,Day Care - South,Private & Voluntary Day Care,Prestige Nursing,127.02, 06-May-2014
1699,Revenue,CCHD,Day Care - North,Private & Voluntary Day Care,Prestige Nursing,385.44, 06-May-2014
1700,Revenue,CCHD,Bed Purchasing - Frenchay Hospital,Permanent Nursing,Ravenswood,2103.28, 13-May-2014
1701,Revenue,CCHD,Bed purchasing - Elderly MH - North,Permanent Nursing,Ravenswood,1279.04, 13-May-2014
1702,Revenue,CCHD,Bed Purchasing - PWLD S 117 Placements,Permanent Residential,Real Life Options,8098.04, 13-May-2014
1703,Revenue,CCHD,Breakthrough and Inclusion Work,Other Supplies & Services,Redefine Mentoring Ltd,2948.57, 08-May-2014
1704,Revenue,CCHD,Bed Purchasing - Elderly S117- North,Permanent Nursing,Redholme Memory Care Limited,1991.84, 13-May-2014
1705,Revenue,CCHD,Bed Purchasing - Elderly - South,Permanent Nursing,Regent House,2255.28, 13-May-2014
1706,Revenue,CCHD,Bed Purchasing - Elderly - South,Permanent Nursing,Regent House,2391.04, 13-May-2014
1707,Revenue,CCHD,Bed Purchasing - Elderly - South,Permanent Nursing,Regent House,1670.88, 13-May-2014
1708,Revenue,CCHD,Bed Purchasing - Elderly - South,Permanent Nursing,Regent House,1978.40, 13-May-2014
1709,Revenue,CCHD,Bed Purchasing - Elderly MH - South,Permanent Nursing,Regent House,2008.44, 13-May-2014
1710,Revenue,CCHD,Bed Purchasing - Elderly - South,Permanent Nursing,Regent House,1726.76, 13-May-2014
1711,Revenue,CCHD,Bed Purchasing - Elderly - South,Permanent Nursing,Regent House,1894.92, 13-May-2014
1712,Revenue,CCHD,Bed Purchasing - Elderly - South,Permanent Nursing,Regent House,2383.04, 13-May-2014
1713,Revenue,CCHD,Bed Purchasing - Elderly - North,Permanent Nursing,Regent House,2004.36, 13-May-2014
1714,Revenue,CCHD,Bed Purchasing - Elderly - North,Permanent Nursing,Regent House,1503.27, 13-May-2014
1715,Revenue,CCHD,Bed Purchasing - Southmead Hospital,Permanent Nursing,Regent House,1600.76, 13-May-2014
1716,Revenue,CCHD,Bed Purchasing - Elderly - South,Permanent Nursing,Regent House,1826.20, 13-May-2014
1717,Revenue,CCHD,Bed Purchasing - Elderly - South,Permanent Nursing,Regent House,1675.68, 13-May-2014
1718,Revenue,CCHD,Bed Purchasing - Southmead Hospital,Permanent Nursing,Regent House,1406.44, 13-May-2014
1719,Revenue,CCHD,Bed Purchasing - Elderly - South,Permanent Nursing,Regent House,1668.12, 13-May-2014
1720,Revenue,CCHD,Bed Purchasing - Southmead Hospital,Permanent Nursing,Regent House,1992.00, 13-May-2014
1721,Revenue,CCHD,Bed Purchasing - Elderly MH - South,Permanent Nursing,Regent House,1197.60, 13-May-2014
1722,Revenue,CCHD,Bed purchasing - Elderly MH - North,Permanent Nursing,Regent House,1283.84, 13-May-2014
1723,Revenue,CCHD,Bed Purchasing - Under 65s PWLD - South,Permanent Residential,Ridgeway House,3502.08, 13-May-2014
1724,Revenue,CCHD,Bed Purchasing - Under 65s PWLD - South,Permanent Residential,Riverside House,3611.04, 13-May-2014
1725,Revenue,CCHD,Bed Purchasing - Frenchay Hospital,Permanent Nursing,Riversway Nursing Home,2685.28, 13-May-2014
1726,Revenue,CCHD,Bed purchasing - Elderly PWLD - South,Permanent Residential,Rockleaze,1426.80, 13-May-2014
1727,Revenue,CCHD,Bed Purchasing - LD S28A- Over 65- South,Permanent Residential,Rockleaze,2082.04, 13-May-2014
1728,Revenue,CCHD,Bed purchasing - Elderly PWLD - South,Permanent Residential,Rockleaze,2414.96, 13-May-2014
1729,Revenue,CCHD,Bed purchasing - Elderly PWLD - South,Permanent Residential,Rockleaze,1426.80, 13-May-2014
1730,Revenue,CCHD,Bed Purchasing - Frenchay Hospital,Permanent Residential,Rodney House Residential Home,1432.20, 13-May-2014
1731,Revenue,CCHD,Bed Purchasing - Under 65s PWLD - South,Permanent Residential,Rosewood Lodge & Brook House,4569.72, 13-May-2014
1732,Revenue,CCHD,Bed Purchasing - Elderly MH - South,Permanent Residential,Ross Healthcare,1314.48, 13-May-2014
1733,Revenue,CCHD,Sexual Health,Other Supplies & Services,Royal United Hospital,10947.00, 13-May-2014
1734,Revenue,CCHD,Tenancy Start Up Scheme,Fees & Charges Income - General,Ruth Piggott,1350.00, 30-May-2014
1735,Revenue,CCHD,South Glos Users in South Glos Homes,Permanent Nursing,Saffron Gardens,517.58, 13-May-2014
1736,Revenue,CCHD,Bed Purchasing - Frenchay Hospital,Permanent Nursing,Saffron Gardens,1853.12, 13-May-2014
1737,Revenue,CCHD,Bed Purchasing - Frenchay Hospital,Respite Planned - Nursing,Saffron Gardens,1959.32, 13-May-2014
1738,Revenue,CCHD,Bed Purchasing - Southmead Hospital,Permanent Residential,Saffron Gardens,1288.88, 13-May-2014
1739,Revenue,CCHD,Bed Purchasing - Elderly MH - South,Permanent Nursing,Saffron Gardens,2072.32, 13-May-2014
1740,Revenue,CCHD,Bed Purchasing - Southmead Hospital,Permanent Nursing,Saffron Gardens,1391.72, 13-May-2014
1741,Revenue,CCHD,Bed Purchasing - Elderly - North,Permanent Nursing,Saffron Gardens,986.64, 13-May-2014
1742,Revenue,CCHD,Bed Purchasing - Frenchay Hospital,Permanent Nursing,Saffron Gardens,597.04, 13-May-2014
1743,Revenue,CCHD,Bed Purchasing - Elderly - South,Permanent Residential,Saffron Gardens,1296.84, 13-May-2014
1744,Revenue,CCHD,Care Management Team - South,Interpreting & Translation,Sally Walker Limited,545.00, 30-May-2014
1745,Revenue,CCHD,Bed Purchasing - Under 65s PWLD - South,Permanent Residential,Salters Hill Barn,2039.36, 13-May-2014
1746,Revenue,CCHD,Bed Purchasing - Southmead Hospital,Permanent Residential,Sanctuary Care Ltd,1284.20, 13-May-2014
1747,Revenue,CCHD,Learning Difficulties PSL,Rent,Sarah Stoker,1650.00, 01-May-2014
1748,Revenue,CCHD,Learning Difficulties PSL,Rent,Sarah Stoker,1650.00, 30-May-2014
1749,Revenue,CCHD,Woodleaze,"Provisions (Food, etc)",School Milk Services Limited,798.91, 30-May-2014
1750,Revenue,CCHD,Bed purchasing - Under 65s PWLD - North,Permanent Residential,Scope   Accounts Dept,5030.36, 13-May-2014
1751,Revenue,CCHD,Day Care - North,Private & Voluntary Day Care,SeeAbility,1942.06, 28-May-2014
1752,Revenue,CCHD,Purchase of Non-Res Care - North,Private & Voluntary Day Care,Selborne Care Ltd,876.32, 01-May-2014
1753,Revenue,CCHD,Supported Living (S28a) South,Private & Voluntary Home Care,Selborne Care Ltd,3326.68, 01-May-2014
1754,Revenue,CCHD,Supported Living - South,Private & Voluntary Home Care,Selborne Care Ltd,2596.95, 19-May-2014
1755,Revenue,CCHD,Supported Living - South,Private & Voluntary Home Care,Selborne Care Ltd,643.60, 19-May-2014
1756,Revenue,CCHD,Purchase of Non-Res Care - North,Private & Voluntary Day Care,Selborne Care Ltd,1939.45, 19-May-2014
1757,Revenue,CCHD,Supported Living - South,Private & Voluntary Home Care,Selborne Care Ltd,5128.68, 19-May-2014
1758,Revenue,CCHD,Purchase of Non-Res Care - North,Private & Voluntary Day Care,Selborne Care Ltd,901.04, 19-May-2014
1759,Revenue,CCHD,Supported Living - South,Private & Voluntary Home Care,Selborne Care Ltd,1155.54, 21-May-2014
1760,Revenue,CCHD,Purchase of Non-Res Care - North,Private & Voluntary Day Care,Selborne Care Ltd,871.12, 19-May-2014
1761,Revenue,CCHD,Supported Living - South,Private & Voluntary Home Care,Selborne Care Ltd,514.88, 21-May-2014
1762,Revenue,CCHD,Supported Living - South,Private & Voluntary Home Care,Selborne Care Ltd,4607.04, 19-May-2014
1763,Revenue,CCHD,Purchase of Non-Res Care - North,Private & Voluntary Day Care,Selborne Care Ltd,767.56, 19-May-2014
1764,Revenue,CCHD,Supported Living - South,Private & Voluntary Home Care,Selborne Care Ltd,554.56, 21-May-2014
1765,Revenue,CCHD,Supported Living - South,Private & Voluntary Home Care,Selborne Care Ltd,2015.63, 19-May-2014
1766,Revenue,CCHD,Purchase of Non-Res Care - North,Private & Voluntary Day Care,Selborne Care Ltd,700.44, 19-May-2014
1767,Revenue,CCHD,Supported Living (S28a) South,Private & Voluntary Home Care,Selborne Care Ltd,3326.68, 19-May-2014
1768,Revenue,CCHD,Bed Purchasing - Under 65s PWLD - South,Permanent Residential,Shaldon House (Positive Care Ltd),2226.92, 13-May-2014
1769,Revenue,CCHD,Bed Purchasing - Elderly S117- North,Permanent Nursing,Shaw Healthcare Ltd,2647.96, 13-May-2014
1770,Revenue,CCHD,Bed purchasing - Elderly S117 - South,Permanent Nursing,Shaw Healthcare Ltd,2677.88, 13-May-2014
1771,Revenue,CCHD,Bed purchasing - Elderly MH - North,Permanent Nursing,Shaw Healthcare Ltd,2085.32, 13-May-2014
1772,Revenue,CCHD,Bed purchasing - S28A Under 65 - South,Permanent Residential,Shaw Healthcare Ltd,9968.40, 13-May-2014
1773,Revenue,CCHD,Bed purchasing - S28A Under 65 - South,Permanent Residential,Shaw Healthcare Ltd,9792.00, 13-May-2014
